Workbook

Sheet Handleiding
B1: HANDLEIDING AFSTANDSVLIEGEN ULM 14.01
B3: Voorwoord
B4: Globale inhoud
B5: Handleiding
C6: 1) Navinput
C7: 2) Nav2
C8: 3) Piloten
C9: 4) Vliegtuigen
C10: 5) Icao
C11: 6) SR-SS
C12: 7) Coord
C13: 8) Navblanco
B16: VOORWOORD
B18: Beste Piloot,
B20: Reeds geruime tijd heb ik dit berekeningsprogramma gemaakt en in gebruik in de ulmvliegerij.
B21: Het is intersesant om Uw vlucht op voorhand te bereken en om als flightlog te gebruiken in de vlucht.
B22: Na het verdwijnen van Nav2000 en het beschikbaar stellen van de database heb ik niet geaarzeld om de database,
B23: met de vliegveldgegevens, foto's en links te integreren in mijn programma.
B25: De gegevens die ik geintreerd heb zijn onder andere vliegveldgegevens die beschikbaar werden gesteld door
B26: de maker van Nav2000 deze zullen jammergenoeg niet meer geactualiseerd worden.
B27: De gegevens zijn opgenomen ter goede trouw , maar in geen enkel geval kan enige aanspraak gemaakt worden op
B28: mogelijke fouten . Het is echter enkel informatief opgesteld , het is dan ook aan de piloot om zich te informeren
B29: aan de mogelijkse wijzigingen en mogelijke gegevens beschikbaar in diverse nationale AIP's te verifieren
B31: De database bestaat uit : vliegvelden, ulmvelden , altiports en NAV-aids, en VRP uit de database van Nav2000
B32: aangevuld met de navaids van Unites Kingdom, VAC van de ulmfederatie.
B34: De berekeningen in het blad Navinput op basis van bolgoniometrie met de beschikbare gegevens uit de database en
B35: kunnen mogelijks fouten bevatten, het is dan ook aan de gebruiker om de correctheid hiervan te controleren.
B36: Hou er rekening mee om macro's toe te laten op dit werkblad voor de correcte werking van de file.
B38: Succes,
B39: Tony Van Eeckhout
B40: Vliegclub Moorsele
B42: GLOBALE INHOUD
B44: Navinput : Berekeningsblad voor navigatie met verschillende tools
B46: Navdruk : intern blad gebruikt voor afdruk
B48: Nav 2 : afdrukblad te gebruiken voor onderweg , via internet nieuwe wind ingeven en dan gegevens manueel
B49: in te vullen op blad
B51: Piloten : hier kan je pilotennamen toevoegen voor gebruik in het navigatieblad
B53: Vliegtuigen : hier kan je de gegevens van Uw vliegtuig toevoegen of wijzigen
B55: Icao : Hier kan de gegevens van keerpunten vinden of zoeken en kan 3 eigen punten toevoegen
B57: SR-SR : dit is een lijst van de Sunrise en Sunset tijden die gebruit wordt in het navigatieblad
B59: Coord : hier kan de coordinaten van een punt op de kaart berekenen
B61: Navblanco : is een blanco blad voor manuele berekening van een route onderweg Uw vlucht | M61: P 1
B63: HANDLEIDING
B65: NAVINPUT
B67: Hier kan je Uw navigatie berekenen , Visual Approch charts consulteren, foto's zien van je keerpunt , fuelplanning enz
B68: Op dit werkblad zie je reeds een uitgerekende vlucht die zal ik gebruiken voor enige uitleg te geven.
B69: Alle velden die kunnen ingevuld worden staan in het groen en als op dit veld gaat met de muis krijg je uitleg wat je
B70: moet invullen.
B72: Bovenaan links staat het type vliegtuig aangeduid en na keuze worden volgende gegevens opgehaald voor de
B73: berekeningen : kruissnelheid, registratie , verbruik en beladinggegevens, deze worden gebruikt voor berekeningen
B74: Indien Uw vliegtuiggegevens niet aanwezig zijn kan je deze toevoegen in het tabblad :Vliegtuigen
B76: Verder kan je de piloot kiezen , dit is louter informatief en wordt gebruikt voor de afdruk.
B78: Naast het verbruik per uur vindt U een veld waar U de datum kunt invullen , formaat dd/mm/jjjj, eenmaal ingevuld
B79: wordt automatisch de sunrise en sunset uren in UTC opgehaald en ingevuld op het blad.
B81: Verder kan je de variatie op Uw vlucht invullen , indien W is die negatief anders is ze positief bv -2 (2 graden west) of
B82: 2 (2 graden oost), de variatie wordt gebruikt voor het berekenen van de magnetische graden tussen keerpunten
B84: Onder "FL Ref " vindt U 2 vakjes waar U de magnetische graden (formaat OOO°) en windsnelheid (formaat 00)
B85: kunt invullen en waarmee zal gerekend worden om de koersen en grondsnelheid ,rekening houdend met de wind,
B86: te berekenen (vul hier dus de gemiddelde wind in op Uw voorziene vlieghoogte)
B87: Onder deze velden vindt U de rechtsreekse internetlinks naar Belgocontrol meteo en windkaart van Orbifly.
B89: Verder onder FL30 en FL 40 kunt U indicatief de wind op deze hoogten invullen , hier wordt niet mee gerekend
B91: In de detail op de linkerzijde vindt U de ingave en weergave van de keerpunten , afstanden, koesen ,grondspeed,
B92: fuelcalculatie, tijdplanning , kaartgegevens , foto's en visual approach charts
B93: U geeft in de groene ingavevakken de ICAO code van de vliegvelden, ulmvelden, VOR's, NDB's, Visual reporting points
B95: Van zodra U twee keerpunten heeft ingeven wordt automatisch afstand, koers, vliegtijd, grondspeed en fuelverbruik
B96: berekend . Vergeet niet Uw vliegtuigtype, variatie en wind in te geven, alsook fuel quantity die U wenst mee te nemen.
B97: Indien U de ICAO code niet kent kunt U deze opzoeken op de rechterzijde van het blad onder SR-SS
B98: U kiest in de selectielijst de naam van het keerpunt en rechts ervan verschijnt de ICAO die U moet invullen als keerpunt.
B100: In de kolom DIST vindt U de afstand tussen de keerpunten in km, CM = magnetische koers zonder wind, CMW
B101: magnetische koers met windcorrectie, EET = vliegtijd zonder wind, EETW = vliegtijd met windcorrectie,
B102: GS : grondsnelheid, BV= brandstofverbruik, BR=resterende brandstof.
B103: Na de keerpuntnaam vindt U de elevatie en frequentie van de keerpunten (overgenomen van Nav2000 database)
B104: (Gelieve deze na te checken voor vertrek).
B106: Verder vindt U op de zelfde hoogte van het keerpunt volgende items : kaart = via google wordt dit punt op kaart getoond,
B107: (groene pijl op de kaart), indien je wil kan op deze kaart overschakelen naar satelietzicht en inzoomen.
B108: Foto= foto van het keerpunt (uit nav2000) ,VAC = visual approach charts (vliegvelden en ulmvelden uit Belgie wordt
B109: de kaartjes van de federatie getoond, franse vliegvelden de VAC uit de franse AIP, engelse vliegvelden de vliegveld-
B110: kaarten uit de UK AIP, voor Nederlandse velden een verbinding met de AIP, INFO= wordt U verbonden met het
B111: excelblad "Airports Europe" , waar de details uit Nav2000 kunt raadplegen . Om deze knop te laten werken moet U deze
B112: file installeren op Uw computer in dir c:\. (voor de kaart, foto's, VAC heeft U een internetverbinding nodig )
B113: In het veld REMARKS= kan vrij tekst ingeven in verband met Uw vlucht , bv frequentie Lille info
B115: Onderaan het blad aan de linkerzijde vindt U de totalen van de ingeven vlucht : Total trip = totaal aantal km ,
B116: Total EET= totale tijd vlucht, Total EETW= totale tijd met wind, Total Fuel= totaal benzine verbruik (vlucht + verbruik
B117: in circuits), FLTTME= totale vluchttijd met windtijd (inclusief tijd ingevulde aantal circuits)
M118: P 2
B120: Aan de rechterzijde U een mogelijkheid om in de vlucht ATIS gegevens in te vulen bij DEP en ARR.
B121: Bij SR-SS vindt U de sunset en sunrise tijden in UTC op de datum die U bovenaan invulde
B123: Bij fuel management in het veld Fuel quantity kan je de hoeveelheid benzine die U wenst mee te nemen invullen ,
B124: de min hoevelheid staat rechts ingevuld en is afhankelijk van de vlucht, fuel emergency tijd en aantal circuits en de
B125: circuittijd die U vrij kunt kiezen. De overblijvende reserve wordt ook berekend. Bij Fuel quantity emerG wordt
B126: de tijd die U als reserve wilt meenemen ingevuld (formaat : uu:mm) , Fuel taxi/circuit hier vul je het aantal landingen in
B127: die U zult uitvoeren en de tijd die U wenst te berekenen voor het taxien, opstijgen,circuit te vliegen, te landen en te taxien .
B129: WEIGHTS: hier wordt de weight and balance van Uw vliegtuig berekend aan de hand van het gegevens van het vliegtuig
B130: die U heeft opgegeven voor Uw vliegtuig. Bij piloot vult U het gewicht van piloot en passagier in, bij Pass ach vult U het
B131: gewicht in van de achterste passagiers (motorvliegtuig), bij Lugg vult U het gewicht in van de bagage, het gewicht
B132: het gewicht van de benzine wordt automatisch bereken aan de hand van het ingevulde aantal liter bij fuel quantity.
B133: Onderaan dit vak wordt gewicht en zwaartepuntligging berekend en als alles binnen de limieten
B134: verschjnt recht bovenaan het vak in het groen met de tekst "W/B OK" anders verschijnt in het rood "W/B Not OK"
B135: De limieten van het toestel die U zelf invulde worden hieronder vermeld
B136: Bij hour count kan je de uurteller invullen.
B138: Bij het werkblad vindt U nog drie knoppen bovenaan : NEW ROUTE, ROUTE REV en PRINT.
B139: Bij NEW route worden alle gegevens gewist en kan U een nieuwe route invullen (vergeet niet op Uw nieuw werkblad
B140: eerst Uw vliegtuig, datum , variatie en wind in te vullen)
B141: Bij ROUTE REV wordt de ingeven route automatisch omgekeerd zonder verdere wijzigingen
B142: Vergeet niet om te saven zo wordt Uw ingave bewaard.
B144: Voor Uw werkblad uit te printen druk U op de knop Print
B146: NAV2
B148: Dit blad kan je uitdrukken voor later gebruik of bij gebruik op reis. Alles is hetzelfde als de originele uitdruk maar de
B149: gegevens rekeninghoudend van de wind zijn niet ingevuld. Dit kan gebruikt worden voor een terugreis van een
B150: bestemming over een paar dagen , nadat U via de website van de VCM een nieuwe berekening hebt gemaakt van Uw.
B151: terugreis. De gegevens van CMW, EETW, Groundspeeds en verbruiken kunt U dan manueel invullen voor de planning
B154: PILOTEN
B156: Op deze pagina kan je als piloot ingeven, zo kan je naam gebruikt worden op het navigatieblad.
B157: Door op de knop "Allfabetisch rangschikken" te drukken kan de ingave rangschikken.
B158: Vergeet niet om te saven zo wordt Uw ingave bewaard.
B161: VLIEGTUIGEN
B163: In dit tabblad kan je gegevens van je vliegtuig invoegen en wijzigen.
B164: U kan Toesteltype , immatriculatie, kruissnelheid en verbruik invullen, deze gegevens worden dan gebruikt in
B165: het navigatieblad. U kunt ook de gegevens leeggewicht, arm gewicht, piloot, pass acht, fuel en bagage invullen.
B166: Deze gegevens vindt U in het beladingsschema van Uw vliegtuig ,alsook min en max van zwaartepuntsligging en MTW.
B167: Vergeet niet om te saven zo wordt Uw ingave bewaard.
B169: ICAO
B171: Hier kan je de keerpunten raadplegen en zoeken door op de knop "zoeken" te drukken zowel op naam of ICAO kode.
B172: Door op de knop "userkeerpunten" te drukken wordt de cursor verplaatst naar de plaats waar U een 3 eigen keerpunt
B173: kunt ingeven die U wenst te gebruiken in Uw navigatie (de groene zones zijn wijzigbaar) Vergeet niet te saven !
M175: P 3
B176: SR-SS
B177: Hier kan je de sunset en sunrise tijden in GMT raadplegen voor het lopende kalenderjaar
B179: COORD
B181: In deze map kan je vanaf een kaart de koordinaten berekenen van een punt op de kaart.
B182: De coordinaten worden berekend in het blauwe vak, in de andere vakken kan je desbetreffende gegevens invullen.
B183: Door het vak aan te wijzen krijg je een tekstvak met wat er moet ingevuld worden
B186: NAVBLANCO
B188: Dit is een blanconavigatieblad die U kunt uitdrukken om manueel alle gegevens in te vullen
M231: P 4

Sheet Navinput
A1: =" Aircraft : " -> Aircraft : | D1: =VLOOKUP(AC1,Vliegtuigen1,3,FALSE) -> A22L | F1: ="Vcr : " -> Vcr : | G1: =IF(AC1<>1,VLOOKUP(AC1,Vliegtuigen1,5,FALSE),"") -> 157 | I1: =IF(AC1<>1,VLOOKUP(AC1,Vliegtuigen1,4,FALSE),"") -> OO-HO1 | Q1: Wind : | S1: REF | U1: 30 | W1: 40 | AC1: 3 | AH1: R_aarde | AI1: 6378137
A2: ="Pilot : " -> Pilot : | C2: =VLOOKUP(AC2,Piloten,3,FALSE) ->  | D2: lfac | G2: Consumption : | J2: =IF(AC1<>1,VLOOKUP(AC1,Vliegtuigen1,7,FALSE),"") -> 16 | L2: 2025-03-13 | P2: Variatie : | Q2: 2 | R2: =IF(Q2<>"",IF(Q2<0,"(W)","(E)"),"") -> (E) | S2: 360 | T2: 11 | AC2: 1 | AH2: Eps | AI2: 1e-07
A3: ICAO | C3: DIST | D3: CM | E3: CMW | F3: EET | G3: EETW | H3: GS | I3: BV | J3: BR | K3: ETA | L3: AETA | M3: Remarks | P3: ATIS : | Q3: Runway : | T3: =ROUND(T2*1.852,0) -> 20 | W3: Transition level
P4: DEP | R4: =HYPERLINK(Icao!C4716,"Meteo/FLPN Belgocontrol") -> Meteo/FLPN Belgocontrol | U4: =HYPERLINK(Icao!C4717,"Orbifly meteo") -> Orbifly meteo | AH4: 111.1949267 | AI4: ja | AJ4: =MIN(#REF!) -> 
J5: =T11 -> 0 | R5: =HYPERLINK(Icao!C4718,"Meteo France") -> Meteo France | U5: =HYPERLINK(Icao!C4719,"Olivia FLPN") -> Olivia FLPN
A6: ebmo | C6: =IF(A6<>"",VLOOKUP(A6,Bereik1,2,FALSE)&" "&VLOOKUP(A6,Bereik1,8,FALSE)&" Ft "&VLOOKUP(A6,Bereik1,9,FALSE),"") -> Moorsele 66 Ft 120.500 | I6: =IF(A6<>"",HYPERLINK(VLOOKUP(A6,Bereik2,22,FALSE),"Kaart"),"") -> Kaart | J6: =IF(A6<>"",IF(HYPERLINK(VLOOKUP(A6,Bereik1,10,FALSE))<>"",HYPERLINK(VLOOKUP(A6,Bereik1,10,FALSE),"Foto"),""),"") -> Foto | K6: =IF(A6<>"",IF(HYPERLINK(VLOOKUP(A6,Bereik1,11,FALSE))<>"",HYPERLINK(VLOOKUP(A6,Bereik1,11,FALSE),"VAC"),""),"") -> VAC | Q6: Wind | T6: Clouds | U6: Level 1 | Z6: ebmo | AA6: =IF(AC6<>1,1,"") ->  | AB6: =IF(AA6<>"",VLOOKUP(LARGE($AA$6:$AA$15,1),$AA$6:$AC$15,3),1) -> 1 | AC6: 1 | AD6: =IF(A6<>"",VLOOKUP(A6,Bereik1,4,FALSE),"") -> 50 | AE6: =IF(A6<>"",VLOOKUP(A6,Bereik1,5,FALSE),"") -> 51.2 | AF6: =IF(A6<>"",VLOOKUP(A6,Bereik1,6,FALSE),"") -> 3 | AG6: =IF(A6<>"",VLOOKUP(A6,Bereik1,7,FALSE),"") -> 8.8 | AH6: =PI()/180 -> 0.01745329252 | AI6: neen | AJ6: =MIN(O73:O75) -> 0 | BF6: =1*AD6+AE6/60 -> 50.85333333 | BH6: =1*AF6+AG6/60 -> 3.146666667 | BJ6: =BF6/180*PI() -> 0.8875581023 | BK6: =BH6/180*PI() -> 0.0549196938 | BL6: =BK7-BK6 -> 0.01250819297 | BM6: =PI()/2-BJ6 -> 0.6832382245 | BN6: =ACOS(COS(BM6)*COS(BM7)+SIN(BM6)*SIN(BM7)*COS(BL6)) -> 0.008088967534 | BO6: =IF(ABS(SIN(BN6))<$Y$9,0,IF(ABS(ABS(BN6)-ABS(BL6))<$Y$9,BM7*BL6/BN6,ASIN((SIN(BM7)/SIN(BN6))*SIN(BL6)))) -> 1.361851387 | BP6: =BO6/PI()*180 -> 78.02833681 | BQ6: =IF((BF7-BF6)<0,180-BP6,BP6) -> 101.9716632 | BR6: =IF((BQ6-Q2<0),360+BQ6-Q2,BQ6-Q2) -> 99.97166319
C7: =IF(A8<>"",AH7,"") -> 51.53481218 | D7: =IF(A8<>"",BR6,"") -> 99.97166319 | E7: =IF(A8<>"",AS7,"") -> 92.77166319 | F7: =IF(A8<>"",TIME(0,ROUND(C7/$G$1*60,0),0),"") -> 00:20:00 | G7: =IF(A8<>"",TIME(0,ROUND(C7*60/H7,0),0),"") -> 00:19:00 | H7: =IF(A8<>"",BA7,"") -> 159 | I7: =IF(A8<>"",ROUND(ROUNDUP(C7*60/H7,0)*J2/60,0),"") -> 5 | J7: =IF(A8<>"",J5-I7,"") -> -5 | U7: Leverl 2 | Z7: ebam | AA7: =IF(AC7<>1,2,"") ->  | AB7: =IF(AA7<>"",VLOOKUP(LARGE($AA$6:$AA$15,2),$AA$6:$AC$15,3),1) -> 1 | AC7: 1 | AD7: =IF(A8<>"",VLOOKUP(A8,Bereik1,4,FALSE),"") -> 50 | AE7: =IF(A8<>"",VLOOKUP(A8,Bereik1,5,FALSE),"") -> 45.3 | AF7: =IF(A8<>"",VLOOKUP(A8,Bereik1,6,FALSE),"") -> 3 | AG7: =IF(A8<>"",VLOOKUP(A8,Bereik1,7,FALSE),"") -> 51.8 | AH7: =$AH$4/$AH$6*ACOS(COS((AD6+AE6/60)*$AH$6)*COS((AD7+AE7/60)*$AH$6)*COS(((AF7+AG7/60)-(AF6+AG6/60))*$AH$6)+SIN((AD6+AE6/60)*$AH$6)*SIN((AD7+AE7/60)*$AH$6)) -> 51.53481218 | AI7: Km | AJ7: =BR6 -> 99.97166319 | AK7: =AS7 -> 92.77166319 | AL7: =BA7 -> 159 | AQ7: =ROUND(ASIN($T$3/$G$1*SIN(PI()/180*($S$2-AJ7)))*180/PI(),1) -> -7.2 | AR7: =AJ7-$Q$2 -> 97.97166319 | AS7: =IF(ROUND(AJ7+AQ7,0)<=0,360+AJ7+AQ7,AJ7+AQ7) -> 92.77166319 | AT7: =AS7-$Q$2 -> 90.77166319 | AU7: =-1*ROUND($T$3*SIN(PI()/180*($S$2)),0) -> 0 | AV7: =-1*ROUND($T$3*COS(PI()/180*($S$2)),0) -> -20 | AW7: =1*ROUND($G$1*SIN(PI()/180*(AS7)),0) -> 157 | AX7: =1*ROUND($G$1*COS(PI()/180*(AS7)),0) -> -8 | AY7: =AU7+AW7 -> 157 | AZ7: =AV7+AX7 -> -28 | BA7: =ROUND((AY7^2 + AZ7^2)^0.5,0) -> 159 | BF7: =1*AD7+AE7/60 -> 50.755 | BH7: =1*AF7+AG7/60 -> 3.863333333 | BJ7: 0.8858418618 | BK7: 0.06742788677 | BL7: -0.006777695262 | BM7: 0.6849544649 | BN7: 0.00803518737 | BO7: -0.5576266778 | BP7: -31.94965518 | BQ7: -31.94965518 | BR7: =IF((BQ7-Q2<0),360+BQ7-Q2,BQ7-Q2) -> 326.0503448
A8: ebgg | C8: =IF(A8<>"",VLOOKUP(A8,Bereik1,2,FALSE)&" "&VLOOKUP(A8,Bereik1,8,FALSE)&" Ft "&VLOOKUP(A8,Bereik1,9,FALSE),"") -> Geraardsbergen Overboelaere 62 Ft | I8: =IF(A8<>"",HYPERLINK(VLOOKUP(A8,Bereik2,22,FALSE),"Kaart"),"") -> Kaart | J8: =IF(A8<>"",IF(HYPERLINK(VLOOKUP(A8,Bereik1,10,FALSE))<>"",HYPERLINK(VLOOKUP(A8,Bereik1,10,FALSE),"Foto"),""),"") -> Foto | K8: =IF(A8<>"",IF(HYPERLINK(VLOOKUP(A8,Bereik1,11,FALSE))<>"",HYPERLINK(VLOOKUP(A8,Bereik1,11,FALSE),"VAC"),""),"") ->  | Q8: temp/dewpoint : | U8: QNH : | W8: QFE : | Z8: ebty | AA8: =IF(AC8<>1,3,"") ->  | AB8: =IF(AA8<>"",VLOOKUP(LARGE($AA$6:$AA$15,3),$AA$6:$AC$15,3),1) -> 1 | AC8: 1 | AD8: =IF(A10<>"",VLOOKUP(A10,Bereik1,4,FALSE),"") -> 51 | AE8: =IF(A10<>"",VLOOKUP(A10,Bereik1,5,FALSE),"") -> 8.7 | AF8: =IF(A10<>"",VLOOKUP(A10,Bereik1,6,FALSE),"") -> 3 | AG8: =IF(A10<>"",VLOOKUP(A10,Bereik1,7,FALSE),"") -> 28.5 | AH8: 51.19217876 | AI8: Km | AJ8: =BR7 -> 326.0503448 | AK8: =AS8 -> 330.1503448 | AL8: 140 | AQ8: 4.1 | AR8: 324.0503448 | AS8: 330.1503448 | AT8: 328.1503448 | AU8: 0 | AV8: -20 | AW8: -78 | AX8: 136 | AY8: =AU8+AW8 -> -78 | AZ8: 116 | BA8: =ROUND((AY8^2 + AZ8^2)^0.5,0) -> 140 | BF8: =1*AD8+AE8/60 -> 51.145 | BH8: =1*AF8+AG8/60 -> 3.475 | BJ8: 0.8926486459 | BK8: 0.06065019151 | BL8: -0.005730497711 | BM8: 0.6781476809 | BN8: 0.006238546381 | BO8: -0.6186015754 | BP8: -35.44325947 | BQ8: 215.4432595 | BR8: =IF((BQ8-Q2<0),360+BQ8-Q2,BQ8-Q2) -> 213.4432595
C9: =IF(A10<>"",AH8,"") -> 51.19217876 | D9: =IF(A10<>"",BR7,"") -> 326.0503448 | E9: =IF(A10<>"",AS8,"") -> 330.1503448 | F9: =IF(A10<>"",TIME(0,ROUND(C9/$G$1*60,0),0),"") -> 00:20:00 | G9: =IF(A10<>"",TIME(0,ROUND(C9*60/H9,0),0),"") -> 00:22:00 | H9: =IF(A10<>"",BA8,"") -> 140 | I9: =IF(A10<>"",ROUND(ROUNDUP(C9*60/H9,0)*$J$2/60,0),"") -> 6 | J9: =IF(A10<>"",J7-I9,"") -> -11 | Z9: ebcf | AA9: =IF(AC9<>1,4,"") ->  | AB9: =IF(AA9<>"",VLOOKUP(LARGE($AA$6:$AA$15,4),$AA$6:$AC$15,3),1) -> 1 | AC9: 1 | AD9: =IF(A12<>"",VLOOKUP(A12,Bereik1,4,FALSE),"") -> 50 | AE9: =IF(A12<>"",VLOOKUP(A12,Bereik1,5,FALSE),"") -> 51.2 | AF9: =IF(A12<>"",VLOOKUP(A12,Bereik1,6,FALSE),"") -> 3 | AG9: =IF(A12<>"",VLOOKUP(A12,Bereik1,7,FALSE),"") -> 8.8 | AH9: 39.74577901 | AI9: Km | AJ9: 213.4432595 | AK9: 217.4432595 | AL9: 173 | AQ9: 4 | AR9: 211.4432595 | AS9: 217.4432595 | AT9: 215.4432595 | AU9: 0 | AV9: -20 | AW9: -95 | AX9: -125 | AY9: -95 | AZ9: -145 | BA9: 173 | BF9: 50.85333333 | BH9: 3.146666667 | BJ9: 0.8875581023 | BK9: 0.0549196938 | BM9: 0.6832382245 | BR9: =IF((BQ9-Q2<0),360+BQ9-Q2,BQ9-Q2) -> 
A10: ebul | C10: =IF(A10<>"",VLOOKUP(A10,Bereik1,2,FALSE)&" "&VLOOKUP(A10,Bereik1,8,FALSE)&" Ft "&VLOOKUP(A10,Bereik1,9,FALSE),"") -> Ursel 95 Ft A/A 135.125 | I10: =IF(A10<>"",HYPERLINK(VLOOKUP(A10,Bereik2,22,FALSE),"Kaart"),"") -> Kaart | J10: =IF(A10<>"",IF(HYPERLINK(VLOOKUP(A10,Bereik1,10,FALSE))<>"",HYPERLINK(VLOOKUP(A10,Bereik1,10,FALSE),"Foto"),""),"") -> Foto | K10: =IF(A10<>"",IF(HYPERLINK(VLOOKUP(A10,Bereik1,11,FALSE))<>"",HYPERLINK(VLOOKUP(A10,Bereik1,11,FALSE),"VAC"),""),"") -> VAC | P10: SR/SS | Q10: Fuel Management | Z10: ebty | AA10: =IF(AC10<>1,5,"") ->  | AB10: =IF(AA10<>"",VLOOKUP(LARGE($AA$6:$AA$15,5),$AA$6:$AC$15,3),1) -> 1 | AC10: 1 | AD10: =IF(A14<>"",VLOOKUP(A14,Bereik1,4,FALSE),"") ->  | AE10: =IF(A14<>"",VLOOKUP(A14,Bereik1,5,FALSE),"") ->  | AF10: =IF(A14<>"",VLOOKUP(A14,Bereik1,6,FALSE),"") ->  | AG10: =IF(A14<>"",VLOOKUP(A14,Bereik1,7,FALSE),"") ->  | AI10: Km | AU10: 0 | AV10: -20 | BR10: =IF((BQ10-Q2<0),360+BQ10-Q2,BQ10-Q2) -> 
C11: =IF(A12<>"",AH9,"") -> 39.74577901 | D11: =IF(A12<>"",BR8,"") -> 213.4432595 | E11: =IF(A12<>"",AS9,"") -> 217.4432595 | F11: =IF(A12<>"",TIME(0,ROUND(C11/$G$1*60,0),0),"") -> 00:15:00 | G11: =IF(A12<>"",TIME(0,ROUND(C11*60/H11,0),0),"") -> 00:14:00 | H11: =IF(A12<>"",BA9,"") -> 173 | I11: =IF(A12<>"",ROUND(ROUNDUP(C11*60/H11,0)*$J$2/60,0),"") -> 4 | J11: =IF(A12<>"",J9-I11,"") -> -15 | S11: Fuel Quantity : | U11: Minimum fuel quantity to take on board : | X11: =IF(AC1<>1,SUM(U13:U14),"") -> 27 | Z11: ebam | AA11: =IF(AC11<>1,6,"") ->  | AB11: =IF(AA11<>"",VLOOKUP(LARGE($AA$6:$AA$15,6),$AA$6:$AC$15,3),1) -> 1 | AC11: 1 | AD11: =IF(A16<>"",VLOOKUP(A16,Bereik1,4,FALSE),"") ->  | AE11: =IF(A16<>"",VLOOKUP(A16,Bereik1,5,FALSE),"") ->  | AF11: =IF(A16<>"",VLOOKUP(A16,Bereik1,6,FALSE),"") ->  | AG11: =IF(A16<>"",VLOOKUP(A16,Bereik1,7,FALSE),"") ->  | AI11: Km | AU11: 0 | AV11: -20 | BR11: =IF((BQ11-Q2<0),360+BQ11-Q2,BQ11-Q2) -> 
A12: ebmo | C12: =IF(A12<>"",VLOOKUP(A12,Bereik1,2,FALSE)&" "&VLOOKUP(A12,Bereik1,8,FALSE)&" Ft "&VLOOKUP(A12,Bereik1,9,FALSE),"") -> Moorsele 66 Ft 120.500 | I12: =IF(A12<>"",HYPERLINK(VLOOKUP(A12,Bereik2,22,FALSE),"Kaart"),"") -> Kaart | J12: =IF(A12<>"",IF(HYPERLINK(VLOOKUP(A12,Bereik1,10,FALSE))<>"",HYPERLINK(VLOOKUP(A12,Bereik1,10,FALSE),"Foto"),""),"") -> Foto | K12: =IF(A12<>"",IF(HYPERLINK(VLOOKUP(A12,Bereik1,11,FALSE))<>"",HYPERLINK(VLOOKUP(A12,Bereik1,11,FALSE),"VAC"),""),"") -> VAC | P12: =IF(L2<>"",VLOOKUP($L$2,'SR-SS'!A1:D377,2,FALSE),"") -> 06:01 | Z12: ebty | AA12: =IF(AC12<>1,7,"") ->  | AB12: =IF(AA12<>"",VLOOKUP(LARGE($AA$6:$AA$15,7),$AA$7:$AC$15,3),1) -> 1 | AC12: 1 | AD12: =IF(A18<>"",VLOOKUP(A18,Bereik1,4,FALSE),"") ->  | AE12: =IF(A18<>"",VLOOKUP(A18,Bereik1,5,FALSE),"") ->  | AF12: =IF(A18<>"",VLOOKUP(A18,Bereik1,6,FALSE),"") ->  | AG12: =IF(A18<>"",VLOOKUP(A18,Bereik1,7,FALSE),"") ->  | AI12: Km | AU12: 0 | AV12: -20 | BR12: =IF((BQ12-Q2<0),360+BQ12-Q2,BQ12-Q2) -> 
C13: =IF(A14<>"",AH10,"") ->  | D13: =IF(A14>"",BR9,"") ->  | E13: =IF(A14>"",AS10,"") ->  | F13: =IF(A14>"",TIME(0,ROUND(C13/$G$1*60,0),0),"") ->  | G13: =IF(A14>"",TIME(0,ROUND(C13*60/H13,0),0),"") ->  | H13: =IF(A14>"",BA10,"") ->  | I13: =IF(A14<>"",ROUND(ROUNDUP(C13*60/H13,0)*$J$2/60,0),"") ->  | J13: =IF(A14<>"",J11-I13,"") ->  | P13: =IF(L2<>"",VLOOKUP($L$2,'SR-SS'!A1:D377,3,FALSE),"") -> 17:44 | S13: Fuel Quantity Needed : | U13: =IF(AC1<>1,I27,"") -> 19 | W13: Reserve : | X13: =IF(T11<>"",T11-X11,"") ->  | AA13: =IF(AC13<>1,8,"") ->  | AB13: =IF(AA13<>"",VLOOKUP(LARGE($AA$6:$AA$15,8),$AA$6:$AC$15,3),1) -> 1 | AC13: 1 | AD13: =IF(A20<>"",VLOOKUP(A20,Bereik1,4,FALSE),"") ->  | AE13: =IF(A20<>"",VLOOKUP(A20,Bereik1,5,FALSE),"") ->  | AF13: =IF(A20<>"",VLOOKUP(A20,Bereik1,6,FALSE),"") ->  | AG13: =IF(A20<>"",VLOOKUP(A20,Bereik1,7,FALSE),"") ->  | AI13: Km | AU13: 0 | AV13: -20 | BR13: =IF((BQ13-Q2<0),360+BQ13-Q2,BQ13-Q2) -> 
C14: =IF(A14<>"",VLOOKUP(A14,Bereik1,2,FALSE)&" "&VLOOKUP(A14,Bereik1,8,FALSE)&" Ft "&VLOOKUP(A14,Bereik1,9,FALSE),"") ->  | I14: =IF(A14<>"",HYPERLINK(VLOOKUP(A14,Bereik2,22,FALSE),"Kaart"),"") ->  | J14: =IF(A14<>"",IF(HYPERLINK(VLOOKUP(A14,Bereik1,10,FALSE))<>"",HYPERLINK(VLOOKUP(A14,Bereik1,10,FALSE),"Foto"),""),"") ->  | K14: =IF(A14<>"",IF(HYPERLINK(VLOOKUP(A14,Bereik1,11,FALSE))<>"",HYPERLINK(VLOOKUP(A14,Bereik1,11,FALSE),"VAC"),""),"") ->  | P14: ="(UTC)" -> (UTC) | Q14: Fuel Quant EMERG : | T14: 00:30:00 | U14: =IF(AC1<>1,ROUND(((HOUR(T14)*60)+ MINUTE(T14))*J2/60,0),"") -> 8 | AA14: =IF(AC14<>1,9,"") ->  | AB14: =IF(AA14<>"",VLOOKUP(LARGE($AA$6:$AA$15,9),$AA$6:$AC$15,3),1) -> 1 | AC14: 1 | AD14: =IF(A22<>"",VLOOKUP(A22,Bereik1,4,FALSE),"") ->  | AE14: =IF(A22<>"",VLOOKUP(A22,Bereik1,5,FALSE),"") ->  | AF14: =IF(A22<>"",VLOOKUP(A22,Bereik1,6,FALSE),"") ->  | AG14: =IF(A22<>"",VLOOKUP(A22,Bereik1,7,FALSE),"") ->  | AI14: Km | AJ14: =BR13 ->  | AK14: =AS14 ->  | AL14: =BA14 ->  | AU14: 0 | AV14: -20 | AY14: =AU14+AW14 ->  | AZ14: =AV14+AX14 ->  | BA14: =ROUND((AY14^2 + AZ14^2)^0.5,0) ->  | BR14: =IF((BQ14-Q2<0),360+BQ14-Q2,BQ14-Q2) -> 
C15: =IF(A16<>"",AH11,"") ->  | D15: =IF(A16>"",BR10,"") ->  | E15: =IF(A16>"",AS11,"") ->  | F15: =IF(A16>"",TIME(0,ROUND(C15/$G$1*60,0),0),"") ->  | G15: =IF(A16>"",TIME(0,ROUND(C15*60/H15,0),0),"") ->  | H15: =IF(A16>"",BA11,"") ->  | I15: =IF(A16<>"",ROUND(ROUNDUP(C15*60/H15,0)*$J$2/60,0),"") ->  | J15: =IF(A16<>"",J13-I15,"") ->  | R15: Fuel taxi / circuit : | S15: 1 | T15: 00:15:00 | U15: =IF(AC1<>1,ROUND(MINUTE(T15)*S15*J2/60,0),"") -> 4 | AA15: =IF(AC15<>1,10,"") ->  | AB15: =IF(AA15<>"",VLOOKUP(LARGE($AA$6:$AA$15,10),$AA$6:$AC$15,3),1) -> 1 | AC15: 1 | AD15: =IF(A24<>"",VLOOKUP(A24,Bereik1,4,FALSE),"") ->  | AE15: =IF(A24<>"",VLOOKUP(A24,Bereik1,5,FALSE),"") ->  | AF15: =IF(A24<>"",VLOOKUP(A24,Bereik1,6,FALSE),"") ->  | AG15: =IF(A24<>"",VLOOKUP(A24,Bereik1,7,FALSE),"") ->  | AI15: Km | AU15: 0 | AV15: -20 | AY15: =AU15+AW15 ->  | BA15: =ROUND((AY15^2 + AZ15^2)^0.5,0) ->  | BR15: =IF((BQ15-Q2<0),360+BQ15-Q2,BQ15-Q2) -> 
C16: =IF(A16<>"",VLOOKUP(A16,Bereik1,2,FALSE)&" "&VLOOKUP(A16,Bereik1,8,FALSE)&" Ft "&VLOOKUP(A16,Bereik1,9,FALSE),"") ->  | I16: =IF(A16<>"",HYPERLINK(VLOOKUP(A16,Bereik2,22,FALSE),"Kaart"),"") ->  | J16: =IF(A16<>"",IF(HYPERLINK(VLOOKUP(A16,Bereik1,10,FALSE))<>"",HYPERLINK(VLOOKUP(A16,Bereik1,10,FALSE),"Foto"),""),"") ->  | K16: =IF(A16<>"",IF(HYPERLINK(VLOOKUP(A16,Bereik1,11,FALSE))<>"",HYPERLINK(VLOOKUP(A16,Bereik1,11,FALSE),"VAC"),""),"") ->  | V16: =IF(VLOOKUP(Y16,Bereik,2,FALSE)<>"",VLOOKUP(Y16,Bereik,2,FALSE),"") ->  | Y16: 1 | AC16: 1 | AD16: =IF(AC16<>1,VLOOKUP(AC16,Bereik,5),"") ->  | AE16: =IF(AC16<>1,VLOOKUP(AC16,Bereik,6),"") ->  | AF16: =IF(AC16<>1,VLOOKUP(AC16,Bereik,7),"") ->  | AG16: =IF(AC16<>1,VLOOKUP(AC16,Bereik,8),"") ->  | AI16: Km | AJ16: =BR15 ->  | AU16: 0 | AV16: -20 | BR16: =IF((BQ16-Q2<0),360+BQ16-Q2,BQ16-Q2) -> 
C17: =IF(A18<>"",AH12,"") ->  | D17: =IF(A18>"",BR11,"") ->  | E17: =IF(A18>"",AS12,"") ->  | F17: =IF(A18>"",TIME(0,ROUND(C17/$G$1*60,0),0),"") ->  | G17: =IF(A18>"",TIME(0,ROUND(C17*60/H17,0),0),"") ->  | H17: =IF(A18>"",BA12,"") ->  | I17: =IF(A18<>"",ROUND(ROUNDUP(C17*60/H17,0)*$J$2/60,0),"") ->  | J17: =IF(A18<>"",J15-I17,"") ->  | P17: WEIGHTS | Z17: =IF(AA17<>"",1,"") -> 1 | AA17: =IF(A6<>"",A6,"") -> ebmo | AB17: =IF(AA17<>"",VLOOKUP(LARGE($Z$17:$Z$26,1),$Z$17:$AA$26,2),"") -> ebmo | AC17: 1 | AI17: Km | AU17: 0 | AV17: -20 | BR17: =IF((BQ17-Q2<0),360+BQ17-Q2,BQ17-Q2) -> 
C18: =IF(A18<>"",VLOOKUP(A18,Bereik1,2,FALSE)&" "&VLOOKUP(A18,Bereik1,8,FALSE)&" Ft "&VLOOKUP(A18,Bereik1,9,FALSE),"") ->  | I18: =IF(A18<>"",HYPERLINK(VLOOKUP(A18,Bereik2,22,FALSE),"Kaart"),"") ->  | J18: =IF(A18<>"",IF(HYPERLINK(VLOOKUP(A18,Bereik1,11,FALSE))<>"",HYPERLINK(VLOOKUP(A18,Bereik1,10,FALSE),"Foto"),""),"") ->  | K18: =IF(A18<>"",IF(HYPERLINK(VLOOKUP(A18,Bereik1,11,FALSE))<>"",HYPERLINK(VLOOKUP(A18,Bereik1,11,FALSE),"VAC"),""),"") ->  | P18: Empty | Q18: =IF(AC1<>1,VLOOKUP(AC1,Vliegtuigen1,8,FALSE),"") -> 301 | R18: =IF(AC1<>1,VLOOKUP(AC1,Vliegtuigen1,10,FALSE),"") -> 1558 | S18: =IF(Q18<>"",Q18*R18,"") -> 468958 | U18: =IF(AND(Q19<>"",AC1<>1),IF(AND(ROUND(S23/Q23,0)>=VLOOKUP(AC1,Vliegtuigen1,15,FALSE),ROUND(S23/Q23,0)<=VLOOKUP(AC1,Vliegtuigen1,16,FALSE),Q23<=VLOOKUP(AC1,Vliegtuigen1,17,FALSE)),"W/B OK","W/B NOT OK"),"") ->  | Z18: =IF(AA18<>"",2,"") -> 2 | AA18: =IF(A8<>"",A8,"") -> ebgg | AB18: =IF(AA18<>"",VLOOKUP(LARGE($Z$17:$Z$26,2),$Z$17:$AA$26,2),"") -> ebul | AC18: 1 | AI18: Km | AU18: 0 | AV18: -20 | BF18: =1*AD18+AE18/60 ->  | BH18: =1*AF18+AG18/60 ->  | BR18: =IF((BQ18-Q2<0),360+BQ18-Q2,BQ18-Q2) -> 
C19: =IF(A20<>"",AH13,"") ->  | D19: =IF(A20>"",BR12,"") ->  | E19: =IF(A20>"",AS13,"") ->  | F19: =IF(A20>"",TIME(0,ROUND(C19/$G$1*60,0),0),"") ->  | G19: =IF(A20>"",TIME(0,ROUND(C19*60/H19,0),0),"") ->  | H19: =IF(A20>"",BA13,"") ->  | I19: =IF(A20<>"",ROUND(ROUNDUP(C19*60/H19,0)*$J$2/60,0),"") ->  | J19: =IF(A20<>"",J17-I19,"") ->  | P19: Pilot/pass | R19: =IF(AC1<>1,VLOOKUP(AC1,Vliegtuigen1,11,FALSE),"") -> 1785 | S19: =IF(Q19<>"",Q19*R19,"") ->  | U19: =IF(AC1<>1,VLOOKUP(AC1,Vliegtuigen1,17,FALSE),"") -> 173 | W19: =IF(AC1<>1,VLOOKUP(AC1,Vliegtuigen1,15,FALSE)&"mm-"&VLOOKUP(AC1,Vliegtuigen1,16,FALSE)&"mm","") -> 1500mm-1750mm | Z19: =IF(AA19<>"",3,"") -> 3 | AA19: =IF(A10<>"",A10,"") -> ebul | AB19: =IF(AA19<>"",VLOOKUP(LARGE($Z$17:$Z$26,3),$Z$17:$AA$26,2),"") -> ebgg | AC19: 1 | AI19: Km | AU19: 0 | AV19: -20 | BF19: =1*AD19+AE19/60 ->  | BH19: =1*AF19+AG19/60 ->  | BR19: =IF((BQ19-Q2<0),360+BQ19-Q2,BQ19-Q2) -> 
C20: =IF(A20<>"",VLOOKUP(A20,Bereik1,2,FALSE)&" "&VLOOKUP(A20,Bereik1,8,FALSE)&" Ft "&VLOOKUP(A20,Bereik1,9,FALSE),"") ->  | I20: =IF(A20<>"",HYPERLINK(VLOOKUP(A20,Bereik2,22,FALSE),"Kaart"),"") ->  | J20: =IF(A20<>"",IF(HYPERLINK(VLOOKUP(A20,Bereik1,10,FALSE))<>"",HYPERLINK(VLOOKUP(A20,Bereik1,10,FALSE),"Foto"),""),"") ->  | K20: =IF(A20<>"",IF(HYPERLINK(VLOOKUP(A20,Bereik1,11,FALSE))<>"",HYPERLINK(VLOOKUP(A20,Bereik1,11,FALSE),"VAC"),""),"") ->  | P20: Pass acht | R20: =IF(AC1<>1,VLOOKUP(AC1,Vliegtuigen1,12,FALSE),"") -> 1785 | S20: =IF(Q20<>"",Q20*R20,"") ->  | Z20: =IF(AA20<>"",4,"") -> 4 | AA20: =IF(A12<>"",A12,"") -> ebmo | AB20: =IF(AA20<>"",VLOOKUP(LARGE($Z$17:$Z$26,4),$Z$17:$AA$26,2),"") -> ebmo | AC20: 1 | AI20: Km | AU20: 0 | AV20: -20 | BF20: =1*AD20+AE20/60 ->  | BH20: =1*AF20+AG20/60 ->  | BR20: =IF((BQ20-Q2<0),360+BQ20-Q2,BQ20-Q2) -> 
C21: =IF(A22<>"",AH14,"") ->  | D21: =IF(A22>"",BR13,"") ->  | E21: =IF(A22>"",AS14,"") ->  | F21: =IF(A22>"",TIME(0,ROUND(C21/$G$1*60,0),0),"") ->  | G21: =IF(A22>"",TIME(0,ROUND(C21*60/H21,0),0),"") ->  | H21: =IF(A22>"",BA14,"") ->  | I21: =IF(A22<>"",ROUND(ROUNDUP(C21*60/H21,0)*$J$2/60,0),"") ->  | J21: =IF(A22<>"",J19-I21,"") ->  | P21: Fuel | Q21: =IF(T11<>"",T11,"") ->  | R21: =IF(AC1<>1,VLOOKUP(AC1,Vliegtuigen1,13,FALSE),"") -> 2000 | S21: =IF(Q21<>"",Q21*R21*0.755,"") ->  | U21: Hour Counter | V21: Arrival | Z21: =IF(AA21<>"",5,"") ->  | AA21: =IF(A14<>"",A14,"") ->  | AB21: =IF(AA21<>"",VLOOKUP(LARGE($Z$17:$Z$26,5),$Z$17:$AA$26,2),"") ->  | AC21: 1 | AQ21: 0 | AR21: -2 | AS21: 360 | AT21: 358 | AU21: 0 | AV21: -20 | AW21: 0 | AX21: 157 | AY21: 0 | AZ21: 137 | BA21: 137
C22: =IF(A22<>"",VLOOKUP(A22,Bereik1,2,FALSE)&" "&VLOOKUP(A22,Bereik1,8,FALSE)&" Ft "&VLOOKUP(A22,Bereik1,9,FALSE),"") ->  | I22: =IF(A22<>"",HYPERLINK(VLOOKUP(A22,Bereik2,22,FALSE),"Kaart"),"") ->  | J22: =IF(A22<>"",IF(HYPERLINK(VLOOKUP(A22,Bereik1,10,FALSE))<>"",HYPERLINK(VLOOKUP(A22,Bereik1,10,FALSE),"Foto"),""),"") ->  | K22: =IF(A22<>"",IF(HYPERLINK(VLOOKUP(A22,Bereik1,11,FALSE))<>"",HYPERLINK(VLOOKUP(A22,Bereik1,11,FALSE),"VAC"),""),"") ->  | P22: LUGG | R22: =IF(AC1<>1,VLOOKUP(AC1,Vliegtuigen1,14,FALSE),"") -> 2300 | S22: =IF(Q22<>"",Q22*R22,"") ->  | V22: Departure | Z22: =IF(AA22<>"",6,"") ->  | AA22: =IF(A16<>"",A16,"") ->  | AB22: =IF(AA22<>"",VLOOKUP(LARGE($Z$17:$Z$26,6),$Z$17:$AA$26,2),"") ->  | AC22: 1 | AS22: 360 | AT22: 358 | AU22: 0 | AV22: -20 | AW22: 0 | AX22: 157 | AY22: =AU22+AW22 -> 0 | AZ22: =AV22+AX22 -> 137 | BA22: =ROUND((AY22^2 + AZ22^2)^0.5,0) -> 137
C23: =IF(A24<>"",AH15,"") ->  | D23: =IF(A24>"",BR14,"") ->  | E23: =IF(A24>"",AS15,"") ->  | F23: =IF(A24>"",TIME(0,ROUND(C23/$G$1*60,0),0),"") ->  | G23: =IF(A24>"",TIME(0,ROUND(C23*60/H23,0),0),"") ->  | H23: =IF(A24>"",BA15,"") ->  | I23: =IF(A24<>"",ROUND(ROUNDUP(C23*60/H23,0)*$J$2/60,0),"") ->  | J23: =IF(A24<>"",J21-I23,"") ->  | Q23: =IF(AND(AC1<>1,Q19<>""),SUM(Q18:Q20,Q22,ROUND(Q21*0.755,0)),"") ->  | R23: =IF(AND(Q19<>"",AC1<>1),ROUND(S23/Q23,0),"") ->  | S23: =IF(AND(Q19<>"",AC1<>1),SUM(S18:S22),"") ->  | V23: Total : | Z23: =IF(AA23<>"",7,"") ->  | AA23: =IF(A18<>"",A18,"") ->  | AB23: =IF(AA23<>"",VLOOKUP(LARGE($Z$17:$Z$26,7),$Z$17:$AA$26,2),"") ->  | AC23: 1
C24: =IF(A24<>"",VLOOKUP(A24,Bereik1,2,FALSE)&" "&VLOOKUP(A24,Bereik1,8,FALSE)&" Ft "&VLOOKUP(A24,Bereik1,9,FALSE),"") ->  | I24: =IF(A24<>"",HYPERLINK(VLOOKUP(A24,Bereik2,22,FALSE),"Kaart"),"") ->  | J24: =IF(A24<>"",IF(HYPERLINK(VLOOKUP(A24,Bereik1,10,FALSE))<>"",HYPERLINK(VLOOKUP(A24,Bereik1,10,FALSE),"Foto"),""),"") ->  | K24: =IF(A24<>"",IF(HYPERLINK(VLOOKUP(A24,Bereik1,11,FALSE))<>"",HYPERLINK(VLOOKUP(A24,Bereik1,11,FALSE),"VAC"),""),"") ->  | P24: ATIS : | Q24: Runway : | V24: Transition level | Z24: =IF(AA24<>"",8,"") ->  | AA24: =IF(A20<>"",A20,"") ->  | AB24: =IF(AA24<>"",VLOOKUP(LARGE($Z$17:$Z$26,8),$Z$17:$AA$26,2),"") ->  | AC24: 1
P25: ARR | Q25: Wind : | T25: Clouds | U25: Level 1 | Z25: =IF(AA25<>"",9,"") ->  | AA25: =IF(A22<>"",A22,"") ->  | AB25: =IF(AA25<>"",VLOOKUP(LARGE($Z$17:$Z$26,9),$Z$17:$AA$26,2),"") -> 
C26: TOTAL TRIP | E26: TOTAL EET | G26: TOTAL EETW | I26: TOTAL FUEL | L26: FLTTME | U26: Level 2 | Z26: =IF(AA26<>"",10,"") ->  | AA26: =IF(A24<>"",A24,"") ->  | AB26: =IF(AA26<>"",VLOOKUP(LARGE($Z$17:$Z$26,10),$Z$17:$AA$26,2),"") -> 
C27: =SUM(C7:C23) -> 142.47277 | E27: =SUM(F7:F23) -> 0.03819444444 | G27: =SUM(G7:G23) -> 0.03819444444 | I27: =IF(AC1<>1,SUM(I7:I23)+U15,"") -> 19 | L27: =G27+(S15*T15) -> 0.04861111111 | Q27: temp/dewpoint : | U27: QNH : | W27: QFE :
Z28: =IF(M5<>"",1,"") ->  | AA28: =IF(M5<>"",M5,"") ->  | AB28: =IF(AA28<>"",VLOOKUP(LARGE($Z$28:$Z$36,1),$Z$28:$AA$36,2),"") -> 
Z29: =IF(M8<>"",2,"") ->  | AA29: =IF(M8<>"",M8,"") ->  | AB29: =IF(AA29<>"",VLOOKUP(LARGE($Z$28:$Z$36,2),$Z$28:$AA$36,2),"") -> 
Z30: =IF(M10<>"",3,"") ->  | AA30: =IF(M10<>"",M10,"") ->  | AB30: =IF(AA30<>"",VLOOKUP(LARGE($Z$28:$Z$36,3),$Z$28:$AA$36,2),"") -> 
Z31: =IF(M12<>"",4,"") ->  | AA31: =IF(M12<>"",M12,"") ->  | AB31: =IF(AA31<>"",VLOOKUP(LARGE($Z$28:$Z$36,4),$Z$28:$AA$36,2),"") -> 
Z32: =IF(M14<>"",5,"") ->  | AA32: =IF(M14<>"",M14,"") ->  | AB32: =IF(AA32<>"",VLOOKUP(LARGE($Z$28:$Z$36,5),$Z$28:$AA$36,2),"") -> 
Z33: =IF(M16<>"",6,"") ->  | AA33: =IF(M16<>"",M16,"") ->  | AB33: =IF(AA33<>"",VLOOKUP(LARGE($Z$28:$Z$36,6),$Z$28:$AA$36,2),"") -> 
Z34: =IF(M18<>"",7,"") ->  | AA34: =IF(M18<>"",M18,"") ->  | AB34: =IF(AA34<>"",VLOOKUP(LARGE($Z$28:$Z$36,7),$Z$28:$AA$36,2),"") -> 
Z35: =IF(M20<>"",8,"") ->  | AA35: =IF(M20<>"",M20,"") ->  | AB35: =IF(AA35<>"",VLOOKUP(LARGE($Z$28:$Z$36,8),$Z$28:$AA$36,2),"") -> 
Z36: =IF(M22<>"",9,"") ->  | AA36: =IF(M22<>"",M22,"") ->  | AB36: =IF(AA36<>"",VLOOKUP(LARGE($Z$28:$Z$36,9),$Z$28:$AA$36,2),"") -> 
Z37: =IF(AA37<>"",10,"") ->  | AA37: =IF(A35<>"",A35,"") ->  | AB37: =IF(AA37<>"",VLOOKUP(LARGE($Z$17:$Z$26,10),$Z$17:$AA$26,2),"") -> 

Sheet NavDruk
A1: =" Aircraft : " -> Aircraft : | D1: =Navinput!D1 -> A22L | F1: ="Vcr : " -> Vcr : | G1: =Navinput!G1 -> 157 | I1: =Navinput!I1 -> OO-HO1 | Q1: Wind : | S1: REF | U1: 30 | W1: 40 | AC1: 8 | AH1: R_aarde | AI1: 6378137
A2: ="Pilot : " -> Pilot : | C2: =Navinput!C2 ->  | G2: Consumption : | J2: =Navinput!J2 -> 16 | L2: =Navinput!L2 -> 2025-03-13 | P2: Variatie : | Q2: =Navinput!Q2 -> 2 | R2: =IF(Q2<0,"(W)","(E)") -> (E) | S2: =IF(Navinput!S2<>"",Navinput!S2,"") -> 360 | T2: =IF(Navinput!T2<>"",Navinput!T2,"") -> 11 | U2: =IF(Navinput!U2<>"",Navinput!U2,"") ->  | V2: =IF(Navinput!V2<>"",Navinput!V2,"") ->  | W2: =IF(Navinput!W2<>"",Navinput!W2,"") ->  | X2: =IF(Navinput!X2<>"",Navinput!X2,"") ->  | AC2: 12 | AH2: Eps | AI2: 1e-07
A3: ICAO | C3: DIST | D3: CM | E3: CMW | F3: EET | G3: EETW | H3: GS | I3: BV | J3: BR | K3: ETA | L3: AETA | M3: Remarks | P3: ATIS : | T3: =ROUND(T2*1.852,0) -> 20
P4: DEP | Q4: Runway : | W4: Transition level | AH4: 111.1949267 | AI4: ja | AJ4: =MIN(#REF!) -> 
J5: =IF(Navinput!J5<>"",Navinput!J5,"") -> 0 | M5: =IF(Navinput!M5<>"",Navinput!M5,"") -> 
A6: =IF(Navinput!A6<>"",Navinput!A6,"") -> ebmo | C6: =IF(Navinput!C6<>"",Navinput!C6,"") -> Moorsele 66 Ft 120.500 | Q6: Wind | T6: Clouds | U6: Level 1 | Z6: 193 | AA6: =IF(AC6<>1,1,"") -> 1 | AB6: =IF(AA6<>"",VLOOKUP(LARGE($AA$6:$AA$15,1),$AA$6:$AC$15,3),1) -> 872 | AC6: 114 | AD6: =IF(AC6<>1,VLOOKUP(AC6,Bereik,5),"") -> 45 | AE6: =IF(AC6<>1,VLOOKUP(AC6,Bereik,6),"") -> 31.02 | AF6: =IF(AC6<>1,VLOOKUP(AC6,Bereik,7),"") -> 3 | AG6: =IF(AC6<>1,VLOOKUP(AC6,Bereik,8),"") -> 44.78 | AH6: =PI()/180 -> 0.01745329252 | AI6: neen | AJ6: =MIN(O73:O75) -> 0 | BF6: =1*AD6+AE6/60 -> 45.517 | BH6: =1*AF6+AG6/60 -> 3.746333333 | BJ6: =BF6/180*PI() -> 0.7944215156 | BK6: =BH6/180*PI() -> 0.06538585154 | BL6: =BK7-BK6 -> -0.09361655219 | BM6: =PI()/2-BJ6 -> 0.7763748112 | BN6: =ACOS(COS(BM6)*COS(BM7)+SIN(BM6)*SIN(BM7)*COS(BL6)) -> 0.141914408 | BO6: =IF(ABS(SIN(BN6))<$Y$9,0,IF(ABS(ABS(BN6)-ABS(BL6))<$Y$9,BM7*BL6/BN6,ASIN((SIN(BM7)/SIN(BN6))*SIN(BL6)))) -> -0.4104745856 | BP6: =BO6/PI()*180 -> -23.51846135 | BQ6: =IF((BF7-BF6)<0,180-BP6,BP6) -> -23.51846135 | BR6: =IF((BQ6-Q2<0),360+BQ6-Q2,BQ6-Q2) -> 334.4815386
C7: =IF(Navinput!C7<>"",Navinput!C7,"") -> 51.53481218 | D7: =IF(Navinput!D7<>"",Navinput!D7,"") -> 99.97166319 | E7: =IF(Navinput!E7<>"",Navinput!E7,"") -> 92.77166319 | F7: =IF(Navinput!F7<>"",Navinput!F7,"") -> 00:20:00 | G7: =IF(Navinput!G7<>"",Navinput!G7,"") -> 00:19:00 | H7: =IF(Navinput!H7<>"",Navinput!H7,"") -> 159 | I7: =IF(Navinput!I7<>"",Navinput!I7,"") -> 5 | J7: =IF(Navinput!J7<>"",Navinput!J7,"") -> -5 | U7: Lever 2 | Z7: 192 | AA7: =IF(AC7<>1,2,"") -> 2 | AB7: =IF(AA7<>"",VLOOKUP(LARGE($AA$6:$AA$15,2),$AA$6:$AC$15,3),1) -> 320 | AC7: 1007 | AD7: 52 | AE7: 51.58 | AF7: -1 | AG7: -37.05 | AH7: =$AH$4/$AH$6*ACOS(COS((AD6+AE6/60)*$AH$6)*COS((AD7+AE7/60)*$AH$6)*COS(((AF7+AG7/60)-(AF6+AG6/60))*$AH$6)+SIN((AD6+AE6/60)*$AH$6)*SIN((AD7+AE7/60)*$AH$6)) -> 904.1366935 | AI7: Km | AJ7: =BR6 -> 334.4815386 | AK7: =AS7 -> 337.5815386 | AL7: =BA7 -> 139 | AQ7: =ROUND(ASIN($T$3/$G$1*SIN(PI()/180*($S$2-AJ7)))*180/PI(),1) -> 3.1 | AR7: =AJ7-$Q$2 -> 332.4815386 | AS7: =IF(ROUND(AJ7+AQ7,0)<=0,360+AJ7+AQ7,AJ7+AQ7) -> 337.5815386 | AT7: =AS7-$Q$2 -> 335.5815386 | AU7: =-1*ROUND($T$3*SIN(PI()/180*($S$2)),0) -> 0 | AV7: =-1*ROUND($T$3*COS(PI()/180*($S$2)),0) -> -20 | AW7: =1*ROUND($G$1*SIN(PI()/180*(AS7)),0) -> -60 | AX7: =1*ROUND($G$1*COS(PI()/180*(AS7)),0) -> 145 | AY7: =AU7+AW7 -> -60 | AZ7: =AV7+AX7 -> 125 | BA7: =ROUND((AY7^2 + AZ7^2)^0.5,0) -> 139 | BF7: 52.85966667 | BH7: -1.6175 | BJ7: 0.9225752248 | BK7: -0.02823070065 | BL7: 0.2366724643 | BM7: 0.648221102 | BN7: 0.15772104 | BO7: 1.307815706 | BP7: 74.93232032 | BQ7: 105.0676797 | BR7: =IF((BQ7-Q2<0),360+BQ7-Q2,BQ7-Q2) -> 103.0676797
A8: =IF(Navinput!A8<>"",Navinput!A8,"") -> ebgg | C8: =IF(Navinput!C8<>"",Navinput!C8,"") -> Geraardsbergen Overboelaere 62 Ft | M8: =IF(Navinput!M8<>"",Navinput!M8,"") ->  | Q8: temp/dewpoint : | U8: QNH : | W8: QFE : | Z8: 324 | AA8: =IF(AC8<>1,3,"") -> 3 | AB8: =IF(AA8<>"",VLOOKUP(LARGE($AA$6:$AA$15,3),$AA$6:$AC$15,3),1) -> 459 | AC8: 1431 | AD8: 49 | AE8: 41.7 | AF8: 11 | AG8: 56.57 | AH8: 1004.840746 | AI8: Km | AJ8: 103.0676797 | AK8: 95.96767968 | AL8: 160 | AQ8: -7.1 | AR8: 101.0676797 | AS8: 95.96767968 | AT8: 93.96767968 | AU8: 0 | AV8: -20 | AW8: 156 | AX8: -16 | AY8: 156 | AZ8: -36 | BA8: 160 | BF8: 49.695 | BH8: 11.94283333 | BJ8: 0.8673413718 | BK8: 0.2084417637 | BL8: -0.0760294511 | BM8: 0.703454955 | BN8: 0.05961167276 | BO8: -0.9108181914 | BP8: -52.18603827 | BQ8: -52.18603827 | BR8: =IF((BQ8-Q2<0),360+BQ8-Q2,BQ8-Q2) -> 305.8139617
C9: =IF(Navinput!C9<>"",Navinput!C9,"") -> 51.19217876 | D9: =IF(Navinput!D9<>"",Navinput!D9,"") -> 326.0503448 | E9: =IF(Navinput!E9<>"",Navinput!E9,"") -> 330.1503448 | F9: =IF(Navinput!F9<>"",Navinput!F9,"") -> 00:20:00 | G9: =IF(Navinput!G9<>"",Navinput!G9,"") -> 00:22:00 | H9: =IF(Navinput!H9<>"",Navinput!H9,"") -> 140 | I9: =IF(Navinput!I9<>"",Navinput!I9,"") -> 6 | J9: =IF(Navinput!J9<>"",Navinput!J9,"") -> -11 | Z9: 319 | AA9: =IF(AC9<>1,4,"") -> 4 | AB9: =IF(AA9<>"",VLOOKUP(LARGE($AA$6:$AA$15,4),$AA$6:$AC$15,3),1) -> 990 | AC9: 1060 | AD9: 51 | AE9: 42.6 | AF9: 7 | AG9: 35.2 | AH9: 379.7859674 | AI9: Km | AJ9: 305.8139617 | AK9: 311.7139617 | AL9: 144 | AQ9: 5.9 | AR9: 303.8139617 | AS9: 311.7139617 | AT9: 309.7139617 | AU9: 0 | AV9: -20 | AW9: -117 | AX9: 104 | AY9: -117 | AZ9: 84 | BA9: 144 | BF9: 51.71 | BH9: 7.586666667 | BJ9: 0.9025097562 | BK9: 0.1324123126 | BL9: -0.02298889513 | BM9: 0.6682865706 | BN9: 0.09747885428 | BO9: -0.1642369169 | BP9: -9.410082176 | BQ9: 189.4100822 | BR9: =IF((BQ9-Q2<0),360+BQ9-Q2,BQ9-Q2) -> 187.4100822
A10: =IF(Navinput!A10<>"",Navinput!A10,"") -> ebul | C10: =IF(Navinput!C10<>"",Navinput!C10,"") -> Ursel 95 Ft A/A 135.125 | M10: =IF(Navinput!M10<>"",Navinput!M10,"") ->  | P10: SS/SR | Q10: Fuel Management | Z10: 990 | AA10: =IF(AC10<>1,5,"") -> 5 | AB10: =IF(AA10<>"",VLOOKUP(LARGE($AA$6:$AA$15,5),$AA$6:$AC$15,3),1) -> 148 | AC10: 148 | AD10: 46 | AE10: 11.52 | AF10: 6 | AG10: 16.17 | AH10: 621.0377809 | AI10: Km | AJ10: 187.4100822 | AK10: 188.3100822 | AL10: 177 | AQ10: 0.9 | AR10: 185.4100822 | AS10: 188.3100822 | AT10: 186.3100822 | AU10: 0 | AV10: -20 | AW10: -23 | AX10: -155 | AY10: -23 | AZ10: -175 | BA10: 177 | BF10: 46.192 | BH10: 6.2695 | BJ10: 0.8062024881 | BK10: 0.1094234175 | BL10: -0.1066308907 | BM10: 0.7645938387 | BN10: 0.09049645372 | BO10: -0.8740978682 | BP10: -50.08211873 | BQ10: -50.08211873 | BR10: =IF((BQ10-Q2<0),360+BQ10-Q2,BQ10-Q2) -> 307.9178813
C11: =IF(Navinput!C11<>"",Navinput!C11,"") -> 39.74577901 | D11: =IF(Navinput!D11<>"",Navinput!D11,"") -> 213.4432595 | E11: =IF(Navinput!E11<>"",Navinput!E11,"") -> 217.4432595 | F11: =IF(Navinput!F11<>"",Navinput!F11,"") -> 00:15:00 | G11: =IF(Navinput!G11<>"",Navinput!G11,"") -> 00:14:00 | H11: =IF(Navinput!H11<>"",Navinput!H11,"") -> 173 | I11: =IF(Navinput!I11<>"",Navinput!I11,"") -> 4 | J11: =IF(Navinput!J11<>"",Navinput!J11,"") -> -15 | S11: Fuel Quantity : | T11: =IF(Navinput!T11<>"",Navinput!T11,"") ->  | U11: Minimum fuel quantity to take on board : | X11: =IF(Navinput!X11<>"",Navinput!X11,"") -> 27 | Z11: 148 | AA11: =IF(AC11<>1,6,"") -> 6 | AB11: =IF(AA11<>"",VLOOKUP(LARGE($AA$6:$AA$15,6),$AA$6:$AC$15,3),1) -> 1060 | AC11: 990 | AD11: 49 | AE11: 21.8 | AF11: 0 | AG11: 9.6 | AH11: 576.5529069 | AI11: Km | AJ11: 307.9178813 | AK11: 313.7178813 | AL11: 144 | AQ11: 5.8 | AR11: 305.9178813 | AS11: 313.7178813 | AT11: 311.7178813 | AU11: 0 | AV11: -20 | AW11: -113 | AX11: 109 | AY11: -113 | AZ11: 89 | BA11: 144 | BF11: 49.36333333 | BH11: 0.16 | BJ11: 0.8615526964 | BK11: 0.002792526803 | BL11: 0.1626268708 | BM11: 0.7092436304 | BN11: 0.1132375008 | BO11: 1.077150206 | BP11: 61.71616068 | BQ11: 61.71616068 | BR11: =IF((BQ11-Q2<0),360+BQ11-Q2,BQ11-Q2) -> 59.71616068
A12: =IF(Navinput!A12<>"",Navinput!A12,"") -> ebmo | C12: =IF(Navinput!C12<>"",Navinput!C12,"") -> Moorsele 66 Ft 120.500 | M12: =IF(Navinput!M12<>"",Navinput!M12,"") ->  | P12: =IF(Navinput!P12<>"",Navinput!P12,"") -> 06:01 | Z12: 42 | AA12: =IF(AC12<>1,7,"") -> 7 | AB12: =IF(AA12<>"",VLOOKUP(LARGE($AA$6:$AA$15,7),$AA$7:$AC$15,3),1) -> 1431 | AC12: 459 | AD12: 52 | AE12: 4.77 | AF12: 9 | AG12: 28.67 | AH12: 721.436118 | AI12: Km | AJ12: 59.71616068 | AK12: 53.41616068 | AL12: 146 | AQ12: -6.3 | AR12: 57.71616068 | AS12: 53.41616068 | AT12: 51.41616068 | AU12: 0 | AV12: -20 | AW12: 126 | AX12: 94 | AY12: 126 | AZ12: 74 | BA12: 146 | BF12: 52.0795 | BH12: 9.477833333 | BJ12: 0.9089587478 | BK12: 0.1654193976 | BL12: -0.05395103606 | BM12: 0.661837579 | BN12: 0.1456464775 | BO12: -0.27059998 | BP12: -15.50423679 | BQ12: 195.5042368 | BR12: =IF((BQ12-Q2<0),360+BQ12-Q2,BQ12-Q2) -> 193.5042368
C13: =IF(Navinput!C13<>"",Navinput!C13,"") ->  | D13: =IF(Navinput!D13<>"",Navinput!D13,"") ->  | E13: =IF(Navinput!E13<>"",Navinput!E13,"") ->  | F13: =IF(Navinput!F13<>"",Navinput!F13,"") ->  | G13: =IF(Navinput!G13<>"",Navinput!G13,"") ->  | H13: =IF(Navinput!H13<>"",Navinput!H13,"") ->  | I13: =IF(Navinput!I13<>"",Navinput!I13,"") ->  | J13: =IF(Navinput!J13<>"",Navinput!J13,"") ->  | P13: =IF(Navinput!P13<>"",Navinput!P13,"") -> 17:44 | S13: Fuel Quantity Needed : | U13: =IF(Navinput!U13<>"",Navinput!U13,"") -> 19 | W13: Reserve : | X13: =IF(Navinput!X13<>"",Navinput!X13,"") ->  | Z13: 896 | AA13: =IF(AC13<>1,8,"") -> 8 | AB13: =IF(AA13<>"",VLOOKUP(LARGE($AA$6:$AA$15,8),$AA$6:$AC$15,3),1) -> 1007 | AC13: 320 | AD13: 43 | AE13: 59.55 | AF13: 6 | AG13: 23.2 | AH13: 927.9137083 | AI13: Km | AJ13: 193.5042368 | AK13: 195.2042368 | AL13: 177 | AQ13: 1.7 | AR13: 191.5042368 | AS13: 195.2042368 | AT13: 193.2042368 | AU13: 0 | AV13: -20 | AW13: -41 | AX13: -152 | AY13: -41 | AZ13: -172 | BA13: 177 | BF13: 43.9925 | BH13: 6.386666667 | BJ13: 0.7678139712 | BK13: 0.1114683616 | BL13: -0.1170097819 | BM13: 0.8029823556 | BN13: 0.08790248064 | BO13: -1.19292 | BP13: -68.34928127 | BQ13: -68.34928127 | BR13: =IF((BQ13-Q2<0),360+BQ13-Q2,BQ13-Q2) -> 289.6507187
A14: =IF(Navinput!A14<>"",Navinput!A14,"") ->  | C14: =IF(Navinput!C14<>"",Navinput!C14,"") ->  | M14: =IF(Navinput!M14<>"",Navinput!M14,"") ->  | P14: ="(UTC)" -> (UTC) | Q14: Fuel Quant EMERG : | T14: =IF(Navinput!T14<>"",Navinput!T14,"") -> 00:30:00 | U14: =IF(Navinput!U14<>"",Navinput!U14,"") -> 8 | Z14: 1071 | AA14: =IF(AC14<>1,9,"") -> 9 | AB14: =IF(AA14<>"",VLOOKUP(LARGE($AA$6:$AA$15,9),$AA$6:$AC$15,3),1) -> 114 | AC14: 872 | AD14: 45 | AE14: 39.5 | AF14: 0 | AG14: -19.05 | AH14: 560.0267044 | AI14: Km | AJ14: 289.6507187 | AK14: 296.5507187 | AL14: 149 | AQ14: 6.9 | AR14: 287.6507187 | AS14: 296.5507187 | AT14: 294.5507187 | AU14: 0 | AV14: -20 | AW14: -140 | AX14: 70 | AY14: -140 | AZ14: 50 | BA14: 149 | BF14: 45.65833333 | BH14: -0.3175 | BJ14: 0.7968882476 | BK14: -0.005541420375 | BM14: 0.7739080792 | BR14: =IF((BQ14-Q2<0),360+BQ14-Q2,BQ14-Q2) -> 
C15: =IF(Navinput!C15<>"",Navinput!C15,"") ->  | D15: =IF(Navinput!D15<>"",Navinput!D15,"") ->  | E15: =IF(Navinput!E15<>"",Navinput!E15,"") ->  | F15: =IF(Navinput!F15<>"",Navinput!F15,"") ->  | G15: =IF(Navinput!G15<>"",Navinput!G15,"") ->  | H15: =IF(Navinput!H15<>"",Navinput!H15,"") ->  | I15: =IF(Navinput!I15<>"",Navinput!I15,"") ->  | J15: =IF(Navinput!J15<>"",Navinput!J15,"") ->  | R15: Fuel taxi / circuit : | S15: =IF(Navinput!S15<>"",Navinput!S15,"") -> 1 | T15: =IF(Navinput!T15<>"",Navinput!T15,"") -> 00:15:00 | U15: =IF(Navinput!U15<>"",Navinput!U15,"") -> 4 | Z15: 1 | AA15: =IF(AC15<>1,10,"") ->  | AB15: =IF(AA15<>"",VLOOKUP(LARGE($AA$6:$AA$15,10),$AA$6:$AC$15,3),1) -> 1 | AC15: 1 | AI15: Km | AU15: 0 | AV15: -20 | BR15: =IF((BQ15-Q2<0),360+BQ15-Q2,BQ15-Q2) -> 
A16: =IF(Navinput!A16<>"",Navinput!A16,"") ->  | C16: =IF(Navinput!C16<>"",Navinput!C16,"") ->  | M16: =IF(Navinput!M16<>"",Navinput!M16,"") ->  | AC16: 1 | AI16: Km | AU16: 0 | AV16: -20 | BR16: =IF((BQ16-Q2<0),360+BQ16-Q2,BQ16-Q2) -> 
C17: =IF(Navinput!C17<>"",Navinput!C17,"") ->  | D17: =IF(Navinput!D17<>"",Navinput!D17,"") ->  | E17: =IF(Navinput!E17<>"",Navinput!E17,"") ->  | F17: =IF(Navinput!F17<>"",Navinput!F17,"") ->  | G17: =IF(Navinput!G17<>"",Navinput!G17,"") ->  | H17: =IF(Navinput!H17<>"",Navinput!H17,"") ->  | I17: =IF(Navinput!I17<>"",Navinput!I17,"") ->  | J17: =IF(Navinput!J17<>"",Navinput!J17,"") ->  | P17: WEIGHTS | Z17: 1071 | AC17: 1 | AI17: Km | AU17: 0 | AV17: -20 | BR17: =IF((BQ17-Q2<0),360+BQ17-Q2,BQ17-Q2) -> 
A18: =IF(Navinput!A18<>"",Navinput!A18,"") ->  | C18: =IF(Navinput!C18<>"",Navinput!C18,"") ->  | M18: =IF(Navinput!M18<>"",Navinput!M18,"") ->  | P18: Empty | Q18: =IF(Navinput!Q18<>"",Navinput!Q18,"") -> 301 | R18: =IF(Navinput!R18<>"",Navinput!R18,"") -> 1558 | S18: =IF(Navinput!S18<>"",Navinput!S18,"") -> 468958 | U18: =IF(Navinput!U18<>"",Navinput!U18,"") ->  | Z18: 896 | AC18: 1 | AI18: Km | AU18: 0 | AV18: -20 | BR18: =IF((BQ18-Q2<0),360+BQ18-Q2,BQ18-Q2) -> 
C19: =IF(Navinput!C19<>"",Navinput!C19,"") ->  | D19: =IF(Navinput!D19<>"",Navinput!D19,"") ->  | E19: =IF(Navinput!E19<>"",Navinput!E19,"") ->  | F19: =IF(Navinput!F19<>"",Navinput!F19,"") ->  | G19: =IF(Navinput!G19<>"",Navinput!G19,"") ->  | H19: =IF(Navinput!H19<>"",Navinput!H19,"") ->  | I19: =IF(Navinput!I19<>"",Navinput!I19,"") ->  | J19: =IF(Navinput!J19<>"",Navinput!J19,"") ->  | P19: Pilot/pass | Q19: =IF(Navinput!Q19<>"",Navinput!Q19,"") ->  | R19: =IF(Navinput!R19<>"",Navinput!R19,"") -> 1785 | S19: =IF(Navinput!S19<>"",Navinput!S19,"") ->  | U19: =IF(Navinput!U19<>"",Navinput!U19,"") -> 173 | W19: =IF(Navinput!W19<>"",Navinput!W19,"") -> 1500mm-1750mm | Z19: 42 | AC19: 1 | AI19: Km | AU19: 0 | AV19: -20 | BR19: =IF((BQ19-Q2<0),360+BQ19-Q2,BQ19-Q2) -> 
A20: =IF(Navinput!A20<>"",Navinput!A20,"") ->  | C20: =IF(Navinput!C20<>"",Navinput!C20,"") ->  | M20: =IF(Navinput!M20<>"",Navinput!M20,"") ->  | P20: Pass acht | Q20: =IF(Navinput!Q20<>"",Navinput!Q20,"") ->  | R20: =IF(Navinput!R20<>"",Navinput!R20,"") -> 1785 | S20: =IF(Navinput!S20<>"",Navinput!S20,"") ->  | Z20: 148 | AC20: 1 | AI20: Km | AU20: 0 | AV20: -20 | BR20: =IF((BQ20-Q2<0),360+BQ20-Q2,BQ20-Q2) -> 
C21: =IF(Navinput!C21<>"",Navinput!C21,"") ->  | D21: =IF(Navinput!D21<>"",Navinput!D21,"") ->  | E21: =IF(Navinput!E21<>"",Navinput!E21,"") ->  | F21: =IF(Navinput!F21<>"",Navinput!F21,"") ->  | G21: =IF(Navinput!G21<>"",Navinput!G21,"") ->  | H21: =IF(Navinput!H21<>"",Navinput!H21,"") ->  | I21: =IF(Navinput!I21<>"",Navinput!I21,"") ->  | J21: =IF(Navinput!J21<>"",Navinput!J21,"") ->  | P21: Fuel | Q21: =IF(Navinput!Q21<>"",Navinput!Q21,"") ->  | R21: =IF(Navinput!R21<>"",Navinput!R21,"") -> 2000 | S21: =IF(Q21<>"",Q21*R21*0.755,"") ->  | U21: Hour Counter | V21: Arrival | Z21: 990 | AC21: 1 | AQ21: 0 | AR21: -2 | AS21: 360 | AT21: 358 | AU21: 0 | AV21: -20 | AW21: 0 | AX21: 157 | AY21: 0 | AZ21: 137 | BA21: 137
A22: =IF(Navinput!A22<>"",Navinput!A22,"") ->  | C22: =IF(Navinput!C22<>"",Navinput!C22,"") ->  | M22: =IF(Navinput!M22<>"",Navinput!M22,"") ->  | P22: LUGG | Q22: =IF(Navinput!Q22<>"",Navinput!Q22,"") ->  | R22: =IF(Navinput!R22<>"",Navinput!R22,"") -> 2300 | S22: =IF(Q22<>"",Q22*R22,"") ->  | V22: Departure | Z22: 319 | AC22: 1 | AS22: 360 | AT22: 358 | AU22: 0 | AV22: -20 | AW22: 0 | AX22: 157 | AY22: 0 | AZ22: 137 | BA22: 137
C23: =IF(Navinput!C23<>"",Navinput!C23,"") ->  | D23: =IF(Navinput!D23<>"",Navinput!D23,"") ->  | E23: =IF(Navinput!E23<>"",Navinput!E23,"") ->  | F23: =IF(Navinput!F23<>"",Navinput!F23,"") ->  | G23: =IF(Navinput!G23<>"",Navinput!G23,"") ->  | H23: =IF(Navinput!H23<>"",Navinput!H23,"") ->  | I23: =IF(Navinput!I23<>"",Navinput!I23,"") ->  | J23: =IF(Navinput!J23<>"",Navinput!J23,"") ->  | Q23: =IF(Navinput!Q23<>"",Navinput!Q23,"") ->  | R23: =IF(Navinput!R23<>"",Navinput!R23,"") ->  | S23: =IF(Navinput!S23<>"",Navinput!S23,"") ->  | V23: Total : | Z23: 324 | AC23: 1
A24: =IF(Navinput!A24<>"",Navinput!A24,"") ->  | C24: =IF(Navinput!C24<>"",Navinput!C24,"") ->  | P24: ATIS : | Q24: Runway : | V24: Transition level | Z24: 192 | AC24: 1
P25: ARR | Q25: Wind : | T25: Clouds | U25: Level 1 | Z25: 193
C26: TOTAL TRIP | E26: TOTAL EET | G26: TOTAL EETW | I26: TOTAL FUEL | L26: FLTTME | U26: Level 2 | Z26: 1
C27: =SUM(C7:C23) -> 142.47277 | E27: =SUM(F7:F23) -> 0.03819444444 | G27: =IF(Navinput!G27<>"",Navinput!G27,"") -> 0.03819444444 | I27: =IF(Navinput!I27<>"",Navinput!I27,"") -> 19 | L27: =IF(Navinput!L27<>"",Navinput!L27,"") -> 0.04861111111 | Q27: temp/dewpoint : | U27: QNH : | W27: QFE :

Sheet Nav2
A1: =" Aircraft : " -> Aircraft : | D1: =Navinput!D1 -> A22L | F1: ="Vcr : " -> Vcr : | G1: =Navinput!G1 -> 157 | J1: =Navinput!I1 -> OO-HO1 | Q1: Wind : | S1: REF | U1: 30 | W1: 40 | AC1: 8 | AH1: R_aarde | AI1: 6378137
A2: ="Pilot : " -> Pilot : | C2: =Navinput!C2 ->  | G2: Consumption : | J2: =Navinput!J2 -> 16 | L2: =IF(D1<>"",Navinput!L2,"") -> 2025-03-13 | P2: Variatie : | Q2: =Navinput!Q2 -> 2 | R2: =IF(Q2<0,"(W)","(E)") -> (E) | AC2: 12 | AH2: Eps | AI2: 1e-07
A3: ICAO | C3: DIST | D3: CM | E3: CMW | F3: EET | G3: EETW | H3: GS | I3: BV | J3: BR | K3: ETA | L3: AETA | M3: Remarks | P3: ATIS : | T3: =ROUND(T2*1.852,0) -> 0
P4: DEP | Q4: Runway : | W4: Transition level | AH4: 111.1949267 | AI4: ja | AJ4: =MIN(#REF!) -> 
M5: =IF(Navinput!M5<>"",Navinput!M5,"") -> 
A6: =IF(Navinput!A6<>"",Navinput!A6,"") -> ebmo | C6: =IF(Navinput!C6<>"",Navinput!C6,"") -> Moorsele 66 Ft 120.500 | Q6: Wind | T6: Clouds | U6: Level 1 | Z6: 193 | AA6: =IF(AC6<>1,1,"") -> 1 | AB6: =IF(AA6<>"",VLOOKUP(LARGE($AA$6:$AA$15,1),$AA$6:$AC$15,3),1) -> 872 | AC6: 114 | AD6: =IF(AC6<>1,VLOOKUP(AC6,Bereik,5),"") -> 45 | AE6: =IF(AC6<>1,VLOOKUP(AC6,Bereik,6),"") -> 31.02 | AF6: =IF(AC6<>1,VLOOKUP(AC6,Bereik,7),"") -> 3 | AG6: =IF(AC6<>1,VLOOKUP(AC6,Bereik,8),"") -> 44.78 | AH6: =PI()/180 -> 0.01745329252 | AI6: neen | AJ6: =MIN(O73:O75) -> 0 | BF6: =1*AD6+AE6/60 -> 45.517 | BH6: =1*AF6+AG6/60 -> 3.746333333 | BJ6: =BF6/180*PI() -> 0.7944215156 | BK6: =BH6/180*PI() -> 0.06538585154 | BL6: =BK7-BK6 -> -0.09361655219 | BM6: =PI()/2-BJ6 -> 0.7763748112 | BN6: =ACOS(COS(BM6)*COS(BM7)+SIN(BM6)*SIN(BM7)*COS(BL6)) -> 0.141914408 | BO6: =IF(ABS(SIN(BN6))<$Y$9,0,IF(ABS(ABS(BN6)-ABS(BL6))<$Y$9,BM7*BL6/BN6,ASIN((SIN(BM7)/SIN(BN6))*SIN(BL6)))) -> -0.4104745856 | BP6: =BO6/PI()*180 -> -23.51846135 | BQ6: =IF((BF7-BF6)<0,180-BP6,BP6) -> -23.51846135 | BR6: =IF((BQ6-Q2<0),360+BQ6-Q2,BQ6-Q2) -> 334.4815386
C7: =IF(Navinput!C7<>"",Navinput!C7,"") -> 51.53481218 | D7: =IF(Navinput!D7<>"",Navinput!D7,"") -> 99.97166319 | F7: =IF(Navinput!F7<>"",Navinput!F7,"") -> 00:20:00 | U7: Level 2 | Z7: 192 | AA7: =IF(AC7<>1,2,"") -> 2 | AB7: =IF(AA7<>"",VLOOKUP(LARGE($AA$6:$AA$15,2),$AA$6:$AC$15,3),1) -> 320 | AC7: 1007 | AD7: 52 | AE7: 51.58 | AF7: -1 | AG7: -37.05 | AH7: =$AH$4/$AH$6*ACOS(COS((AD6+AE6/60)*$AH$6)*COS((AD7+AE7/60)*$AH$6)*COS(((AF7+AG7/60)-(AF6+AG6/60))*$AH$6)+SIN((AD6+AE6/60)*$AH$6)*SIN((AD7+AE7/60)*$AH$6)) -> 904.1366935 | AI7: Km | AJ7: =BR6 -> 334.4815386 | AK7: =AS7 -> 334.4815386 | AL7: =BA7 -> 157 | AQ7: =ROUND(ASIN($T$3/$G$1*SIN(PI()/180*($S$2-AJ7)))*180/PI(),1) -> 0 | AR7: =AJ7-$Q$2 -> 332.4815386 | AS7: =IF(ROUND(AJ7+AQ7,0)<=0,360+AJ7+AQ7,AJ7+AQ7) -> 334.4815386 | AT7: =AS7-$Q$2 -> 332.4815386 | AU7: =-1*ROUND($T$3*SIN(PI()/180*($S$2)),0) -> 0 | AV7: =-1*ROUND($T$3*COS(PI()/180*($S$2)),0) -> 0 | AW7: =1*ROUND($G$1*SIN(PI()/180*(AS7)),0) -> -68 | AX7: =1*ROUND($G$1*COS(PI()/180*(AS7)),0) -> 142 | AY7: =AU7+AW7 -> -68 | AZ7: =AV7+AX7 -> 142 | BA7: =ROUND((AY7^2 + AZ7^2)^0.5,0) -> 157 | BF7: 52.85966667 | BH7: -1.6175 | BJ7: 0.9225752248 | BK7: -0.02823070065 | BL7: 0.2366724643 | BM7: 0.648221102 | BN7: 0.15772104 | BO7: 1.307815706 | BP7: 74.93232032 | BQ7: 105.0676797 | BR7: =IF((BQ7-Q2<0),360+BQ7-Q2,BQ7-Q2) -> 103.0676797
A8: =IF(Navinput!A8<>"",Navinput!A8,"") -> ebgg | C8: =IF(Navinput!C8<>"",Navinput!C8,"") -> Geraardsbergen Overboelaere 62 Ft | M8: =IF(Navinput!M8<>"",Navinput!M8,"") ->  | Q8: temp/dewpoint : | U8: QNH : | W8: QFE : | Z8: 324 | AA8: =IF(AC8<>1,3,"") -> 3 | AB8: =IF(AA8<>"",VLOOKUP(LARGE($AA$6:$AA$15,3),$AA$6:$AC$15,3),1) -> 459 | AC8: 1431 | AD8: 49 | AE8: 41.7 | AF8: 11 | AG8: 56.57 | AH8: 1004.840746 | AI8: Km | AJ8: 103.0676797 | AK8: 103.0676797 | AL8: 157 | AQ8: 0 | AR8: 101.0676797 | AS8: 103.0676797 | AT8: 101.0676797 | AU8: 0 | AV8: 0 | AW8: 153 | AX8: -35 | AY8: 153 | AZ8: -35 | BA8: 157 | BF8: 49.695 | BH8: 11.94283333 | BJ8: 0.8673413718 | BK8: 0.2084417637 | BL8: -0.0760294511 | BM8: 0.703454955 | BN8: 0.05961167276 | BO8: -0.9108181914 | BP8: -52.18603827 | BQ8: -52.18603827 | BR8: =IF((BQ8-Q2<0),360+BQ8-Q2,BQ8-Q2) -> 305.8139617
C9: =IF(Navinput!C9<>"",Navinput!C9,"") -> 51.19217876 | D9: =IF(Navinput!D9<>"",Navinput!D9,"") -> 326.0503448 | F9: =IF(Navinput!F9<>"",Navinput!F9,"") -> 00:20:00 | Z9: 319 | AA9: =IF(AC9<>1,4,"") -> 4 | AB9: =IF(AA9<>"",VLOOKUP(LARGE($AA$6:$AA$15,4),$AA$6:$AC$15,3),1) -> 990 | AC9: 1060 | AD9: 51 | AE9: 42.6 | AF9: 7 | AG9: 35.2 | AH9: 379.7859674 | AI9: Km | AJ9: 305.8139617 | AK9: 305.8139617 | AL9: 157 | AQ9: 0 | AR9: 303.8139617 | AS9: 305.8139617 | AT9: 303.8139617 | AU9: 0 | AV9: 0 | AW9: -127 | AX9: 92 | AY9: -127 | AZ9: 92 | BA9: 157 | BF9: 51.71 | BH9: 7.586666667 | BJ9: 0.9025097562 | BK9: 0.1324123126 | BL9: -0.02298889513 | BM9: 0.6682865706 | BN9: 0.09747885428 | BO9: -0.1642369169 | BP9: -9.410082176 | BQ9: 189.4100822 | BR9: =IF((BQ9-Q2<0),360+BQ9-Q2,BQ9-Q2) -> 187.4100822
A10: =IF(Navinput!A10<>"",Navinput!A10,"") -> ebul | C10: =IF(Navinput!C10<>"",Navinput!C10,"") -> Ursel 95 Ft A/A 135.125 | M10: =IF(Navinput!M10<>"",Navinput!M10,"") ->  | P10: SS/SR | Q10: Fuel Management | Z10: 990 | AA10: =IF(AC10<>1,5,"") -> 5 | AB10: =IF(AA10<>"",VLOOKUP(LARGE($AA$6:$AA$15,5),$AA$6:$AC$15,3),1) -> 148 | AC10: 148 | AD10: 46 | AE10: 11.52 | AF10: 6 | AG10: 16.17 | AH10: 621.0377809 | AI10: Km | AJ10: 187.4100822 | AK10: 187.4100822 | AL10: 157 | AQ10: 0 | AR10: 185.4100822 | AS10: 187.4100822 | AT10: 185.4100822 | AU10: 0 | AV10: 0 | AW10: -20 | AX10: -156 | AY10: -20 | AZ10: -156 | BA10: 157 | BF10: 46.192 | BH10: 6.2695 | BJ10: 0.8062024881 | BK10: 0.1094234175 | BL10: -0.1066308907 | BM10: 0.7645938387 | BN10: 0.09049645372 | BO10: -0.8740978682 | BP10: -50.08211873 | BQ10: -50.08211873 | BR10: =IF((BQ10-Q2<0),360+BQ10-Q2,BQ10-Q2) -> 307.9178813
C11: =IF(Navinput!C11<>"",Navinput!C11,"") -> 39.74577901 | D11: =IF(Navinput!D11<>"",Navinput!D11,"") -> 213.4432595 | F11: =IF(Navinput!F11<>"",Navinput!F11,"") -> 00:15:00 | S11: Fuel Quantity : | U11: Minimum fuel quantity to take on board : | Z11: 148 | AA11: =IF(AC11<>1,6,"") -> 6 | AB11: =IF(AA11<>"",VLOOKUP(LARGE($AA$6:$AA$15,6),$AA$6:$AC$15,3),1) -> 1060 | AC11: 990 | AD11: 49 | AE11: 21.8 | AF11: 0 | AG11: 9.6 | AH11: 576.5529069 | AI11: Km | AJ11: 307.9178813 | AK11: 307.9178813 | AL11: 157 | AQ11: 0 | AR11: 305.9178813 | AS11: 307.9178813 | AT11: 305.9178813 | AU11: 0 | AV11: 0 | AW11: -124 | AX11: 96 | AY11: -124 | AZ11: 96 | BA11: 157 | BF11: 49.36333333 | BH11: 0.16 | BJ11: 0.8615526964 | BK11: 0.002792526803 | BL11: 0.1626268708 | BM11: 0.7092436304 | BN11: 0.1132375008 | BO11: 1.077150206 | BP11: 61.71616068 | BQ11: 61.71616068 | BR11: =IF((BQ11-Q2<0),360+BQ11-Q2,BQ11-Q2) -> 59.71616068
A12: =IF(Navinput!A12<>"",Navinput!A12,"") -> ebmo | C12: =IF(Navinput!C12<>"",Navinput!C12,"") -> Moorsele 66 Ft 120.500 | M12: =IF(Navinput!M12<>"",Navinput!M12,"") ->  | P12: =IF(Navinput!P12<>"",Navinput!P12,"") -> 06:01 | Z12: 42 | AA12: =IF(AC12<>1,7,"") -> 7 | AB12: =IF(AA12<>"",VLOOKUP(LARGE($AA$6:$AA$15,7),$AA$7:$AC$15,3),1) -> 1431 | AC12: 459 | AD12: 52 | AE12: 4.77 | AF12: 9 | AG12: 28.67 | AH12: 721.436118 | AI12: Km | AJ12: 59.71616068 | AK12: 59.71616068 | AL12: 157 | AQ12: 0 | AR12: 57.71616068 | AS12: 59.71616068 | AT12: 57.71616068 | AU12: 0 | AV12: 0 | AW12: 136 | AX12: 79 | AY12: 136 | AZ12: 79 | BA12: 157 | BF12: 52.0795 | BH12: 9.477833333 | BJ12: 0.9089587478 | BK12: 0.1654193976 | BL12: -0.05395103606 | BM12: 0.661837579 | BN12: 0.1456464775 | BO12: -0.27059998 | BP12: -15.50423679 | BQ12: 195.5042368 | BR12: =IF((BQ12-Q2<0),360+BQ12-Q2,BQ12-Q2) -> 193.5042368
C13: =IF(Navinput!C13<>"",Navinput!C13,"") ->  | D13: =IF(Navinput!D13<>"",Navinput!D13,"") ->  | F13: =IF(Navinput!F13<>"",Navinput!F13,"") ->  | P13: =IF(Navinput!P13<>"",Navinput!P13,"") -> 17:44 | S13: Fuel Quantity Needed : | W13: Reserve : | Z13: 896 | AA13: =IF(AC13<>1,8,"") -> 8 | AB13: =IF(AA13<>"",VLOOKUP(LARGE($AA$6:$AA$15,8),$AA$6:$AC$15,3),1) -> 1007 | AC13: 320 | AD13: 43 | AE13: 59.55 | AF13: 6 | AG13: 23.2 | AH13: 927.9137083 | AI13: Km | AJ13: 193.5042368 | AK13: 193.5042368 | AL13: 157 | AQ13: 0 | AR13: 191.5042368 | AS13: 193.5042368 | AT13: 191.5042368 | AU13: 0 | AV13: 0 | AW13: -37 | AX13: -153 | AY13: -37 | AZ13: -153 | BA13: 157 | BF13: 43.9925 | BH13: 6.386666667 | BJ13: 0.7678139712 | BK13: 0.1114683616 | BL13: -0.1170097819 | BM13: 0.8029823556 | BN13: 0.08790248064 | BO13: -1.19292 | BP13: -68.34928127 | BQ13: -68.34928127 | BR13: =IF((BQ13-Q2<0),360+BQ13-Q2,BQ13-Q2) -> 289.6507187
A14: =IF(Navinput!A14<>"",Navinput!A14,"") ->  | C14: =IF(Navinput!C14<>"",Navinput!C14,"") ->  | M14: =IF(Navinput!M14<>"",Navinput!M14,"") ->  | P14: ="(UTC)" -> (UTC) | Q14: Fuel Quant EMERG : | Z14: 1071 | AA14: =IF(AC14<>1,9,"") -> 9 | AB14: =IF(AA14<>"",VLOOKUP(LARGE($AA$6:$AA$15,9),$AA$6:$AC$15,3),1) -> 114 | AC14: 872 | AD14: 45 | AE14: 39.5 | AF14: 0 | AG14: -19.05 | AH14: 560.0267044 | AI14: Km | AJ14: 289.6507187 | AK14: 289.6507187 | AL14: 157 | AQ14: 0 | AR14: 287.6507187 | AS14: 289.6507187 | AT14: 287.6507187 | AU14: 0 | AV14: 0 | AW14: -148 | AX14: 53 | AY14: -148 | AZ14: 53 | BA14: 157 | BF14: 45.65833333 | BH14: -0.3175 | BJ14: 0.7968882476 | BK14: -0.005541420375 | BM14: 0.7739080792 | BR14: =IF((BQ14-Q2<0),360+BQ14-Q2,BQ14-Q2) -> 
C15: =IF(Navinput!C15<>"",Navinput!C15,"") ->  | D15: =IF(Navinput!D15<>"",Navinput!D15,"") ->  | F15: =IF(Navinput!F15<>"",Navinput!F15,"") ->  | R15: Fuel taxi / circuit : | Z15: 1 | AA15: =IF(AC15<>1,10,"") ->  | AB15: =IF(AA15<>"",VLOOKUP(LARGE($AA$6:$AA$15,10),$AA$6:$AC$15,3),1) -> 1 | AC15: 1 | AI15: Km | AU15: 0 | AV15: 0 | BR15: =IF((BQ15-Q2<0),360+BQ15-Q2,BQ15-Q2) -> 
A16: =IF(Navinput!A16<>"",Navinput!A16,"") ->  | C16: =IF(Navinput!C16<>"",Navinput!C16,"") ->  | M16: =IF(Navinput!M16<>"",Navinput!M16,"") ->  | AC16: 1 | AI16: Km | AU16: 0 | AV16: 0 | BR16: =IF((BQ16-Q2<0),360+BQ16-Q2,BQ16-Q2) -> 
C17: =IF(Navinput!C17<>"",Navinput!C17,"") ->  | D17: =IF(Navinput!D17<>"",Navinput!D17,"") ->  | F17: =IF(Navinput!F17<>"",Navinput!F17,"") ->  | P17: WEIGHTS | Z17: 1071 | AC17: 1 | AI17: Km | AU17: 0 | AV17: 0 | BR17: =IF((BQ17-Q2<0),360+BQ17-Q2,BQ17-Q2) -> 
A18: =IF(Navinput!A18<>"",Navinput!A18,"") ->  | C18: =IF(Navinput!C18<>"",Navinput!C18,"") ->  | M18: =IF(Navinput!M18<>"",Navinput!M18,"") ->  | P18: Empty | Q18: =IF(Navinput!Q18<>"",Navinput!Q18,"") -> 301 | R18: =IF(Navinput!R18<>"",Navinput!R18,"") -> 1558 | S18: =IF(Navinput!S18<>"",Navinput!S18,"") -> 468958 | Z18: 896 | AC18: 1 | AI18: Km | AU18: 0 | AV18: 0 | BR18: =IF((BQ18-Q2<0),360+BQ18-Q2,BQ18-Q2) -> 
C19: =IF(Navinput!C19<>"",Navinput!C19,"") ->  | D19: =IF(Navinput!D19<>"",Navinput!D19,"") ->  | F19: =IF(Navinput!F19<>"",Navinput!F19,"") ->  | P19: Pilot/pass | R19: =IF(Navinput!R19<>"",Navinput!R19,"") -> 1785 | U19: =IF(Navinput!U19<>"",Navinput!U19,"") -> 173 | W19: =IF(Navinput!W19<>"",Navinput!W19,"") -> 1500mm-1750mm | Z19: 42 | AC19: 1 | AI19: Km | AU19: 0 | AV19: 0 | BR19: =IF((BQ19-Q2<0),360+BQ19-Q2,BQ19-Q2) -> 
A20: =IF(Navinput!A20<>"",Navinput!A20,"") ->  | C20: =IF(Navinput!C20<>"",Navinput!C20,"") ->  | M20: =IF(Navinput!M20<>"",Navinput!M20,"") ->  | P20: Pass acht | R20: =Navinput!R20 -> 1785 | S20: =IF(Q20<>"",Q20*R20,"") ->  | Z20: 148 | AC20: 1 | AI20: Km | AU20: 0 | AV20: 0 | BR20: =IF((BQ20-Q2<0),360+BQ20-Q2,BQ20-Q2) -> 
C21: =IF(Navinput!C21<>"",Navinput!C21,"") ->  | D21: =IF(Navinput!D21<>"",Navinput!D21,"") ->  | F21: =IF(Navinput!F21<>"",Navinput!F21,"") ->  | P21: Fuel | R21: =IF(Navinput!R21<>"",Navinput!R21,"") -> 2000 | S21: =IF(Q22<>"",Q22*R22,"") ->  | U21: Hour Counter | V21: Arrival | Z21: 990 | AC21: 1 | AQ21: 0 | AR21: -2 | AS21: 360 | AT21: 358 | AU21: 0 | AV21: 0 | AW21: 0 | AX21: 157 | AY21: 0 | AZ21: 157 | BA21: 157
A22: =IF(Navinput!A22<>"",Navinput!A22,"") ->  | C22: =IF(Navinput!C22<>"",Navinput!C22,"") ->  | M22: =IF(Navinput!M22<>"",Navinput!M22,"") ->  | P22: LUGG | R22: =IF(Navinput!R22<>"",Navinput!R22,"") -> 2300 | V22: Departure | Z22: 319 | AC22: 1 | AS22: 360 | AT22: 358 | AU22: 0 | AV22: 0 | AW22: 0 | AX22: 157 | AY22: 0 | AZ22: 157 | BA22: 157
C23: =IF(Navinput!C23<>"",Navinput!C23,"") ->  | D23: =IF(Navinput!D23<>"",Navinput!D23,"") ->  | E23: =IF(AC15>1,AS15,"") ->  | F23: =IF(Navinput!F23<>"",Navinput!F23,"") ->  | G23: =IF(AC15>1,TIME(0,ROUND(C23*60/H23,0),0),"") ->  | H23: =IF(AC15>1,BA15,"") ->  | I23: =IF(AC15>1,ROUND(ROUNDUP(C23*60/H23,0)*$J$2/60,0),"") ->  | J23: =IF(AC15>1,J21-I23,"") ->  | V23: Total : | Z23: 324 | AC23: 1
A24: =IF(Navinput!A24<>"",Navinput!A24,"") ->  | C24: =IF(Navinput!C24<>"",Navinput!C24,"") ->  | P24: ATIS : | Q24: Runway : | V24: Transition level | Z24: 192 | AC24: 1
P25: ARR | Q25: Wind : | T25: Clouds | U25: Level 1 | Z25: 193
C26: TOTAL TRIP | E26: TOTAL EET | G26: TOTAL EETW | I26: TOTAL FUEL | L26: FLTTME | U26: Level 2 | Z26: 1
C27: =SUM(C7:C23) -> 142.47277 | E27: =SUM(F7:F23) -> 0.03819444444 | Q27: temp/dewpoint : | U27: QNH : | W27: QFE :

Sheet Piloten
C3: NAAM PILOOT
A4: 1 | C4: Pilootkeuze
A5: 2 | C5: Couckhuyt Didier
A6: 3 | C6: Degezelle Hendrik
A7: 4 | C7: Janda Johan
A8: 5 | C8: Van Eeckhout Tony
A9: 6 | C9: VCM piloot
A10: 7
A11: 8
A12: 9
A13: 10
A14: 11
A15: 12
A16: 13
A17: 14
A18: 15
A19: 16
A20: 17
A21: 18
A22: 19
A23: 20
A24: 21
A25: 22
A26: 23
A27: 24
A28: 25
A29: 26
A30: 27
A31: 28
A32: 29
A33: 30
A34: 31
A35: 32
A36: 33
A37: 34
A38: 35
A39: 36
A40: 37
A41: 38
A42: 39
A43: 40
A44: 41

Sheet Vliegtuigen
D3: VLIEGTUIGEN
C5: TOESTELTYPE | D5: IMMAT | E5: Cruise V | G5: VERBRUIK | H5: Empty W | J5: Empty Arm | K5: Pil Arm | L5: Pass acht | M5: Fuel Arm | N5: Lugg Arm | O5: Min | P5: Max | Q5: MAX TW
A8: 1 | C8: Vliegtuigkeuze | I8: =IF(G8<>"",G8&" "&H8,"") -> 
A9: 2 | C9: A 22 | D9: OO-E84 | E9: 150 | F9: =IF(C9<>"",C9& " " & D9,"") -> A 22 OO-E84 | G9: 13 | H9: 265 | I9: 13 265 | J9: 1525 | K9: 1600 | M9: 1900 | N9: 2200 | O9: 1440 | P9: 1740 | Q9: 450
A10: 3 | C10: A22L | D10: OO-HO1 | E10: 157 | F10: A22L OO-HO1 | G10: 16 | H10: 301 | I10: 16 301 | J10: 1558 | K10: 1785 | L10: 1785 | M10: 2000 | N10: 2300 | O10: 1500 | P10: 1750 | Q10: 173
A11: 4 | C11: Asso V | D11: OO-E49 | E11: 210 | F11: Asso V OO-E49 | G11: 15 | H11: 279 | I11: 15 279 | J11: 120 | K11: 65 | M11: 25.4 | N11: 110 | O11: 30 | P11: 50 | Q11: 450
A12: 5 | C12: Bristell XL8 | D12: FJUPK | E12: 200 | F12: Bristell XL8 FJUPK | G12: 15 | H12: 280 | I12: 15 280 | J12: 37 | Q12: 472.5
A13: 6 | C13: Cessna 172 | D13: OO-WVS | E13: 185 | F13: Cessna 172 OO-WVS | G13: 40 | H13: 665 | I13: 40 665 | K13: 30 | M13: 28 | N13: 12 | O13: 52 | P13: 105 | Q13: 1150
A14: 7 | C14: Coyote | D14: OO-C78 | E14: 130 | F14: Coyote OO-C78 | G14: 15 | H14: 262 | I14: 15 262
A15: 8 | C15: Eurofox | D15: 59-CBQ | E15: 160 | F15: Eurofox 59-CBQ | G15: 10 | H15: 265 | I15: 10 265 | J15: 295
A16: 9 | C16: FK9 | D16: 59-CNS | E16: 170 | F16: FK9 59-CNS | G16: 12 | H16: 285 | I16: 12 285 | J16: 310 | K16: 430 | M16: 1050 | N16: 1190 | O16: 313 | P16: 440 | Q16: 450
A17: 10 | C17: MCR | D17: OO-E32 | E17: 220 | F17: MCR OO-E32 | G17: 15 | H17: 260 | I17: 15 260 | K17: 700 | M17: 2 | N17: 1300 | O17: 120 | P17: 360 | Q17: 450
A18: 11 | C18: Skyranger | D18: OO-D84 | E18: 120 | F18: Skyranger OO-D84 | G18: 15 | H18: 245 | I18: 15 245 | J18: 109 | Q18: 450Kg
A19: 12 | C19: Sting | D19: 59-CLP | E19: 200 | F19: Sting 59-CLP | G19: 25 | H19: 300 | I19: 25 300 | J19: 120 | Q19: 450
A20: 13 | C20: TB20 | D20: N97GP | E20: 300 | F20: TB20 N97GP | G20: 50 | H20: 905 | I20: 50 905 | J20: 971 | K20: 1153 | L20: 2028 | M20: 1084 | N20: 1085 | O20: 1072 | P20: 1204 | Q20: 1400
A21: 14
A22: 15
A23: 16
A24: 17
A25: 18
A26: 19
A27: 20
A28: 21
A29: 22
A30: 23
A31: 24
A32: 25
A33: 26
A34: 27
A35: 28
A36: 29
A37: 30
A38: 31
A39: 32
A40: 33

Sheet Icao
B2: Afkort. | C2: Naam | D2: L | E2: GR | F2: Min | G2: GR | H2: Min | I2: Elevation | J2: Comm
A4: 1
A5: 2 | B5: ABB | C5: Abbeville VOR | E5: 50 | F5: 8.1 | G5: 1 | H5: 51.27
A6: 3 | B6: ABU | C6: Altenburg NDB | E6: 50 | F6: 59.62 | G6: 12 | H6: 31.25
A7: 4 | B7: ADN | C7: Aberdeen VOR | E7: 57 | F7: 18.64 | G7: -2 | H7: -16.03
A8: 5 | B8: AFI | C8: Affligem VOR | E8: 50 | F8: 54.47 | G8: 4 | H8: 8.33
A9: 6 | B9: AGB | C9: Augsburg NDB | E9: 48 | F9: 25.45 | G9: 10 | H9: 55.98
A10: 7 | B10: AGN | C10: Agen VOR | E10: 43 | F10: 53.27 | G10: 0 | H10: 52.37
A11: 8 | B11: AJO | C11: Ajaccio VOR | E11: 41 | F11: 46.22 | G11: 8 | H11: 46.47
A12: 9 | B12: ALB | C12: Albenga VOR | E12: 44 | F12: 2.9 | G12: 8 | H12: 7.7
A13: 10 | B13: ALD | C13: Alderney Aurig NDB | E13: 49 | F13: 42.52 | G13: -2 | H13: -11.97
A14: 11 | B14: ALD/L | C14: ALD/L (Locator Alderney VRP) | E14: 49 | F14: 42.6 | G14: -2 | H14: -11.9
A15: 12 | B15: ALM | C15: Aix Les Milles NDB | E15: 43 | F15: 30.47 | G15: 5 | H15: 21.62
A16: 13 | B16: AMB | C16: Amboise VOR | E16: 47 | F16: 25.73 | G16: 1 | H16: 3.87
A17: 14 | B17: AMB1 | C17: Amboise NDB | E17: 47 | F17: 25.08 | G17: 1 | H17: 2.45
A18: 15 | B18: AMS | C18: Amsterdam VOR | E18: 52 | F18: 19.97 | G18: 4 | H18: 42.33
A19: 16 | B19: AMU | C19: Amberieu TACAN | E19: 45 | F19: 59.32 | G19: 5 | H19: 19.87
A20: 17 | B20: ANG | C20: Angers VOR | E20: 47 | F20: 32.2 | G20: 0 | H20: -51.1
A21: 18 | B21: ANS | C21: Ansbach NDB | E21: 49 | F21: 18.57 | G21: 10 | H21: 37.97
A22: 19 | B22: ANT | C22: Antwerp VOR | E22: 51 | F22: 11.43 | G22: 4 | H22: 28.35
A23: 20 | B23: AP | C23: Aberporth NDB | E23: 52 | F23: 6.98 | G23: -4 | H23: -33.59
A24: 21 | B24: AQ | C24: Aberdeen NDB | E24: 57 | F24: 8.3 | G24: -2 | H24: -24.28
A25: 22 | B25: ARE | C25: Monts d'Arrée VOR | E25: 48 | F25: 19.95 | G25: -3 | H25: -36.13
A26: 23 | B26: ARP | C26: Arpe VOR | E26: 51 | F26: 1 | G26: 8 | H26: 18.3
A27: 24 | B27: ATF | C27: Aberdeen/dyce NDB | E27: 57 | F27: 4.65 | G27: -2 | H27: -6.34
A28: 25 | B28: ATN | C28: Autun VOR | E28: 46 | F28: 48.35 | G28: 4 | H28: 15.53
A29: 26 | B29: AVD | C29: Avord TACAN | E29: 47 | F29: 7.23 | G29: 2 | H29: 47.97
A30: 27 | B30: AVD1 | C30: Avord NDB | E30: 47 | F30: 3.48 | G30: 2 | H30: 37.78
A31: 28 | B31: AVN | C31: Avignon VOR | E31: 43 | F31: 59.72 | G31: 4 | H31: 44.78
A32: 29 | B32: AZR | C32: Nice VOR | E32: 43 | F32: 39.58 | G32: 7 | H32: 13.45
A33: 30 | B33: BA | C33: Bautzen NDB | E33: 51 | F33: 11.92 | G33: 14 | H33: 32.87
A34: 31 | B34: BAM | C34: Barmen VOR | E34: 51 | F34: 19.7 | G34: 7 | H34: 10.6
A35: 32 | B35: BAY | C35: Bayreuth VOR | E35: 49 | F35: 59.1 | G35: 11 | H35: 38.2
A36: 33 | B36: BAZ | C36: Bayreuth NDB | E36: 49 | F36: 57.4 | G36: 11 | H36: 33.9
A37: 34 | B37: BBA | C37: Benbecula NDB | E37: 57 | F37: 28.57 | G37: -7 | H37: -22.16
A38: 35 | B38: BBE | C38: Beauvechain TACAN | E38: 50 | F38: 45.38 | G38: 4 | H38: 46.08
A39: 36 | B39: BBL | C39: Kleine Brogel TACAN | E39: 51 | F39: 10.22 | G39: 5 | H39: 27.98
A40: 37 | B40: BC | C40: Brasschaat NDB | E40: 51 | F40: 22.22 | G40: 4 | H40: 29.45
A41: 38 | B41: BCN | C41: Brecon VOR | E41: 51 | F41: 43.54 | G41: -3 | H41: -15.78
A42: 39 | B42: BD | C42: Bordeaux NDB | E42: 44 | F42: 56.1 | G42: 0 | H42: 33.73
A43: 40 | B43: BDN | C43: Boscombe Down TAC | E43: 51 | F43: 8.93 | G43: -1 | H43: -45.15
A44: 41 | B44: BDX | C44: Bordeaux TACAN | E44: 44 | F44: 49.62 | G44: 0 | H44: 43.27
A45: 42 | B45: BE | C45: Bordeaux NDB | E45: 44 | F45: 52.23 | G45: 0 | H45: 23.87
A46: 43 | B46: BEL | C46: Belfast VOR | E46: 54 | F46: 39.67 | G46: -6 | H46: -13.8
A47: 44 | B47: BEN | C47: Benbecula VOR | E47: 57 | F47: 28.67 | G47: -7 | H47: -21.92
A48: 45 | B48: BET | C48: Rheine Bentlage NDB | E48: 52 | F48: 17.27 | G48: 7 | H48: 23.12
A49: 46 | B49: BFD | C49: Broadford NDB | E49: 57 | F49: 15.29 | G49: -5 | H49: -49.97
A50: 47 | B50: BFS | C50: Florennes TACAN | E50: 50 | F50: 14.48 | G50: 4 | H50: 39.18
A51: 48 | B51: BGC | C51: Bergerac NDB | E51: 44 | F51: 49.17 | G51: 0 | H51: 37.15
A52: 49 | B52: BGR | C52: Bagur VOR | E52: 41 | F52: 56.9 | G52: 3 | H52: 12.5
A53: 50 | B53: BGW | C53: Le Bourget NDB | E53: 48 | F53: 56.33 | G53: 2 | H53: 16.85
A54: 51 | B54: BHD | C54: Berry Head VOR | E54: 50 | F54: 23.92 | G54: -3 | H54: -29.62
A55: 52 | B55: BHX | C55: Birmingham NDB | E55: 52 | F55: 27.27 | G55: -1 | H55: -45.14
A56: 53 | B56: BIA | C56: Bournemouth NDB | E56: 50 | F56: 46.65 | G56: -1 | H56: -50.53
A57: 54 | B57: BIG | C57: Biggin VOR | E57: 51 | F57: 19.85 | G57: 0 | H57: 2.08
A58: 55 | B58: BKD | C58: Brunkendorf VOR | E58: 53 | F58: 2.07 | G58: 11 | H58: 32.77
A59: 56 | B59: BKY | C59: Barkway VOR | E59: 51 | F59: 59.36 | G59: 0 | H59: 3.7
A60: 57 | B60: BLC | C60: Blackbushe NDB | E60: 51 | F60: 19.42 | G60: 0 | H60: -50.77
A61: 58 | B61: BLK | C61: Blackbushe NDB | E61: 51 | F61: 19.39 | G61: 0 | H61: -50.68
A62: 59 | B62: BLM | C62: Bâle VOR | E62: 47 | F62: 37.97 | G62: 7 | H62: 29.97
A63: 60 | B63: BMC | C63: Bordeaux VOR | E63: 44 | F63: 49.62 | G63: 0 | H63: -43.27
A64: 61 | B64: BMN | C64: Bremen VOR | E64: 53 | F64: 2.63 | G64: 8 | H64: 46.92
A65: 62 | B65: BN | C65: Bale Mulhouse NDB | E65: 47 | F65: 39.7 | G65: 7 | H65: 28.73
A66: 63 | B66: BNE | C66: Boulogne VOR | E66: 50 | F66: 37.48 | G66: 1 | H66: 54.42
A67: 64 | B67: BNN | C67: Bovingdon VOR | E67: 51 | F67: 43.55 | G67: 0 | H67: -32.97
A68: 65 | B68: BOT | C68: Bottrop NDB | E68: 51 | F68: 35.13 | G68: 7 | H68: 1.37
A69: 66 | B69: BOU | C69: Bourn NDB | E69: 52 | F69: 12.67 | G69: 0 | H69: -2.7
A70: 67 | B70: BPK | C70: Brookmans Park VOR | E70: 51 | F70: 44.96 | G70: 0 | H70: -6.4
A71: 68 | B71: BRI | C71: Bristol NDB | E71: 51 | F71: 22.82 | G71: -2 | H71: -42.97
A72: 69 | B72: BRR | C72: Barra NDB | E72: 57 | F72: 1.54 | G72: -7 | H72: -26.94
A73: 70 | B73: BRU | C73: Braunschweig NDB | E73: 52 | F73: 19.33 | G73: 10 | H73: 36.37
A74: 71 | B74: BRY | C74: Bray VOR | E74: 48 | F74: 24.42 | G74: 3 | H74: 17.68
A75: 72 | B75: BSN | C75: Boursonne VOR | E75: 49 | F75: 11.28 | G75: 3 | H75: 3.38
A76: 73 | B76: BST | C76: Lanveoc TACAN | E76: 48 | F76: 17.07 | G76: 4 | H76: 27.12
A77: 74 | B77: BST1 | C77: Lanveoc NDB | E77: 48 | F77: 17.02 | G77: 4 | H77: 25.93
A78: 75 | B78: BT | C78: Le Bourget VOR | E78: 48 | F78: 58.47 | G78: 2 | H78: 27.3
A79: 76 | B79: BTA | C79: Bastia VOR | E79: 42 | F79: 34.4 | G79: 9 | H79: 28.48
A80: 77 | B80: BTH | C80: Barth NDB | E80: 54 | F80: 20.3 | G80: 12 | H80: 41.15
A81: 78 | B81: BTZ | C81: Biarritz VOR | E81: 43 | F81: 27.98 | G81: -1 | H81: -30.62
A82: 79 | B82: BUB | C82: Brussels VOR | E82: 50 | F82: 54.13 | G82: 4 | H82: 32.28
A83: 80 | B83: BUE | C83: Buchel TACAN | E83: 50 | F83: 10.72 | G83: 7 | H83: 4.17
A84: 81 | B84: BUN | C84: Bruno VOR | E84: 51 | F84: 7.12 | G84: 4 | H84: 50.53
A85: 82 | B85: BUR | C85: Burnham VOR | E85: 51 | F85: 31.13 | G85: 0 | H85: -40.62
A86: 83 | B86: BV | C86: Brough NDB | E86: 53 | F86: 43.52 | G86: 0 | H86: -34.89
A87: 84 | B87: BVS | C87: Beauvais VOR | E87: 49 | F87: 26.17 | G87: 2 | H87: 9.18
A88: 85 | B88: BYC | C88: Buckeburg NDB | E88: 52 | F88: 17.47 | G88: 9 | H88: 5.45
A89: 86 | B89: BZ | C89: Biarritz NDB | E89: 43 | F89: 28.22 | G89: 1 | H89: 24.22
A90: 87 | B90: CAE | C90: Caernarfon NDB | E90: 53 | F90: 6.01 | G90: -4 | H90: -20.37
A91: 88 | B91: CAM | C91: Cambridge NDB | E91: 52 | F91: 12.65 | G91: 0 | H91: 10.97
A92: 89 | B92: CAN | C92: Caen VOR | E92: 49 | F92: 10.3 | G92: 0 | H92: -27.33
A93: 90 | B93: CAR | C93: Carnane NDB | E93: 54 | F93: 8.47 | G93: -4 | H93: -29.5
A94: 91 | B94: CAV | C94: Vatry VOR | E94: 48 | F94: 46.85 | G94: 4 | H94: 8.82
A95: 92 | B95: CBL | C95: Campbeltown NDB | E95: 55 | F95: 26.14 | G95: -5 | H95: -41.28
A96: 93 | B96: CBN | C96: Cumbernauld NDB | E96: 55 | F96: 58.54 | G96: -3 | H96: -58.48
A97: 94 | B97: CBY | C97: Chambéry VOR | E97: 45 | F97: 52.9 | G97: 5 | H97: 45.43
A98: 95 | B98: CC | C98: Charleroi Lctr NDB | E98: 50 | F98: 28.13 | G98: 4 | H98: 29.08
A99: 96 | B99: CDN | C99: Chateaudun VOR | E99: 48 | F99: 3.53 | G99: 1 | H99: 23.22
A100: 97 | B100: CEL | C100: Celle NDB | E100: 52 | F100: 35.37 | G100: 10 | H100: 1.77
A101: 98 | B101: CFA | C101: Clermont Ferrand Auvergne VOR | E101: 45 | F101: 47.23 | G101: 3 | H101: 11.52
A102: 99 | B102: CFD | C102: Cranfield VOR | E102: 52 | F102: 4.45 | G102: 0 | H102: -36.65
A103: 100 | B103: CGC | C103: Cognac TACAN | E103: 45 | F103: 39.57 | G103: 0 | H103: 18.68
A104: 101 | B104: CGC1 | C104: Cognac NDB | E104: 45 | F104: 40.15 | G104: 0 | H104: 18.37
A105: 102 | B105: CGN | C105: De Gaulle VOR | E105: 49 | F105: 1.18 | G105: 2 | H105: 30
A106: 103 | B106: CGO | C106: Charles De Gaulle NDB | E106: 48 | F106: 59.23 | G106: 2 | H106: 24.03
A107: 104 | B107: CGS | C107: Cagnes sur mer VOR | E107: 43 | F107: 38.7 | G107: 7 | H107: 8.75
A108: 105 | B108: CHA | C108: Charlie VOR | E108: 49 | F108: 55.3 | G108: 9 | H108: 2.4
A109: 106 | B109: CHT | C109: Chiltern VOR | E109: 51 | F109: 37.39 | G109: 0 | H109: -31.08
A110: 107 | B110: CHW | C110: Chartres VOR | E110: 48 | F110: 28.8 | G110: 0 | H110: 59.22
A111: 108 | B111: CIV | C111: Chièvres VOR | E111: 50 | F111: 34.43 | G111: 3 | H111: 49.97
A112: 109 | B112: CLM | C112: Coulommiers VOR | E112: 48 | F112: 50.67 | G112: 3 | H112: 0.82
A113: 110 | B113: CLN | C113: Clacton VOR | E113: 51 | F113: 50.9 | G113: 1 | H113: 8.85
A114: 111 | B114: CLR | C114: Colmar TACAN | E114: 47 | F114: 55.75 | G114: 7 | H114: 23.98
A115: 112 | B115: CM | C115: Caumont NDB | E115: 43 | F115: 54.48 | G115: 4 | H115: 54.32
A116: 113 | B116: CMB | C116: Cambrai VOR | E116: 50 | F116: 13.68 | G116: 3 | H116: 9.08
A117: 114 | B117: CNA | C117: Cognac VOR | E117: 45 | F117: 39.57 | G117: 0 | H117: -18.68
A118: 115 | B118: CNE | C118: Caen NDB | E118: 49 | F118: 6.93 | G118: 0 | H118: 19.27
A119: 116 | B119: CNM | C119: Cannes VOR | E119: 43 | F119: 33.62 | G119: 6 | H119: 52.25
A120: 117 | B120: COA | C120: Costa VOR | E120: 51 | F120: 20.88 | G120: 3 | H120: 21.32
A121: 118 | B121: COL | C121: Cola VOR | E121: 50 | F121: 47 | G121: 7 | H121: 35.7
A122: 119 | B122: COM | C122: Compton Abbas NDB | E122: 50 | F122: 57.97 | G122: -2 | H122: -9.3
A123: 120 | B123: CPE | C123: Compiègne VOR | E123: 49 | F123: 25.97 | G123: 2 | H123: 47.95
A124: 121 | B124: CPT | C124: Compton VOR | E124: 51 | F124: 29.5 | G124: -1 | H124: -13.18
A125: 122 | B125: CRL | C125: Creil VOR | E125: 49 | F125: 15.32 | G125: 2 | H125: 30.88
A126: 123 | B126: CSL | C126: Caselle VOR | E126: 45 | F126: 13.2 | G126: 7 | H126: 38.1
A127: 124 | B127: CSM | C127: Castelsarrasin Moissac NDB | E127: 44 | F127: 5.22 | G127: 1 | H127: 7.83
A128: 125 | B128: CTL | C128: Chatillon VOR | E128: 49 | F128: 8.25 | G128: 3 | H128: 34.65
A129: 126 | B129: CTX | C129: Chateauroux NDB | E129: 46 | F129: 56.18 | G129: 1 | H129: 48.07
A130: 127 | B130: CV | C130: Calvi NDB | E130: 42 | F130: 34.62 | G130: 8 | H130: 48.38
A131: 128 | B131: CWL | C131: Cranwell NDB | E131: 53 | F131: 1.58 | G131: 0 | H131: -29.34
A132: 129 | B132: DBR | C132: Helmholtz NDB | E132: 52 | F132: 28.08 | G132: 13 | H132: 17.72
A133: 130 | B133: DCS | C133: Dean Cross VOR | E133: 54 | F133: 43.31 | G133: -3 | H133: -20.43
A134: 131 | B134: DD | C134: Oostende NDB | E134: 51 | F134: 11.63 | G134: 2 | H134: 50.1
A135: 132 | B135: DET | C135: Detling VOR | E135: 51 | F135: 18.23 | G135: 0 | H135: 35.83
A136: 133 | B136: DGN | C136: Digne VOR | E136: 43 | F136: 59.48 | G136: 6 | H136: 6.05
A137: 134 | B137: DHE | C137: Helgoland VOR | E137: 54 | F137: 11.13 | G137: 7 | H137: 54.63
A138: 135 | B138: DIJ | C138: Dijon TACAN | E138: 47 | F138: 16.32 | G138: 5 | H138: 5.48
A139: 136 | B139: DIK | C139: Diekirch VOR | E139: 49 | F139: 51.68 | G139: 6 | H139: 7.78
A140: 137 | B140: DIK1 | C140: Diekirch NDB | E140: 49 | F140: 51.68 | G140: 6 | H140: 7.78
A141: 138 | B141: DIN | C141: Dinard VOR | E141: 48 | F141: 35.15 | G141: -2 | H141: -4.93
A142: 139 | B142: DIP | C142: Planter NDB | E142: 52 | F142: 28.37 | G142: 13 | H142: 28.1
A143: 140 | B143: DJL | C143: Dijon VOR | E143: 47 | F143: 16.23 | G143: 5 | H143: 5.83
A144: 141 | B144: DKB | C144: Dinkelsbuhl VOR | E144: 49 | F144: 8.6 | G144: 10 | H144: 14.3
A145: 142 | B145: DLE | C145: Leine VOR | E145: 52 | F145: 15.02 | G145: 9 | H145: 53
A146: 143 | B146: DLN | C146: Deelen TACAN | E146: 52 | F146: 3.43 | G146: 5 | H146: 52.37
A147: 144 | B147: DLS | C147: Lubars NDB | E147: 52 | F147: 36.83 | G147: 13 | H147: 21.82
A148: 145 | B148: DND | C148: Dundee NDB | E148: 56 | F148: 27.31 | G148: -3 | H148: -6.9
A149: 146 | B149: DOM | C149: Dortmund VOR | E149: 51 | F149: 42.6 | G149: 7 | H149: 35.2
A150: 147 | B150: DOR | C150: Wickede VOR | E150: 51 | F150: 31.52 | G150: 7 | H150: 37.85
A151: 148 | B151: DP | C151: Diepholz NDB | E151: 52 | F151: 35.53 | G151: 8 | H151: 27.17
A152: 149 | B152: DPE | C152: Dieppe VOR | E152: 49 | F152: 55.52 | G152: 1 | H152: 10.23
A153: 150 | B153: DRN | C153: Dresden VOR | E153: 51 | F153: 0.92 | G153: 13 | H153: 35.93
A154: 151 | B154: DRW | C154: Drewitz NDB | E154: 51 | F154: 53.8 | G154: 14 | H154: 33.75
A155: 152 | B155: DTY | C155: Daventry VOR | E155: 52 | F155: 10.82 | G155: -1 | H155: -6.83
A156: 153 | B156: DUS | C156: Dusseldorf VOR | E156: 51 | F156: 17 | G156: 6 | H156: 45.2
A157: 154 | B157: DVI | C157: Donaueschingen NDB | E157: 47 | F157: 57.63 | G157: 8 | H157: 31.35
A158: 155 | B158: DVL | C158: Deauville VOR | E158: 49 | F158: 18.63 | G158: 0 | H158: 18.75
A159: 156 | B159: DVR | C159: Dover VOR | E159: 51 | F159: 9.75 | G159: 1 | H159: 21.55
A160: 157 | B160: DWI | C160: Dortmund NDB | E160: 51 | F160: 31.57 | G160: 7 | H160: 38.05
A161: 158 | B161: EAS | C161: Southampton NDB | E161: 50 | F161: 57.3 | G161: -1 | H161: -21.37
A162: 159 | B162: EB0001 | C162: Froidchapelle | E162: 50 | F162: 10.6 | G162: 4 | H162: 21.2 | I162: 902 | K162: =$C$4715&"\"&B162&".jpg" -> http://www.vliegclubmoorsele.be/VCM2000/images\EB0001.jpg
A163: 160 | B163: EB0007 | C163: Sovet | E163: 50 | F163: 17.2 | G163: 5 | H163: 2.42 | I163: 919
A164: 161 | B164: EB0013 | C164: Chimay Virelles | E164: 50 | F164: 7.07 | G164: 4 | H164: 19.83 | I164: 919 | L164: =$C$4711&"\"&B164&".nl.pdf" -> http://www.vliegclubmoorsele.be/VCM2000/VAC Belgie\EB0013.nl.pdf
A165: 162 | B165: EB0014 | C165: Ciney Ronvaux | E165: 50 | F165: 14.83 | G165: 5 | H165: 6.83 | I165: 1076 | L165: =$C$4711&"\"&B165&".nl.pdf" -> http://www.vliegclubmoorsele.be/VCM2000/VAC Belgie\EB0014.nl.pdf
A166: 163 | B166: EB0017 | C166: Etalle | E166: 49 | F166: 41.37 | G166: 5 | H166: 35.77 | I166: 1165
A167: 164 | B167: EB0024 | C167: Moerbeke-Waas | E167: 51 | F167: 10.3 | G167: 3 | H167: 57.7 | I167: 0
A168: 165 | B168: EB0025 | C168: Ninove Outer | E168: 50 | F168: 51.27 | G168: 3 | H168: 59.12 | I168: 151
A169: 166 | B169: EB0026 | C169: Perwez | E169: 50 | F169: 38.9 | G169: 4 | H169: 44.68 | I169: 492
A170: 167 | B170: EBAM | C170: Amougies | E170: 50 | F170: 44.42 | G170: 3 | H170: 29.25 | I170: 49 | J170: 119750 | K170: =$C$4715&"\"&B170&".jpg" -> http://www.vliegclubmoorsele.be/VCM2000/images\EBAM.jpg | L170: =$C$4711&"\"&B170&".nl.pdf" -> http://www.vliegclubmoorsele.be/VCM2000/VAC Belgie\EBAM.nl.pdf
A171: 168 | B171: EBAR | C171: Arlon | E171: 49 | F171: 39.77 | G171: 5 | H171: 53.22 | I171: 1140 | J171: 123,425 | K171: =$C$4715&"\"&B171&".jpg" -> http://www.vliegclubmoorsele.be/VCM2000/images\EBAR.jpg | L171: =$C$4711&"\"&B171&".nl.pdf" -> http://www.vliegclubmoorsele.be/VCM2000/VAC Belgie\EBAR.nl.pdf
A172: 169 | B172: EBAV | C172: Avernas le Bauduin | E172: 50 | F172: 42.45 | G172: 5 | H172: 4.16 | I172: 394 | J172: 123,425 A/A | K172: =$C$4715&"\"&B172&".jpg" -> http://www.vliegclubmoorsele.be/VCM2000/images\EBAV.jpg | L172: =$C$4711&"\"&B172&".nl.pdf" -> http://www.vliegclubmoorsele.be/VCM2000/VAC Belgie\EBAV.nl.pdf
A173: 170 | B173: EBAW | C173: Antwerp Deurne | E173: 51 | F173: 11.4 | G173: 4 | H173: 27.6 | I173: 39 | K173: =$C$4715&"\"&B173&".jpg" -> http://www.vliegclubmoorsele.be/VCM2000/images\EBAW.jpg
A174: 171 | B174: EBBA | C174: Bassenge | E174: 50 | F174: 46.7 | G174: 5 | H174: 37
A175: 172 | B175: EBBC | C175: Bastogne - Milchamps | E175: 50 | F175: 3.17 | G175: 5 | H175: 47.92
A176: 173 | B176: EBBE | C176: Beauvechain | E176: 50 | F176: 45.5 | G176: 4 | H176: 46 | I176: 363 | J176: Tower : 122.10
A177: 174 | B177: EBBG | C177: Bastogne - Milchamps | E177: 50 | F177: 3.17 | G177: 5 | H177: 47.92 | I177: 1770 | L177: =$C$4711&"\"&B177&".nl.pdf" -> http://www.vliegclubmoorsele.be/VCM2000/VAC Belgie\EBBG.nl.pdf
A178: 175 | B178: EBBL | C178: Kleine Brogel | E178: 51 | F178: 10.1 | G178: 5 | H178: 28.2 | I178: 200 | J178: Tower 122.100
A179: 176 | B179: EBBN | C179: Bullingen | E179: 50 | F179: 24.87 | G179: 6 | H179: 16.63 | I179: 2066 | J179: A:A 123.400 | K179: =$C$4715&"\"&B179&".jpg" -> http://www.vliegclubmoorsele.be/VCM2000/images\EBBN.jpg | L179: =$C$4711&"\"&B179&".nl.pdf" -> http://www.vliegclubmoorsele.be/VCM2000/VAC Belgie\EBBN.nl.pdf
A180: 177 | B180: EBBO | C180: Bouillon - Mogimont | E180: 49 | F180: 52.03 | G180: 5 | H180: 4.17 | I180: 1360 | J180: autoinfo 123.45
A181: 178 | B181: EBBR | C181: Brussels National | E181: 50 | F181: 54.1 | G181: 4 | H181: 29 | I181: 184 | J181: TWR 118.60 | K181: =$C$4715&"\"&B181&".jpg" -> http://www.vliegclubmoorsele.be/VCM2000/images\EBBR.jpg
A182: 179 | B182: EBBT | C182: Brasschaat | E182: 51 | F182: 20.5 | G182: 4 | H182: 30.33 | I182: 76 | J182: 122.9 | K182: =$C$4715&"\"&B182&".jpg" -> http://www.vliegclubmoorsele.be/VCM2000/images\EBBT.jpg
A183: 180 | B183: EBBU | C183: Bullingen | E183: 50 | F183: 24.87 | G183: 6 | H183: 16.63
A184: 181 | B184: EBBW | C184: Bassenge | E184: 50 | F184: 46.7 | G184: 5 | H184: 37 | I184: 367 | L184: =$C$4711&"\"&B184&".nl.pdf" -> http://www.vliegclubmoorsele.be/VCM2000/VAC Belgie\EBBW.nl.pdf
A185: 182 | B185: EBBX | C185: Bertrix Jehonville | E185: 49 | F185: 53.5 | G185: 5 | H185: 13.4 | I185: 1514
A186: 183 | B186: EBBY | C186: Baisy-Thy | E186: 50 | F186: 34.16 | G186: 4 | H186: 26.16 | I186: 550 | K186: =$C$4715&"\"&B186&".jpg" -> http://www.vliegclubmoorsele.be/VCM2000/images\EBBY.jpg | L186: =$C$4711&"\"&B186&".nl.pdf" -> http://www.vliegclubmoorsele.be/VCM2000/VAC Belgie\EBBY.nl.pdf
A187: 184 | B187: EBBZ | C187: Buzet | E187: 50 | F187: 32.67 | G187: 4 | H187: 22.95 | I187: 540 | K187: =$C$4715&"\"&B187&".jpg" -> http://www.vliegclubmoorsele.be/VCM2000/images\EBBZ.jpg | L187: =$C$4711&"\"&B187&".nl.pdf" -> http://www.vliegclubmoorsele.be/VCM2000/VAC Belgie\EBBZ.nl.pdf
A188: 185 | B188: EBCF | C188: Cerfontaine | E188: 50 | F188: 9.17 | G188: 4 | H188: 23.33 | I188: 955 | K188: =$C$4715&"\"&B188&".jpg" -> http://www.vliegclubmoorsele.be/VCM2000/images\EBCF.jpg | L188: =$C$4711&"\"&B188&".nl.pdf" -> http://www.vliegclubmoorsele.be/VCM2000/VAC Belgie\EBCF.nl.pdf
A189: 186 | B189: EBCH | C189: Chimay St Rémy | E189: 50 | F189: 3.5 | G189: 4 | H189: 16.92
A190: 187 | B190: EBCI | C190: Charleroi Brussels South | E190: 50 | F190: 27.65 | G190: 4 | H190: 27.25 | I190: 614 | J190: TWR 121.30 | K190: =$C$4715&"\"&B190&".jpg" -> http://www.vliegclubmoorsele.be/VCM2000/images\EBCI.jpg
A191: 188 | B191: EBCS | C191: Chimay St Rémy | E191: 50 | F191: 3.5 | G191: 4 | H191: 16.92 | I191: 820 | J191: auto-info: 123.450 | L191: =$C$4711&"\"&B191&".nl.pdf" -> http://www.vliegclubmoorsele.be/VCM2000/VAC Belgie\EBCS.nl.pdf
A192: 189 | B192: EBCV | C192: Chievres | E192: 50 | F192: 34.6 | G192: 3 | H192: 50.3 | I192: 206 | J192: 136.5 ou 122.5
A193: 190 | B193: EBDT | C193: Diest ab | E193: 50 | F193: 59.95 | G193: 5 | H193: 3.93 | I193: 100 | J193: 118.925 | K193: =$C$4715&"\"&B193&".jpg" -> http://www.vliegclubmoorsele.be/VCM2000/images\EBDT.jpg
A194: 191 | B194: EBFN | C194: Koksijde | E194: 51 | F194: 5.4 | G194: 2 | H194: 39.2 | I194: 20 | J194: Tower/122.100 | K194: =$C$4715&"\"&B194&".jpg" -> http://www.vliegclubmoorsele.be/VCM2000/images\EBFN.jpg | L194: =$C$4711&"\"&B194&".nl.pdf" -> http://www.vliegclubmoorsele.be/VCM2000/VAC Belgie\EBFN.nl.pdf
A195: 192 | B195: EBFS | C195: Florennes | E195: 50 | F195: 14.6 | G195: 4 | H195: 38.7 | I195: 935 | J195: Tower : 122.10
A196: 193 | B196: EBGB | C196: Brussels Grimbergen | E196: 50 | F196: 56.87 | G196: 4 | H196: 23.18 | I196: 69 | J196: 119.50 | K196: =$C$4715&"\"&B196&".jpg" -> http://www.vliegclubmoorsele.be/VCM2000/images\EBGB.jpg
A197: 194 | B197: EBGG | C197: Geraardsbergen Overboelaere | E197: 50 | F197: 45.3 | G197: 3 | H197: 51.8 | I197: 62 | K197: =$C$4715&"\"&B197&".jpg" -> http://www.vliegclubmoorsele.be/VCM2000/images\EBGG.jpg
A198: 195 | B198: EBHE | C198: Heron Couthuin GESLOTEN ! | E198: 50 | F198: 32.33 | G198: 5 | H198: 6.55 | I198: 591 | J198: 123450 | L198: =$C$4711&"\"&B198&".nl.pdf" -> http://www.vliegclubmoorsele.be/VCM2000/VAC Belgie\EBHE.nl.pdf
A199: 196 | B199: EBHN | C199: Hoevenen | E199: 51 | F199: 18.9 | G199: 4 | H199: 23.6 | I199: 10 | J199: 135.0 | K199: =$C$4715&"\"&B199&".jpg" -> http://www.vliegclubmoorsele.be/VCM2000/images\EBHN.jpg | L199: =$C$4711&"\"&B199&".nl.pdf" -> http://www.vliegclubmoorsele.be/VCM2000/VAC Belgie\EBHN.nl.pdf
A200: 197 | B200: EBIS | C200: Isières | E200: 50 | F200: 39.9 | G200: 3 | H200: 48.35 | I200: 98 | J200: 123450 | L200: =$C$4711&"\"&B200&".nl.pdf" -> http://www.vliegclubmoorsele.be/VCM2000/VAC Belgie\EBIS.nl.pdf
A201: 198 | B201: EBKH | C201: Balen Keiheuvel | E201: 51 | F201: 10.7 | G201: 5 | H201: 13.3 | I201: 131 | J201: 119.200 | K201: =$C$4715&"\"&B201&".jpg" -> http://www.vliegclubmoorsele.be/VCM2000/images\EBKH.jpg
A202: 199 | B202: EBKT | C202: Kortrijk Wevelgem | E202: 50 | F202: 49.1 | G202: 3 | H202: 12.5 | I202: 62 | K202: =$C$4715&"\"&B202&".jpg" -> http://www.vliegclubmoorsele.be/VCM2000/images\EBKT.jpg | L202: =$C$4711&"\"&B202&".nl.pdf" -> http://www.vliegclubmoorsele.be/VCM2000/VAC Belgie\EBKT.nl.pdf
... 4515 more rows

Sheet Gps (hidden)
B2: Afkort. | C2: Naam | D2: L | E2: Gr M, Dec. | G2: Gr M, Dec. | I2: Elev | R2: Comm
A4: 1 | C4: Selecteer keerpuntnaam om ICAO te zoeken
A5: 2 | B5: EDKA | C5: Aachen-Merzbrück | E5: 50 | F5: 49.4 | G5: 6 | H5: 11.2 | I5: 623 | R5: 122.87 | U5: =ROUND(E5+(F5/60),5) -> 50.82333 | V5: =ROUND(G5+(H5/60),5) -> 6.18667 | W5: =$C$4715&TRUNC(U5)&"."&IF(U5-TRUNC(U5)=0,"0",MID(U5,SEARCH(",",U5)+1,7))&", "&IF(AND(V5<0,V5>-1),"-"&TRUNC(V5),TRUNC(V5))&"."&IF(V5-TRUNC(V5)=0,"0",MID(V5,SEARCH(",",V5)+1,7))&$C$4716 -> http://maps.google.com/maps?f=q&source=s_q&hl=nl&geocode=&q=50.82333, 6.18667&C4710ie=UTF8&t=c&z=11
A6: 3 | B6: EDPA | C6: Aalen-Heidenheim/Elchingen | E6: 48 | F6: 46.67 | G6: 10 | H6: 15.88 | I6: 1916 | R6: 122.40 | U6: =ROUND(E6+(F6/60),5) -> 48.77783 | V6: =ROUND(G6+(H6/60),5) -> 10.26467 | W6: http://maps.google.com/maps?f=q&source=s_q&hl=nl&geocode=&q=48.77783, 10.26467&C4710ie=UTF8&t=c&z=11
A7: 4 | B7: LFOI | C7: Abbeville | E7: 50 | F7: 8.58 | G7: 1 | H7: 49.95 | I7: 220 | R7: 123,50 | S7: =$C$4714&"\"&B7&".jpg" -> c:\VCM2000\images\LFOI.jpg | T7: =$C$4710&B7&".pdf" -> https://www.sia.aviation-civile.gouv.fr/aip/enligne/PDF_AIPparSSection/VAC/AD/2/1003_AD-2.LFOI.pdf | U7: 50.143 | V7: 1.8325 | W7: http://maps.google.com/maps?f=q&source=s_q&hl=nl&geocode=&q=50.143, 1.8325&C4710ie=UTF8&t=c&z=11
A8: 5 | B8: ABB | C8: Abbeville VOR | E8: 50 | F8: 8.1 | G8: 1 | H8: 51.27 | U8: 50.135 | V8: 1.8545 | W8: http://maps.google.com/maps?f=q&source=s_q&hl=nl&geocode=&q=50.135, 1.8545&C4710ie=UTF8&t=c&z=11
A9: 6 | B9: EGPD | C9: Aberdeen Dyce | E9: 57 | F9: 12.25 | G9: -2 | H9: -11.92 | T9: =$C$4713&"/"&B9&"/EG_AD_2_"&B9&"_2-1_en.pdf" -> http://www.nats-uk.ead-it.com/aip/current/ad//EGPD/EG_AD_2_EGPD_2-1_en.pdf | U9: 57.20417 | V9: -2.19867 | W9: http://maps.google.com/maps?f=q&source=s_q&hl=nl&geocode=&q=57.20417, -2.19867&C4710ie=UTF8&t=c&z=11
A10: 7 | B10: AQ | C10: Aberdeen NDB | E10: 57 | F10: 8.3 | G10: -2 | H10: -24.28 | U10: 57.13833 | V10: -2.40467 | W10: http://maps.google.com/maps?f=q&source=s_q&hl=nl&geocode=&q=57.13833, -2.40467&C4710ie=UTF8&t=c&z=11
A11: 8 | B11: ADN | C11: Aberdeen VOR | E11: 57 | F11: 18.64 | G11: -2 | H11: -16.03 | U11: 57.31067 | V11: -2.26717 | W11: http://maps.google.com/maps?f=q&source=s_q&hl=nl&geocode=&q=57.31067, -2.26717&C4710ie=UTF8&t=c&z=11
A12: 9 | B12: ATF | C12: Aberdeen/dyce NDB | E12: 57 | F12: 4.65 | G12: -2 | H12: -6.34 | U12: 57.0775 | V12: -2.10567 | W12: http://maps.google.com/maps?f=q&source=s_q&hl=nl&geocode=&q=57.0775, -2.10567&C4710ie=UTF8&t=c&z=11
A13: 10 | B13: EGUC | C13: Aberporth | E13: 52 | F13: 6.7 | G13: -4 | H13: -33.42 | I13: 425 | U13: 52.11167 | V13: -4.557 | W13: http://maps.google.com/maps?f=q&source=s_q&hl=nl&geocode=&q=52.11167, -4.557&C4710ie=UTF8&t=c&z=11
A14: 11 | B14: AP | C14: Aberporth NDB | E14: 52 | F14: 6.98 | G14: -4 | H14: -33.59 | U14: 52.11633 | V14: -4.55983 | W14: http://maps.google.com/maps?f=q&source=s_q&hl=nl&geocode=&q=52.11633, -4.55983&C4710ie=UTF8&t=c&z=11
A15: 12 | B15: LE001 | C15: Ablitas | E15: 42 | F15: 0 | G15: -1 | H15: -37 | I15: 1063 | U15: 42 | V15: -1.61667 | W15: =$C$4715&TRUNC(U15)&"."&IF(U15-TRUNC(U15)=0,"0",MID(U15,SEARCH(",",U15)+1,7))&", "&IF(AND(V15<0,V15>-1),"-"&TRUNC(V15),TRUNC(V15))&"."&IF(V15-TRUNC(V15)=0,"0",MID(V15,SEARCH(",",V15)+1,7))&$C$4716 -> http://maps.google.com/maps?f=q&source=s_q&hl=nl&geocode=&q=42.0, -1.61667&C4710ie=UTF8&t=c&z=11
A16: 13 | B16: EDXA | C16: Achmer | E16: 52 | F16: 22.6 | G16: 7 | H16: 54.8 | I16: 177 | R16: 123.05 | U16: 52.37667 | V16: 7.91333 | W16: =$C$4715&TRUNC(U16)&"."&IF(U16-TRUNC(U16)=0,"0",MID(U16,SEARCH(",",U16)+1,7))&", "&IF(AND(V16<0,V16>-1),"-"&TRUNC(V16),TRUNC(V16))&"."&IF(V16-TRUNC(V16)=0,"0",MID(V16,SEARCH(",",V16)+1,7))&$C$4716 -> http://maps.google.com/maps?f=q&source=s_q&hl=nl&geocode=&q=52.37667, 7.91333&C4710ie=UTF8&t=c&z=11
A17: 14 | B17: ED5088 | C17: Achterstedt | E17: 53 | F17: 23.35 | G17: 8 | H17: 19.78 | I17: 3 | U17: 53.38917 | V17: 8.32967 | W17: http://maps.google.com/maps?f=q&source=s_q&hl=nl&geocode=&q=53.38917, 8.32967&C4710ie=UTF8&t=c&z=11
A18: 15 | B18: LI0001 | C18: Acquasparta | E18: 42 | F18: 41.4 | G18: 12 | H18: 33.95 | R18: 130.00 | U18: 42.69 | V18: 12.56583 | W18: http://maps.google.com/maps?f=q&source=s_q&hl=nl&geocode=&q=42.69, 12.56583&C4710ie=UTF8&t=c&z=11
A19: 16 | B19: LE0153 | C19: Ademuz (forestal) | E19: 40 | F19: 5.6 | G19: -1 | H19: -12.73 | I19: 0 | U19: 40.09333 | V19: -1.21217 | W19: http://maps.google.com/maps?f=q&source=s_q&hl=nl&geocode=&q=40.09333, -1.21217&C4710ie=UTF8&t=c&z=11
A20: 17 | B20: LE0214 | C20: Aerodromo del Platero (Ciudad Real) | E20: 39 | F20: 5.22 | G20: -3 | H20: -12.48 | I20: 2184 | U20: 39.087 | V20: -3.208 | W20: http://maps.google.com/maps?f=q&source=s_q&hl=nl&geocode=&q=39.087, -3.208&C4710ie=UTF8&t=c&z=11
A21: 18 | B21: LE0293 | C21: Aerohispalis Sevilla | E21: 37 | F21: 17.13 | G21: -5 | H21: -42.1 | I21: 150 | R21: 129.82 | U21: 37.2855 | V21: -5.70167 | W21: http://maps.google.com/maps?f=q&source=s_q&hl=nl&geocode=&q=37.2855, -5.70167&C4710ie=UTF8&t=c&z=11
A22: 19 | B22: AFI | C22: Affligem VOR | E22: 50 | F22: 54.47 | G22: 4 | H22: 8.33 | U22: 50.90783 | V22: 4.13883 | W22: http://maps.google.com/maps?f=q&source=s_q&hl=nl&geocode=&q=50.90783, 4.13883&C4710ie=UTF8&t=c&z=11
A23: 20 | B23: ED3001 | C23: Agathazeller Moos Lkr. Oberallgδu | E23: 47 | F23: 33.42 | G23: 10 | H23: 16.4 | I23: 2385 | R23: 123.35 | U23: 47.557 | V23: 10.27333 | W23: http://maps.google.com/maps?f=q&source=s_q&hl=nl&geocode=&q=47.557, 10.27333&C4710ie=UTF8&t=c&z=11
A24: 21 | B24: LI0002 | C24: Agazzano | E24: 44 | F24: 58.32 | G24: 9 | H24: 28.8 | R24: 130.00 | U24: 44.972 | V24: 9.48 | W24: http://maps.google.com/maps?f=q&source=s_q&hl=nl&geocode=&q=44.972, 9.48&C4710ie=UTF8&t=c&z=11
A25: 22 | B25: LFBA | C25: Agen la Garenne | E25: 44 | F25: 10.48 | G25: 0 | H25: 35.43 | I25: 203 | R25: 121.30 | S25: =$C$4714&"\"&B25&".jpg" -> c:\VCM2000\images\LFBA.jpg | T25: =$C$4710&B25&".pdf" -> https://www.sia.aviation-civile.gouv.fr/aip/enligne/PDF_AIPparSSection/VAC/AD/2/1003_AD-2.LFBA.pdf | U25: 44.17467 | V25: 0.5905 | W25: http://maps.google.com/maps?f=q&source=s_q&hl=nl&geocode=&q=44.17467, 0.5905&C4710ie=UTF8&t=c&z=11
A26: 23 | B26: AGN | C26: Agen VOR | E26: 43 | F26: 53.27 | G26: 0 | H26: 52.37 | U26: 43.88783 | V26: 0.87283 | W26: http://maps.google.com/maps?f=q&source=s_q&hl=nl&geocode=&q=43.88783, 0.87283&C4710ie=UTF8&t=c&z=11
A27: 24 | B27: LE0056 | C27: Ager | E27: 42 | F27: 0 | G27: 0 | H27: 46 | I27: 2740 | R27: 130.12 | S27: =$C$4714&"\"&B27&".jpg" -> c:\VCM2000\images\LE0056.jpg | U27: 42 | V27: 0.76667 | W27: http://maps.google.com/maps?f=q&source=s_q&hl=nl&geocode=&q=42.0, 0.76667&C4710ie=UTF8&t=c&z=11
A28: 25 | B28: ED6009 | C28: Ahlhorn | E28: 52 | F28: 53.3 | G28: 8 | H28: 14 | I28: 161 | U28: 52.88833 | V28: 8.23333 | W28: http://maps.google.com/maps?f=q&source=s_q&hl=nl&geocode=&q=52.88833, 8.23333&C4710ie=UTF8&t=c&z=11
A29: 26 | B29: ED3055 | C29: Aichach | E29: 48 | F29: 28.6 | G29: 11 | H29: 8.28 | I29: 1440 | R29: 122.30 | U29: 48.47667 | V29: 11.138 | W29: http://maps.google.com/maps?f=q&source=s_q&hl=nl&geocode=&q=48.47667, 11.138&C4710ie=UTF8&t=c&z=11
A30: 27 | B30: LOXA | C30: Aigen Im Ennstal | E30: 47 | F30: 32.28 | G30: 14 | H30: 8.38 | I30: 2070 | R30: 118.00 | S30: =$C$4714&"\"&B30&".jpg" -> c:\VCM2000\images\LOXA.jpg | U30: 47.538 | V30: 14.13967 | W30: http://maps.google.com/maps?f=q&source=s_q&hl=nl&geocode=&q=47.538, 14.13967&C4710ie=UTF8&t=c&z=11
A31: 28 | B31: LF1651 | C31: Aignes et Puyperoux - Montmorelien | E31: 45 | F31: 28 | G31: 0 | H31: 9.5 | I31: 619 | U31: 45.46667 | V31: 0.15833 | W31: http://maps.google.com/maps?f=q&source=s_q&hl=nl&geocode=&q=45.46667, 0.15833&C4710ie=UTF8&t=c&z=11
A32: 29 | B32: LF1752 | C32: Aigrefeuille d'Aunis | E32: 46 | F32: 7.33 | G32: 0 | H32: -57 | I32: 110 | S32: =$C$4714&"\"&B32&".jpg" -> c:\VCM2000\images\LF1752.jpg | U32: 46.12217 | V32: -0.95 | W32: http://maps.google.com/maps?f=q&source=s_q&hl=nl&geocode=&q=46.12217, -0.95&C4710ie=UTF8&t=c&z=11
A33: 30 | B33: EDGA | C33: Ailertchen | E33: 50 | F33: 35.58 | G33: 7 | H33: 56.7 | I33: 1542 | R33: 123.05 | U33: 50.593 | V33: 7.945 | W33: http://maps.google.com/maps?f=q&source=s_q&hl=nl&geocode=&q=50.593, 7.945&C4710ie=UTF8&t=c&z=11
A34: 31 | B34: LE0030 | C34: Ainsa | E34: 42 | F34: 23.07 | G34: 0 | H34: 10.48 | I34: 1900 | U34: 42.3845 | V34: 0.17467 | W34: http://maps.google.com/maps?f=q&source=s_q&hl=nl&geocode=&q=42.3845, 0.17467&C4710ie=UTF8&t=c&z=11
A35: 32 | B35: LF1824 | C35: Ainy le Vieil (la Suchère) | E35: 46 | F35: 41.2 | G35: 2 | H35: 31.67 | I35: 745 | U35: 46.68667 | V35: 2.52783 | W35: http://maps.google.com/maps?f=q&source=s_q&hl=nl&geocode=&q=46.68667, 2.52783&C4710ie=UTF8&t=c&z=11
A36: 33 | B36: LF6222 | C36: Aire sur la Lys | E36: 50 | F36: 37.23 | G36: 2 | H36: 25.08 | I36: 72 | U36: 50.6205 | V36: 2.418 | W36: http://maps.google.com/maps?f=q&source=s_q&hl=nl&geocode=&q=50.6205, 2.418&C4710ie=UTF8&t=c&z=11
A37: 34 | B37: LFDA | C37: Aire sur l'Adour | E37: 43 | F37: 42.57 | G37: 0 | H37: -14.72 | I37: 259 | R37: 118.97 | S37: =$C$4714&"\"&B37&".jpg" -> c:\VCM2000\images\LFDA.jpg | T37: =$C$4710&B37&".pdf" -> https://www.sia.aviation-civile.gouv.fr/aip/enligne/PDF_AIPparSSection/VAC/AD/2/1003_AD-2.LFDA.pdf | U37: 43.7095 | V37: -0.24533 | W37: http://maps.google.com/maps?f=q&source=s_q&hl=nl&geocode=&q=43.7095, -0.24533&C4710ie=UTF8&t=c&z=11
A38: 35 | B38: LI0068 | C38: Airone | E38: 37 | F38: 6.83 | G38: 14 | H38: 12.87 | R38: 144.35 | U38: 37.11383 | V38: 14.2145 | W38: http://maps.google.com/maps?f=q&source=s_q&hl=nl&geocode=&q=37.11383, 14.2145&C4710ie=UTF8&t=c&z=11
A39: 36 | B39: LF2630 | C39: Aix en Diois - Vélisurface | E39: 44 | F39: 41.35 | G39: 5 | H39: 24.55 | I39: 1640 | U39: 44.68917 | V39: 5.40917 | W39: http://maps.google.com/maps?f=q&source=s_q&hl=nl&geocode=&q=44.68917, 5.40917&C4710ie=UTF8&t=c&z=11
A40: 37 | B40: LFMA | C40: Aix les Milles | E40: 43 | F40: 30.1 | G40: 5 | H40: 22.25 | I40: 367 | R40: 118.75 | S40: =$C$4714&"\"&B40&".jpg" -> c:\VCM2000\images\LFMA.jpg | T40: =$C$4710&B40&".pdf" -> https://www.sia.aviation-civile.gouv.fr/aip/enligne/PDF_AIPparSSection/VAC/AD/2/1003_AD-2.LFMA.pdf | U40: 43.50167 | V40: 5.37083 | W40: http://maps.google.com/maps?f=q&source=s_q&hl=nl&geocode=&q=43.50167, 5.37083&C4710ie=UTF8&t=c&z=11
A41: 38 | B41: ALM | C41: Aix Les Milles NDB | E41: 43 | F41: 30.47 | G41: 5 | H41: 21.62 | U41: 43.50783 | V41: 5.36033 | W41: http://maps.google.com/maps?f=q&source=s_q&hl=nl&geocode=&q=43.50783, 5.36033&C4710ie=UTF8&t=c&z=11
A42: 39 | B42: LFKJ | C42: Ajaccio Campo Dell'Oro | E42: 41 | F42: 55.43 | G42: 8 | H42: 48.15 | I42: 18 | R42: APP 121.05 | S42: =$C$4714&"\"&B42&".jpg" -> c:\VCM2000\images\LFKJ.jpg | T42: =$C$4710&B42&".pdf" -> https://www.sia.aviation-civile.gouv.fr/aip/enligne/PDF_AIPparSSection/VAC/AD/2/1003_AD-2.LFKJ.pdf | U42: 41.92383 | V42: 8.8025 | W42: http://maps.google.com/maps?f=q&source=s_q&hl=nl&geocode=&q=41.92383, 8.8025&C4710ie=UTF8&t=c&z=11
A43: 40 | B43: AJO | C43: Ajaccio VOR | E43: 41 | F43: 46.22 | G43: 8 | H43: 46.47 | U43: 41.77033 | V43: 8.7745 | W43: http://maps.google.com/maps?f=q&source=s_q&hl=nl&geocode=&q=41.77033, 8.7745&C4710ie=UTF8&t=c&z=11
A44: 41 | B44: IS | C44: Ajaccio/Campo Dell Oro NDB | E44: 41 | F44: 53.92 | G44: 8 | H44: 36.72 | U44: 41.89867 | V44: 8.612 | W44: http://maps.google.com/maps?f=q&source=s_q&hl=nl&geocode=&q=41.89867, 8.612&C4710ie=UTF8&t=c&z=11
A45: 42 | B45: LE0004 | C45: Ajo | E45: 43 | F45: 28.93 | G45: -3 | H45: -36.75 | I45: 69 | U45: 43.48217 | V45: -3.6125 | W45: http://maps.google.com/maps?f=q&source=s_q&hl=nl&geocode=&q=43.48217, -3.6125&C4710ie=UTF8&t=c&z=11
A46: 43 | B46: LEAB | C46: Albacete | E46: 38 | F46: 57 | G46: -1 | H46: -52 | I46: 2302 | U46: 38.95 | V46: -1.86667 | W46: http://maps.google.com/maps?f=q&source=s_q&hl=nl&geocode=&q=38.95, -1.86667&C4710ie=UTF8&t=c&z=11
A47: 44 | B47: LE0205 | C47: Albalat | E47: 39 | F47: 13.61 | G47: 0 | H47: -21.89 | I47: 0 | U47: 39.22683 | V47: -0.36483 | W47: http://maps.google.com/maps?f=q&source=s_q&hl=nl&geocode=&q=39.22683, -0.36483&C4710ie=UTF8&t=c&z=11
A48: 45 | B48: LE0082 | C48: Albarratech | E48: 41 | F48: 36.78 | G48: 0 | H48: 37.78 | I48: 0 | U48: 41.613 | V48: 0.62967 | W48: http://maps.google.com/maps?f=q&source=s_q&hl=nl&geocode=&q=41.613, 0.62967&C4710ie=UTF8&t=c&z=11
A49: 46 | B49: LF6721 | C49: Albe | E49: 48 | F49: 20.95 | G49: 7 | H49: 19.81 | I49: 1247 | S49: =$C$4714&"\"&B49&".jpg" -> c:\VCM2000\images\LF6721.jpg | U49: 48.34917 | V49: 7.33017 | W49: http://maps.google.com/maps?f=q&source=s_q&hl=nl&geocode=&q=48.34917, 7.33017&C4710ie=UTF8&t=c&z=11
A50: 47 | B50: LIMG | C50: Albenga | E50: 44 | F50: 2.68 | G50: 8 | H50: 7.58 | I50: 149 | S50: =$C$4714&"\"&B50&".jpg" -> c:\VCM2000\images\LIMG.jpg | U50: 44.04467 | V50: 8.12633 | W50: http://maps.google.com/maps?f=q&source=s_q&hl=nl&geocode=&q=44.04467, 8.12633&C4710ie=UTF8&t=c&z=11
A51: 48 | B51: ALB | C51: Albenga VOR | E51: 44 | F51: 2.9 | G51: 8 | H51: 7.7 | U51: 44.04833 | V51: 8.12833 | W51: http://maps.google.com/maps?f=q&source=s_q&hl=nl&geocode=&q=44.04833, 8.12833&C4710ie=UTF8&t=c&z=11
A52: 49 | B52: LFAQ | C52: Albert Bray | E52: 49 | F52: 58.35 | G52: 2 | H52: 41.48 | I52: 364 | S52: =$C$4714&"\"&B52&".jpg" -> c:\VCM2000\images\LFAQ.jpg | T52: =$C$4710&B52&".pdf" -> https://www.sia.aviation-civile.gouv.fr/aip/enligne/PDF_AIPparSSection/VAC/AD/2/1003_AD-2.LFAQ.pdf | U52: 49.9725 | V52: 2.69133 | W52: http://maps.google.com/maps?f=q&source=s_q&hl=nl&geocode=&q=49.9725, 2.69133&C4710ie=UTF8&t=c&z=11
A53: 50 | B53: LFKA | C53: Albertville | E53: 45 | F53: 37.63 | G53: 6 | H53: 19.78 | I53: 1033 | R53: 123.5 | S53: =$C$4714&"\"&B53&".jpg" -> c:\VCM2000\images\LFKA.jpg | T53: =$C$4710&B53&".pdf" -> https://www.sia.aviation-civile.gouv.fr/aip/enligne/PDF_AIPparSSection/VAC/AD/2/1003_AD-2.LFKA.pdf | U53: 45.62717 | V53: 6.32967 | W53: http://maps.google.com/maps?f=q&source=s_q&hl=nl&geocode=&q=45.62717, 6.32967&C4710ie=UTF8&t=c&z=11
A54: 51 | B54: LF8156 | C54: Albi / Castelvert | E54: 43 | F54: 49.83 | G54: 2 | H54: 7.48 | S54: =$C$4714&"\"&B54&".jpg" -> c:\VCM2000\images\LF8156.jpg | U54: 43.8305 | V54: 2.12467 | W54: http://maps.google.com/maps?f=q&source=s_q&hl=nl&geocode=&q=43.8305, 2.12467&C4710ie=UTF8&t=c&z=11
A55: 52 | B55: LFCI | C55: Albi le Sequestre | E55: 43 | F55: 54.8 | G55: 2 | H55: 7 | I55: 564 | R55: 118.95 | S55: =$C$4714&"\"&B55&".jpg" -> c:\VCM2000\images\LFCI.jpg | T55: =$C$4710&B55&".pdf" -> https://www.sia.aviation-civile.gouv.fr/aip/enligne/PDF_AIPparSSection/VAC/AD/2/1003_AD-2.LFCI.pdf | U55: 43.91333 | V55: 2.11667 | W55: http://maps.google.com/maps?f=q&source=s_q&hl=nl&geocode=&q=43.91333, 2.11667&C4710ie=UTF8&t=c&z=11
A56: 53 | B56: LF8221 | C56: Albias | E56: 44 | F56: 5.12 | G56: 1 | H56: 26.08 | I56: 262 | U56: 44.08533 | V56: 1.43467 | W56: http://maps.google.com/maps?f=q&source=s_q&hl=nl&geocode=&q=44.08533, 1.43467&C4710ie=UTF8&t=c&z=11
A57: 54 | B57: LE0311 | C57: Alboran Island Heliport | E57: 35 | F57: 56.33 | G57: -3 | H57: -2.43 | I57: 39 | U57: 35.93883 | V57: -3.0405 | W57: http://maps.google.com/maps?f=q&source=s_q&hl=nl&geocode=&q=35.93883, -3.0405&C4710ie=UTF8&t=c&z=11
A58: 55 | B58: EDSA | C58: Albstadt-Degerfeld | E58: 48 | F58: 14.98 | G58: 9 | H58: 3.62 | I58: 2881 | R58: 125.100 Info | S58: =$C$4714&"\"&B58&".jpg" -> c:\VCM2000\images\EDSA.jpg | U58: 48.24967 | V58: 9.06033 | W58: http://maps.google.com/maps?f=q&source=s_q&hl=nl&geocode=&q=48.24967, 9.06033&C4710ie=UTF8&t=c&z=11
A59: 56 | B59: LERI | C59: Alcantarilla | E59: 37 | F59: 57.1 | G59: -1 | H59: -13.87 | I59: 253 | U59: 37.95167 | V59: -1.23117 | W59: http://maps.google.com/maps?f=q&source=s_q&hl=nl&geocode=&q=37.95167, -1.23117&C4710ie=UTF8&t=c&z=11
A60: 57 | B60: LE0128 | C60: Alcantud | E60: 40 | F60: 33 | G60: -2 | H60: -19 | I60: 0 | U60: 40.55 | V60: -2.31667 | W60: http://maps.google.com/maps?f=q&source=s_q&hl=nl&geocode=&q=40.55, -2.31667&C4710ie=UTF8&t=c&z=11
A61: 58 | B61: LE0198 | C61: Alcazar de San Juan | E61: 39 | F61: 23.25 | G61: -3 | H61: -12.16 | I61: 0 | U61: 39.3875 | V61: -3.20267 | W61: http://maps.google.com/maps?f=q&source=s_q&hl=nl&geocode=&q=39.3875, -3.20267&C4710ie=UTF8&t=c&z=11
A62: 59 | B62: LE0094 | C62: Alcazarren | E62: 41 | F62: 22.77 | G62: -4 | H62: -42.17 | I62: 2526 | R62: 120.050 | S62: =$C$4714&"\"&B62&".jpg" -> c:\VCM2000\images\LE0094.jpg | U62: 41.3795 | V62: -4.70283 | W62: http://maps.google.com/maps?f=q&source=s_q&hl=nl&geocode=&q=41.3795, -4.70283&C4710ie=UTF8&t=c&z=11
A63: 60 | B63: LE0273 | C63: Alcolea (Cordoba) | E63: 37 | F63: 56.77 | G63: -4 | H63: -35.37 | I63: 462 | U63: 37.94617 | V63: -4.5895 | W63: http://maps.google.com/maps?f=q&source=s_q&hl=nl&geocode=&q=37.94617, -4.5895&C4710ie=UTF8&t=c&z=11
A64: 61 | B64: EGWZ | C64: Alconbury | E64: 52 | F64: 22.45 | G64: 0 | H64: -13.5 | I64: 160 | U64: 52.37417 | V64: -0.225 | W64: http://maps.google.com/maps?f=q&source=s_q&hl=nl&geocode=&q=52.37417, -0.225&C4710ie=UTF8&t=c&z=11
A65: 62 | B65: ALD/L | C65: ALD/L (Locator Alderney VRP) | E65: 49 | F65: 42.6 | G65: -2 | H65: -11.9 | U65: 49.71 | V65: -2.19833 | W65: http://maps.google.com/maps?f=q&source=s_q&hl=nl&geocode=&q=49.71, -2.19833&C4710ie=UTF8&t=c&z=11
A66: 63 | B66: LE0187 | C66: Aldea Centenera | E66: 39 | F66: 34.83 | G66: -5 | H66: -39.23 | I66: 1724 | U66: 39.5805 | V66: -5.65383 | W66: http://maps.google.com/maps?f=q&source=s_q&hl=nl&geocode=&q=39.5805, -5.65383&C4710ie=UTF8&t=c&z=11
A67: 64 | B67: OY | C67: Aldergrove NDB | E67: 54 | F67: 41.56 | G67: -6 | H67: -5.12 | U67: 54.69267 | V67: -6.08533 | W67: http://maps.google.com/maps?f=q&source=s_q&hl=nl&geocode=&q=54.69267, -6.08533&C4710ie=UTF8&t=c&z=11
A68: 65 | B68: EGJA | C68: Alderney | E68: 49 | F68: 42.42 | G68: -2 | H68: -12.8 | I68: 290 | S68: =$C$4714&"\"&B68&".jpg" -> c:\VCM2000\images\EGJA.jpg | T68: =$C$4713&"/"&B68&"/EG_AD_2_"&B68&"_2-1_en.pdf" -> http://www.nats-uk.ead-it.com/aip/current/ad//EGJA/EG_AD_2_EGJA_2-1_en.pdf | U68: 49.707 | V68: -2.21333 | W68: http://maps.google.com/maps?f=q&source=s_q&hl=nl&geocode=&q=49.707, -2.21333&C4710ie=UTF8&t=c&z=11
A69: 66 | B69: ALD | C69: Alderney Aurig NDB | E69: 49 | F69: 42.52 | G69: -2 | H69: -11.97 | U69: 49.70867 | V69: -2.1995 | W69: http://maps.google.com/maps?f=q&source=s_q&hl=nl&geocode=&q=49.70867, -2.1995&C4710ie=UTF8&t=c&z=11
A70: 67 | B70: LFOF | C70: Alenç on Valframbert | E70: 48 | F70: 26.85 | G70: 0 | H70: 6.55 | I70: 476 | R70: A/A 118.325 | S70: =$C$4714&"\"&B70&".jpg" -> c:\VCM2000\images\LFOF.jpg | T70: =$C$4710&B70&".pdf" -> https://www.sia.aviation-civile.gouv.fr/aip/enligne/PDF_AIPparSSection/VAC/AD/2/1003_AD-2.LFOF.pdf | U70: =ROUND(E70+(F70/60),5) -> 48.4475 | V70: =ROUND(G70+(H70/60),5) -> 0.10917 | W70: http://maps.google.com/maps?f=q&source=s_q&hl=nl&geocode=&q=48.4475, 0.10917&C4710ie=UTF8&t=c&z=11
A71: 68 | B71: LE0042 | C71: Alerre | E71: 42 | F71: 10 | G71: 0 | H71: -29.18 | I71: 0 | U71: 42.16667 | V71: -0.48633 | W71: http://maps.google.com/maps?f=q&source=s_q&hl=nl&geocode=&q=42.16667, -0.48633&C4710ie=UTF8&t=c&z=11
A72: 69 | B72: LFMS | C72: Alès Déaux | E72: 44 | F72: 4.37 | G72: 4 | H72: 8.58 | I72: 669 | S72: =$C$4714&"\"&B72&".jpg" -> c:\VCM2000\images\LFMS.jpg | T72: =$C$4710&B72&".pdf" -> https://www.sia.aviation-civile.gouv.fr/aip/enligne/PDF_AIPparSSection/VAC/AD/2/1003_AD-2.LFMS.pdf | U72: 44.07283 | V72: 4.143 | W72: http://maps.google.com/maps?f=q&source=s_q&hl=nl&geocode=&q=44.07283, 4.143&C4710ie=UTF8&t=c&z=11
A73: 70 | B73: LI0003 | C73: Alessandria | E73: 44 | F73: 56.15 | G73: 8 | H73: 44.95 | R73: 0 | U73: 44.93583 | V73: 8.74917 | W73: http://maps.google.com/maps?f=q&source=s_q&hl=nl&geocode=&q=44.93583, 8.74917&C4710ie=UTF8&t=c&z=11
A74: 71 | B74: LILA | C74: Alessandria | E74: 44 | F74: 55.47 | G74: 8 | H74: 37.53 | I74: 299 | R74: Alessandria radio 126.900 | U74: 44.9245 | V74: 8.6255 | W74: http://maps.google.com/maps?f=q&source=s_q&hl=nl&geocode=&q=44.9245, 8.6255&C4710ie=UTF8&t=c&z=11
A75: 72 | B75: LF0921 | C75: Aleu | E75: 42 | F75: 53.88 | G75: 1 | H75: 16.43 | I75: 3445 | R75: A/A 130,000 | S75: =$C$4714&"\"&B75&".jpg" -> c:\VCM2000\images\LF0921.jpg | U75: 42.898 | V75: 1.27383 | W75: http://maps.google.com/maps?f=q&source=s_q&hl=nl&geocode=&q=42.898, 1.27383&C4710ie=UTF8&t=c&z=11
A76: 73 | B76: LE0093 | C76: Alfamen | E76: 41 | F76: 24.42 | G76: -1 | H76: -14.48 | I76: 863 | U76: 41.407 | V76: -1.24133 | W76: http://maps.google.com/maps?f=q&source=s_q&hl=nl&geocode=&q=41.407, -1.24133&C4710ie=UTF8&t=c&z=11
A77: 74 | B77: LE0088 | C77: Alfes-Albatarrech (Lérida) | E77: 41 | F77: 33 | G77: 0 | H77: 39 | I77: 705 | S77: =$C$4714&"\"&B77&".jpg" -> c:\VCM2000\images\LE0088.jpg | U77: 41.55 | V77: 0.65 | W77: http://maps.google.com/maps?f=q&source=s_q&hl=nl&geocode=&q=41.55, 0.65&C4710ie=UTF8&t=c&z=11
A78: 75 | B78: LIEA | C78: Alghero Fertilia | E78: 40 | F78: 37.93 | G78: 8 | H78: 17.37 | I78: 87 | S78: =$C$4714&"\"&B78&".jpg" -> c:\VCM2000\images\LIEA.jpg | U78: 40.63217 | V78: 8.2895 | W78: http://maps.google.com/maps?f=q&source=s_q&hl=nl&geocode=&q=40.63217, 8.2895&C4710ie=UTF8&t=c&z=11
A79: 76 | B79: LE0170 | C79: Algodor (Toledo) | E79: 39 | F79: 53.93 | G79: -3 | H79: -52.5 | I79: 1595 | R79: 123.400 | U79: 39.89883 | V79: -3.875 | W79: http://maps.google.com/maps?f=q&source=s_q&hl=nl&geocode=&q=39.89883, -3.875&C4710ie=UTF8&t=c&z=11
A80: 77 | B80: LEAL | C80: Alicante | E80: 38 | F80: 16.35 | G80: 0 | H80: -33.88 | I80: 142 | R80: 118.15 | S80: =$C$4714&"\"&B80&".jpg" -> c:\VCM2000\images\LEAL.jpg | U80: 38.2725 | V80: -0.56467 | W80: =$C$4715&TRUNC(U80)&"."&IF(U80-TRUNC(U80)=0,"0",MID(U80,SEARCH(",",U80)+1,7))&", "&IF(AND(V80<0,V80>-1),"-"&TRUNC(V80),TRUNC(V80))&"."&IF(V80-TRUNC(V80)=0,"0",MID(V80,SEARCH(",",V80)+1,7))&$C$4716 -> http://maps.google.com/maps?f=q&source=s_q&hl=nl&geocode=&q=38.2725, -0.56467&C4710ie=UTF8&t=c&z=11
A81: 78 | B81: LPJQ | C81: Alijo | E81: 41 | F81: 19.6 | G81: -7 | H81: -27 | I81: 2562 | U81: 41.32667 | V81: -7.45 | W81: http://maps.google.com/maps?f=q&source=s_q&hl=nl&geocode=&q=41.32667, -7.45&C4710ie=UTF8&t=c&z=11
A82: 79 | B82: EDBA | C82: Alkersleben-Wülfershausen | E82: 50 | F82: 50.47 | G82: 11 | H82: 4.22 | I82: 1145 | R82: 123 | S82: =$C$4714&"\"&B82&".jpg" -> c:\VCM2000\images\EDBA.jpg | U82: 50.84117 | V82: 11.07033 | W82: http://maps.google.com/maps?f=q&source=s_q&hl=nl&geocode=&q=50.84117, 11.07033&C4710ie=UTF8&t=c&z=11
A83: 80 | B83: LF7851 | C83: Allainville | E83: 48 | F83: 28.08 | G83: 1 | H83: 53.88 | I83: 508 | U83: 48.468 | V83: 1.898 | W83: http://maps.google.com/maps?f=q&source=s_q&hl=nl&geocode=&q=48.468, 1.898&C4710ie=UTF8&t=c&z=11
A84: 81 | B84: EDFQ | C84: Allendorf/Eder | E84: 51 | F84: 2.12 | G84: 8 | H84: 40.73 | I84: 1158 | R84: 118.175 | U84: 51.03533 | V84: 8.67883 | W84: http://maps.google.com/maps?f=q&source=s_q&hl=nl&geocode=&q=51.03533, 8.67883&C4710ie=UTF8&t=c&z=11
A85: 82 | B85: EDBT | C85: Allstedt | E85: 51 | F85: 22.9 | G85: 11 | H85: 26.8 | I85: 932 | R85: 122 | S85: =$C$4714&"\"&B85&".jpg" -> c:\VCM2000\images\EDBT.jpg | U85: 51.38167 | V85: 11.44667 | W85: http://maps.google.com/maps?f=q&source=s_q&hl=nl&geocode=&q=51.38167, 11.44667&C4710ie=UTF8&t=c&z=11
A86: 83 | B86: LE0224 | C86: Almagro-Famet (Ciudad Real) pista emerg. | E86: 38 | F86: 57.28 | G86: -3 | H86: -44.4 | I86: 2066 | U86: 38.95467 | V86: -3.74 | W86: http://maps.google.com/maps?f=q&source=s_q&hl=nl&geocode=&q=38.95467, -3.74&C4710ie=UTF8&t=c&z=11
A87: 84 | B87: LE0231 | C87: Almansa (Albacete) | E87: 38 | F87: 53.74 | G87: -1 | H87: -6.81 | I87: 2330 | R87: 123.500 | U87: 38.89567 | V87: -1.1135 | W87: http://maps.google.com/maps?f=q&source=s_q&hl=nl&geocode=&q=38.89567, -1.1135&C4710ie=UTF8&t=c&z=11
A88: 85 | B88: LE0247 | C88: Almendralejo | E88: 38 | F88: 40.35 | G88: -6 | H88: -25.98 | I88: 1100 | R88: 130.125 | U88: 38.6725 | V88: -6.433 | W88: http://maps.google.com/maps?f=q&source=s_q&hl=nl&geocode=&q=38.6725, -6.433&C4710ie=UTF8&t=c&z=11
A89: 86 | B89: LEAM | C89: Almeria | E89: 36 | F89: 50.4 | G89: -2 | H89: -20.13 | I89: 70 | R89: 118.35 | U89: 36.84 | V89: -2.3355 | W89: http://maps.google.com/maps?f=q&source=s_q&hl=nl&geocode=&q=36.84, -2.3355&C4710ie=UTF8&t=c&z=11
A90: 87 | B90: LE0145 | C90: Almorox 1 (Toledo) | E90: 40 | F90: 12.65 | G90: -4 | H90: -21.49 | I90: 1574 | U90: 40.21083 | V90: -4.35817 | W90: http://maps.google.com/maps?f=q&source=s_q&hl=nl&geocode=&q=40.21083, -4.35817&C4710ie=UTF8&t=c&z=11
A91: 88 | B91: LE0144 | C91: Almorox 2 (Toledo) | E91: 40 | F91: 12.81 | G91: -4 | H91: -23.18 | I91: 1640 | U91: 40.2135 | V91: -4.38633 | W91: http://maps.google.com/maps?f=q&source=s_q&hl=nl&geocode=&q=40.2135, -4.38633&C4710ie=UTF8&t=c&z=11
A92: 89 | B92: LE0256 | C92: Almuradiel (Ciudad-Real)"Botνn" | E92: 38 | F92: 30.15 | G92: -3 | H92: -26.57 | I92: 2395 | U92: 38.5025 | V92: -3.44283 | W92: http://maps.google.com/maps?f=q&source=s_q&hl=nl&geocode=&q=38.5025, -3.44283&C4710ie=UTF8&t=c&z=11
A93: 90 | B93: LSMA | C93: Alpnach | E93: 46 | F93: 56.63 | G93: 8 | H93: 17.05 | I93: 1444 | U93: 46.94383 | V93: 8.28417 | W93: http://maps.google.com/maps?f=q&source=s_q&hl=nl&geocode=&q=46.94383, 8.28417&C4710ie=UTF8&t=c&z=11
A94: 91 | B94: ED3241 | C94: Alsfeld Vogelsbergkreis | E94: 50 | F94: 45 | G94: 9 | H94: 15 | I94: 970 | R94: 123.5 | U94: 50.75 | V94: 9.25 | W94: http://maps.google.com/maps?f=q&source=s_q&hl=nl&geocode=&q=50.75, 9.25&C4710ie=UTF8&t=c&z=11
A95: 92 | B95: LE0240 | C95: Altarejos - Guadalcanal (Cσrdoba) | E95: 38 | F95: 44.8 | G95: -3 | H95: -31.93 | I95: 0 | U95: 38.74667 | V95: -3.53217 | W95: http://maps.google.com/maps?f=q&source=s_q&hl=nl&geocode=&q=38.74667, -3.53217&C4710ie=UTF8&t=c&z=11
A96: 93 | B96: ED3132 | C96: Altdorf-Hagenhausen Nürnberger Land | E96: 49 | F96: 23.27 | G96: 11 | H96: 25.35 | I96: 1753 | R96: 129.975 | S96: =$C$4714&"\"&B96&".jpg" -> c:\VCM2000\images\ED3132.jpg | U96: 49.38783 | V96: 11.4225 | W96: http://maps.google.com/maps?f=q&source=s_q&hl=nl&geocode=&q=49.38783, 11.4225&C4710ie=UTF8&t=c&z=11
A97: 94 | B97: EDSW | C97: Altdorf-Wallburg | E97: 48 | F97: 16.18 | G97: 7 | H97: 50.53 | I97: 625 | R97: 127.15 | U97: 48.26967 | V97: 7.84217 | W97: http://maps.google.com/maps?f=q&source=s_q&hl=nl&geocode=&q=48.26967, 7.84217&C4710ie=UTF8&t=c&z=11
A98: 95 | B98: ED3355 | C98: Alte Ems bei Herbrum Emsland | E98: 53 | F98: 1.95 | G98: 7 | H98: 18.33 | I98: 7 | R98: 123.15 | U98: 53.0325 | V98: 7.3055 | W98: http://maps.google.com/maps?f=q&source=s_q&hl=nl&geocode=&q=53.0325, 7.3055&C4710ie=UTF8&t=c&z=11
A99: 96 | B99: EDKD | C99: Altena-Hegenscheid | E99: 51 | F99: 18.8 | G99: 7 | H99: 42.6 | I99: 1552 | R99: 122.2 | U99: 51.31333 | V99: 7.71 | W99: http://maps.google.com/maps?f=q&source=s_q&hl=nl&geocode=&q=51.31333, 7.71&C4710ie=UTF8&t=c&z=11
A100: 97 | B100: ED3172 | C100: Altenbachtal/Obernau Krs. Aschaffenburg | E100: 49 | F100: 55.4 | G100: 9 | H100: 9.47 | I100: 433 | R100: 123.5 | U100: 49.92333 | V100: 9.15783 | W100: http://maps.google.com/maps?f=q&source=s_q&hl=nl&geocode=&q=49.92333, 9.15783&C4710ie=UTF8&t=c&z=11
A101: 98 | B101: ABU | C101: Altenburg NDB | E101: 50 | F101: 59.62 | G101: 12 | H101: 31.25 | U101: 50.99367 | V101: 12.52083 | W101: http://maps.google.com/maps?f=q&source=s_q&hl=nl&geocode=&q=50.99367, 12.52083&C4710ie=UTF8&t=c&z=11
A102: 99 | B102: EDAC | C102: Altenburg-Nobitz | E102: 50 | F102: 58.92 | G102: 12 | H102: 30.38 | I102: 626 | R102: 123.575 | S102: =$C$4714&"\"&B102&".jpg" -> c:\VCM2000\images\EDAC.jpg | U102: 50.982 | V102: 12.50633 | W102: http://maps.google.com/maps?f=q&source=s_q&hl=nl&geocode=&q=50.982, 12.50633&C4710ie=UTF8&t=c&z=11
A103: 100 | B103: ETHA | C103: Altenstadt | E103: 47 | F103: 50.13 | G103: 10 | H103: 52.27 | I103: 2431 | R103: 122.1 | U103: 47.8355 | V103: 10.87117 | W103: http://maps.google.com/maps?f=q&source=s_q&hl=nl&geocode=&q=47.8355, 10.87117&C4710ie=UTF8&t=c&z=11
A104: 101 | B104: ED5095 | C104: Altes Lager-Jüterbog | E104: 51 | F104: 59.77 | G104: 12 | H104: 59.03 | I104: 320 | R104: 123425 | U104: 51.99617 | V104: 12.98383 | W104: http://maps.google.com/maps?f=q&source=s_q&hl=nl&geocode=&q=51.99617, 12.98383&C4710ie=UTF8&t=c&z=11
A105: 102 | B105: ED3162 | C105: Altfeld Lkr. Main-Spessart | E105: 49 | F105: 49.98 | G105: 9 | H105: 32.2 | I105: 1150 | R105: 130.125 | U105: 49.833 | V105: 9.53667 | W105: http://maps.google.com/maps?f=q&source=s_q&hl=nl&geocode=&q=49.833, 9.53667&C4710ie=UTF8&t=c&z=11
A106: 103 | B106: LE0102 | C106: Alto rey | E106: 41 | F106: 6.55 | G106: -2 | H106: -59.23 | I106: 4101 | U106: 41.10917 | V106: -2.98717 | W106: http://maps.google.com/maps?f=q&source=s_q&hl=nl&geocode=&q=41.10917, -2.98717&C4710ie=UTF8&t=c&z=11
A107: 104 | B107: ED5010 | C107: Altomünster | E107: 48 | F107: 22.92 | G107: 11 | H107: 16.4 | I107: 1604 | R107: 123.425 | S107: =$C$4714&"\"&B107&".jpg" -> c:\VCM2000\images\ED5010.jpg | U107: 48.382 | V107: 11.27333 | W107: http://maps.google.com/maps?f=q&source=s_q&hl=nl&geocode=&q=48.382, 11.27333&C4710ie=UTF8&t=c&z=11
A108: 105 | B108: ED3040 | C108: Altφtting | E108: 48 | F108: 13.03 | G108: 12 | H108: 38.9 | I108: 1312 | R108: 123.5 | S108: =$C$4714&"\"&B108&".jpg" -> c:\VCM2000\images\ED3040.jpg | U108: 48.21717 | V108: 12.64833 | W108: http://maps.google.com/maps?f=q&source=s_q&hl=nl&geocode=&q=48.21717, 12.64833&C4710ie=UTF8&t=c&z=11
A109: 106 | B109: LPAR | C109: Alverca | E109: 38 | F109: 53.03 | G109: -9 | H109: -1.6 | I109: 9 | U109: 38.88383 | V109: -9.02667 | W109: http://maps.google.com/maps?f=q&source=s_q&hl=nl&geocode=&q=38.88383, -9.02667&C4710ie=UTF8&t=c&z=11
A110: 107 | B110: LILB | C110: Alzate Brianza | E110: 45 | F110: 46.17 | G110: 9 | H110: 9.67 | I110: 1260 | R110: 123.500 | U110: 45.7695 | V110: 9.16117 | W110: http://maps.google.com/maps?f=q&source=s_q&hl=nl&geocode=&q=45.7695, 9.16117&C4710ie=UTF8&t=c&z=11
A111: 108 | B111: ED5077 | C111: Am Deister bei Lauenau | E111: 52 | F111: 17.67 | G111: 9 | H111: 22.6 | I111: 0 | R111: 123.425 | U111: 52.2945 | V111: 9.37667 | W111: http://maps.google.com/maps?f=q&source=s_q&hl=nl&geocode=&q=52.2945, 9.37667&C4710ie=UTF8&t=c&z=11
A112: 109 | B112: ED3326 | C112: Am Salzgittersee Stadt Salzgitter | E112: 52 | F112: 10.18 | G112: 10 | H112: 18.95 | I112: 266 | R112: 130.125 | U112: 52.16967 | V112: 10.31583 | W112: http://maps.google.com/maps?f=q&source=s_q&hl=nl&geocode=&q=52.16967, 10.31583&C4710ie=UTF8&t=c&z=11
A113: 110 | B113: ED3280 | C113: Am Staufenberg Lkr. Gφttingen | E113: 51 | F113: 21.77 | G113: 9 | H113: 37.72 | I113: 1148 | R113: 123.5 | U113: 51.36283 | V113: 9.62867 | W113: http://maps.google.com/maps?f=q&source=s_q&hl=nl&geocode=&q=51.36283, 9.62867&C4710ie=UTF8&t=c&z=11
A114: 111 | B114: LF3552 | C114: Amanlis (Janzé) | E114: 47 | F114: 59.58 | G114: -1 | H114: -29.45 | I114: 203 | R114: 123.500 | U114: 47.993 | V114: -1.49083 | W114: http://maps.google.com/maps?f=q&source=s_q&hl=nl&geocode=&q=47.993, -1.49083&C4710ie=UTF8&t=c&z=11
A115: 112 | B115: LFXA | C115: Ambérieu | E115: 45 | F115: 58.78 | G115: 5 | H115: 20.27 | I115: 823 | R115: 129.75 | S115: =$C$4714&"\"&B115&".jpg" -> c:\VCM2000\images\LFXA.jpg | T115: =$C$4710&B115&".pdf" -> https://www.sia.aviation-civile.gouv.fr/aip/enligne/PDF_AIPparSSection/VAC/AD/2/1003_AD-2.LFXA.pdf | U115: 45.97967 | V115: 5.33783 | W115: http://maps.google.com/maps?f=q&source=s_q&hl=nl&geocode=&q=45.97967, 5.33783&C4710ie=UTF8&t=c&z=11
A116: 113 | B116: AMU | C116: Amberieu TACAN | E116: 45 | F116: 59.32 | G116: 5 | H116: 19.87 | U116: 45.98867 | V116: 5.33117 | W116: http://maps.google.com/maps?f=q&source=s_q&hl=nl&geocode=&q=45.98867, 5.33117&C4710ie=UTF8&t=c&z=11
A117: 114 | B117: LFHT | C117: Ambert le Poyet | E117: 45 | F117: 31.02 | G117: 3 | H117: 44.78 | I117: 1847 | R117: 123.5 | S117: =$C$4714&"\"&B117&".jpg" -> c:\VCM2000\images\LFHT.jpg | T117: =$C$4710&B117&".pdf" -> https://www.sia.aviation-civile.gouv.fr/aip/enligne/PDF_AIPparSSection/VAC/AD/2/1003_AD-2.LFHT.pdf | U117: 45.517 | V117: 3.74633 | W117: http://maps.google.com/maps?f=q&source=s_q&hl=nl&geocode=&q=45.517, 3.74633&C4710ie=UTF8&t=c&z=11
A118: 115 | B118: AMB1 | C118: Amboise NDB | E118: 47 | F118: 25.08 | G118: 1 | H118: 2.45 | U118: 47.418 | V118: 1.04083 | W118: http://maps.google.com/maps?f=q&source=s_q&hl=nl&geocode=&q=47.418, 1.04083&C4710ie=UTF8&t=c&z=11
A119: 116 | B119: LFEF | C119: Amboise Dierre | E119: 47 | F119: 20.48 | G119: 0 | H119: 56.55 | I119: 180 | R119: 118.775 | S119: =$C$4714&"\"&B119&".jpg" -> c:\VCM2000\images\LFEF.jpg | T119: =$C$4710&B119&".pdf" -> https://www.sia.aviation-civile.gouv.fr/aip/enligne/PDF_AIPparSSection/VAC/AD/2/1003_AD-2.LFEF.pdf | U119: 47.34133 | V119: 0.9425 | W119: http://maps.google.com/maps?f=q&source=s_q&hl=nl&geocode=&q=47.34133, 0.9425&C4710ie=UTF8&t=c&z=11
A120: 117 | B120: AMB | C120: Amboise VOR | E120: 47 | F120: 25.73 | G120: 1 | H120: 3.87 | U120: 47.42883 | V120: 1.0645 | W120: http://maps.google.com/maps?f=q&source=s_q&hl=nl&geocode=&q=47.42883, 1.0645&C4710ie=UTF8&t=c&z=11
A121: 118 | B121: LSPM | C121: Ambri | E121: 46 | F121: 30.8 | G121: 8 | H121: 41.4 | I121: 3241 | S121: =$C$4714&"\"&B121&".jpg" -> c:\VCM2000\images\LSPM.jpg | U121: 46.51333 | V121: 8.69 | W121: http://maps.google.com/maps?f=q&source=s_q&hl=nl&geocode=&q=46.51333, 8.69&C4710ie=UTF8&t=c&z=11
A122: 119 | B122: EHAL | C122: Ameland | E122: 53 | F122: 27.17 | G122: 5 | H122: 40.67 | I122: 11 | R122: 118.350 | T122: =C4717 -> 0 | U122: 53.45283 | V122: 5.67783 | W122: http://maps.google.com/maps?f=q&source=s_q&hl=nl&geocode=&q=53.45283, 5.67783&C4710ie=UTF8&t=c&z=11
A123: 120 | B123: LIBA | C123: Amendola | E123: 41 | F123: 32.32 | G123: 15 | H123: 42.87 | I123: 187 | S123: =$C$4714&"\"&B123&".jpg" -> c:\VCM2000\images\LIBA.jpg | U123: 41.53867 | V123: 15.7145 | W123: http://maps.google.com/maps?f=q&source=s_q&hl=nl&geocode=&q=41.53867, 15.7145&C4710ie=UTF8&t=c&z=11
A124: 121 | B124: LFAY | C124: Amiens Glisy | E124: 49 | F124: 52.38 | G124: 2 | H124: 23.22 | I124: 208 | R124: 123.4 | S124: c:\VCM2000\images\LFAY.jpg | T124: =$C$4710&B124&".pdf" -> https://www.sia.aviation-civile.gouv.fr/aip/enligne/PDF_AIPparSSection/VAC/AD/2/1003_AD-2.LFAY.pdf | U124: 49.873 | V124: 2.387 | W124: http://maps.google.com/maps?f=q&source=s_q&hl=nl&geocode=&q=49.873, 2.387&C4710ie=UTF8&t=c&z=11
A125: 122 | B125: LSPA | C125: Amlikon | E125: 47 | F125: 34.45 | G125: 9 | H125: 2.85 | I125: 1368 | R125: 132575 | S125: c:\VCM2000\images\LSPA.jpg | U125: 47.57417 | V125: 9.0475 | W125: http://maps.google.com/maps?f=q&source=s_q&hl=nl&geocode=&q=47.57417, 9.0475&C4710ie=UTF8&t=c&z=11
A126: 123 | B126: LF4051 | C126: Amou | E126: 43 | F126: 35.1 | G126: 0 | H126: -45.87 | I126: 250 | S126: c:\VCM2000\images\LF4051.jpg | U126: 43.585 | V126: -0.7645 | W126: http://maps.google.com/maps?f=q&source=s_q&hl=nl&geocode=&q=43.585, -0.7645&C4710ie=UTF8&t=c&z=11
A127: 124 | B127: EBAM | C127: Amougies | E127: 50 | F127: 44.42 | G127: 3 | H127: 29.25 | I127: 49 | R127: 119750 | S127: c:\VCM2000\images\EBAM.jpg | T127: =$C$4712&"\"&B127&".nl.pdf" -> c:\VCM2000\VAC Belgie\EBAM.nl.pdf | U127: 50.74033 | V127: 3.4875 | W127: http://maps.google.com/maps?f=q&source=s_q&hl=nl&geocode=&q=50.74033, 3.4875&C4710ie=UTF8&t=c&z=11
A128: 125 | B128: EDNA | C128: Ampfing-Waldkraiburg | E128: 48 | F128: 15.8 | G128: 12 | H128: 24.7 | I128: 1360 | R128: 123.6 | S128: c:\VCM2000\images\EDNA.jpg | U128: 48.26333 | V128: 12.41167 | W128: http://maps.google.com/maps?f=q&source=s_q&hl=nl&geocode=&q=48.26333, 12.41167&C4710ie=UTF8&t=c&z=11
A129: 126 | B129: LEAP | C129: Ampuriabrava | E129: 42 | F129: 15.7 | G129: 3 | H129: 6.7 | I129: 5 | S129: c:\VCM2000\images\LEAP.jpg | U129: 42.26167 | V129: 3.11167 | W129: http://maps.google.com/maps?f=q&source=s_q&hl=nl&geocode=&q=42.26167, 3.11167&C4710ie=UTF8&t=c&z=11
A130: 127 | B130: LE0036 | C130: Ampuriabrava (Gerona) | E130: 42 | F130: 15.37 | G130: 3 | H130: 6.28 | I130: 16 | U130: 42.25617 | V130: 3.10467 | W130: http://maps.google.com/maps?f=q&source=s_q&hl=nl&geocode=&q=42.25617, 3.10467&C4710ie=UTF8&t=c&z=11
A131: 128 | B131: LF8327 | C131: Ampus | E131: 43 | F131: 37.17 | G131: 6 | H131: 20.93 | I131: 2051 | U131: 43.6195 | V131: 6.34883 | W131: http://maps.google.com/maps?f=q&source=s_q&hl=nl&geocode=&q=43.6195, 6.34883&C4710ie=UTF8&t=c&z=11
A132: 129 | B132: EHAM | C132: Amsterdam Schiphol | E132: 52 | F132: 18.48 | G132: 4 | H132: 45.85 | I132: -11 | S132: =$C$4714&"\"&B132&".jpg" -> c:\VCM2000\images\EHAM.jpg | T132: http://www.ais-netherlands.nl/aim/091231-100211/eAIP/html/index-en-GB.html | U132: 52.308 | V132: 4.76417 | W132: http://maps.google.com/maps?f=q&source=s_q&hl=nl&geocode=&q=52.308, 4.76417&C4710ie=UTF8&t=c&z=11
A133: 130 | B133: AMS | C133: Amsterdam VOR | E133: 52 | F133: 19.97 | G133: 4 | H133: 42.33 | U133: 52.33283 | V133: 4.7055 | W133: http://maps.google.com/maps?f=q&source=s_q&hl=nl&geocode=&q=52.33283, 4.7055&C4710ie=UTF8&t=c&z=11
A134: 131 | B134: ED3244 | C134: Amφneburg Lkr. Marburg | E134: 50 | F134: 47.47 | G134: 8 | H134: 54.42 | I134: 787 | R134: 122.475 | U134: =ROUND(E134+(F134/60),5) -> 50.79117 | V134: =ROUND(G134+(H134/60),5) -> 8.907 | W134: http://maps.google.com/maps?f=q&source=s_q&hl=nl&geocode=&q=50.79117, 8.907&C4710ie=UTF8&t=c&z=11
A135: 132 | B135: ED3319 | C135: An den Sieben Bergen Hildesheim | E135: 52 | F135: 3.57 | G135: 9 | H135: 48.72 | I135: 410 | R135: 123.5 | S135: =$C$4714&"\"&B135&".jpg" -> c:\VCM2000\images\ED3319.jpg | U135: 52.0595 | V135: 9.812 | W135: http://maps.google.com/maps?f=q&source=s_q&hl=nl&geocode=&q=52.0595, 9.812&C4710ie=UTF8&t=c&z=11
A136: 133 | B136: LI0005 | C136: Anagni | E136: 41 | F136: 43.07 | G136: 13 | H136: 5.95 | R136: 0 | U136: 41.71783 | V136: 13.09917 | W136: http://maps.google.com/maps?f=q&source=s_q&hl=nl&geocode=&q=41.71783, 13.09917&C4710ie=UTF8&t=c&z=11
A137: 134 | B137: LFFI | C137: Ancenis | E137: 47 | F137: 24.48 | G137: -1 | H137: -10.65 | I137: 111 | R137: A/A: 118,200 | S137: =$C$4714&"\"&B137&".jpg" -> c:\VCM2000\images\LFFI.jpg | T137: =$C$4710&B137&".pdf" -> https://www.sia.aviation-civile.gouv.fr/aip/enligne/PDF_AIPparSSection/VAC/AD/2/1003_AD-2.LFFI.pdf | U137: 47.408 | V137: -1.1775 | W137: http://maps.google.com/maps?f=q&source=s_q&hl=nl&geocode=&q=47.408, -1.1775&C4710ie=UTF8&t=c&z=11
A138: 135 | B138: LIPY | C138: Ancona Falconara | E138: 43 | F138: 36.92 | G138: 13 | H138: 21.75 | I138: 50 | U138: 43.61533 | V138: 13.3625 | W138: http://maps.google.com/maps?f=q&source=s_q&hl=nl&geocode=&q=43.61533, 13.3625&C4710ie=UTF8&t=c&z=11
A139: 136 | B139: LFCD | C139: Andernos les Bains | E139: 44 | F139: 45.37 | G139: -1 | H139: -3.8 | I139: 66 | R139: 120.4 | S139: =$C$4714&"\"&B139&".jpg" -> c:\VCM2000\images\LFCD.jpg | T139: =$C$4710&B139&".pdf" -> https://www.sia.aviation-civile.gouv.fr/aip/enligne/PDF_AIPparSSection/VAC/AD/2/1003_AD-2.LFCD.pdf | U139: 44.75617 | V139: -1.06333 | W139: http://maps.google.com/maps?f=q&source=s_q&hl=nl&geocode=&q=44.75617, -1.06333&C4710ie=UTF8&t=c&z=11
A140: 137 | B140: LF6451 | C140: Andoins | E140: 43 | F140: 17.87 | G140: 0 | H140: -14.02 | I140: 886 | S140: =$C$4714&"\"&B140&".jpg" -> c:\VCM2000\images\LF6451.jpg | U140: 43.29783 | V140: -0.23367 | W140: http://maps.google.com/maps?f=q&source=s_q&hl=nl&geocode=&q=43.29783, -0.23367&C4710ie=UTF8&t=c&z=11
A141: 138 | B141: LF5321 | C141: Andouillé le Terte picard | E141: 48 | F141: 10.42 | G141: 0 | H141: -50.8 | I141: 410 | S141: =$C$4714&"\"&B141&".jpg" -> c:\VCM2000\images\LF5321.jpg | U141: 48.17367 | V141: -0.84667 | W141: http://maps.google.com/maps?f=q&source=s_q&hl=nl&geocode=&q=48.17367, -0.84667&C4710ie=UTF8&t=c&z=11
A142: 139 | B142: EGSL | C142: Andrewsfield | E142: 51 | F142: 53.7 | G142: 0 | H142: 26.95 | I142: 286 | T142: =$C$4713&"/"&B142&"/EG_AD_2_"&B142&"_2-1_en.pdf" -> http://www.nats-uk.ead-it.com/aip/current/ad//EGSL/EG_AD_2_EGSL_2-1_en.pdf | U142: 51.895 | V142: 0.44917 | W142: http://maps.google.com/maps?f=q&source=s_q&hl=nl&geocode=&q=51.895, 0.44917&C4710ie=UTF8&t=c&z=11
A143: 140 | B143: LF6538 | C143: Anères | E143: 43 | F143: 4.97 | G143: 0 | H143: 27.98 | I143: 1705 | S143: =$C$4714&"\"&B143&".jpg" -> c:\VCM2000\images\LF6538.jpg | U143: 43.08283 | V143: 0.46633 | W143: http://maps.google.com/maps?f=q&source=s_q&hl=nl&geocode=&q=43.08283, 0.46633&C4710ie=UTF8&t=c&z=11
A144: 141 | B144: LF4921 | C144: Angers Avrillé | E144: 47 | F144: 29.87 | G144: 0 | H144: -34.42 | U144: 47.49783 | V144: -0.57367 | W144: =$C$4715&TRUNC(U144)&"."&IF(U144-TRUNC(U144)=0,"0",MID(U144,SEARCH(",",U144)+1,7))&", "&IF(AND(V144<0,V144>-1),"-"&TRUNC(V144),TRUNC(V144))&"."&IF(V144-TRUNC(V144)=0,"0",MID(V144,SEARCH(",",V144)+1,7))&$C$4716 -> http://maps.google.com/maps?f=q&source=s_q&hl=nl&geocode=&q=47.49783, -0.57367&C4710ie=UTF8&t=c&z=11
A145: 142 | B145: LFJR | C145: Angers Marcé | E145: 47 | F145: 33.62 | G145: 0 | H145: -18.73 | I145: 194 | R145: Angers TWR 124.70 | S145: =$C$4714&"\"&B145&".jpg" -> c:\VCM2000\images\LFJR.jpg | T145: =$C$4710&B145&".pdf" -> https://www.sia.aviation-civile.gouv.fr/aip/enligne/PDF_AIPparSSection/VAC/AD/2/1003_AD-2.LFJR.pdf | U145: 47.56033 | V145: -0.31217 | W145: http://maps.google.com/maps?f=q&source=s_q&hl=nl&geocode=&q=47.56033, -0.31217&C4710ie=UTF8&t=c&z=11
A146: 143 | B146: ANG | C146: Angers VOR | E146: 47 | F146: 32.2 | G146: 0 | H146: -51.1 | U146: 47.53667 | V146: -0.85167 | W146: http://maps.google.com/maps?f=q&source=s_q&hl=nl&geocode=&q=47.53667, -0.85167&C4710ie=UTF8&t=c&z=11
A147: 144 | B147: LFBU | C147: Angoulκme Brie Champniers | E147: 45 | F147: 43.77 | G147: 0 | H147: 13.15 | I147: 436 | R147: 123.15 | S147: =$C$4714&"\"&B147&".jpg" -> c:\VCM2000\images\LFBU.jpg | T147: =$C$4710&B147&".pdf" -> https://www.sia.aviation-civile.gouv.fr/aip/enligne/PDF_AIPparSSection/VAC/AD/2/1003_AD-2.LFBU.pdf | U147: 45.7295 | V147: 0.21917 | W147: http://maps.google.com/maps?f=q&source=s_q&hl=nl&geocode=&q=45.7295, 0.21917&C4710ie=UTF8&t=c&z=11
A148: 145 | B148: EDCA | C148: Anklam | E148: 53 | F148: 50 | G148: 13 | H148: 40.5 | I148: 18 | R148: 122.65 | U148: 53.83333 | V148: 13.675 | W148: http://maps.google.com/maps?f=q&source=s_q&hl=nl&geocode=&q=53.83333, 13.675&C4710ie=UTF8&t=c&z=11
A149: 146 | B149: ED3227 | C149: Annaberg-Pφhlberg | E149: 50 | F149: 34.5 | G149: 13 | H149: 2 | I149: 0 | R149: 122 | U149: 50.575 | V149: 13.03333 | W149: http://maps.google.com/maps?f=q&source=s_q&hl=nl&geocode=&q=50.575, 13.03333&C4710ie=UTF8&t=c&z=11
A150: 147 | B150: LFLP | C150: Annecy Meythet | E150: 45 | F150: 55.85 | G150: 6 | H150: 6.38 | I150: 1519 | S150: =$C$4714&"\"&B150&".jpg" -> c:\VCM2000\images\LFLP.jpg | T150: =$C$4710&B150&".pdf" -> https://www.sia.aviation-civile.gouv.fr/aip/enligne/PDF_AIPparSSection/VAC/AD/2/1003_AD-2.LFLP.pdf | U150: 45.93083 | V150: 6.10633 | W150: http://maps.google.com/maps?f=q&source=s_q&hl=nl&geocode=&q=45.93083, 6.10633&C4710ie=UTF8&t=c&z=11
A151: 148 | B151: LFLI | C151: Annemasse | E151: 46 | F151: 11.52 | G151: 6 | H151: 16.17 | I151: 1620 | R151: 125.875 | S151: =$C$4714&"\"&B151&".jpg" -> c:\VCM2000\images\LFLI.jpg | T151: =$C$4710&B151&".pdf" -> https://www.sia.aviation-civile.gouv.fr/aip/enligne/PDF_AIPparSSection/VAC/AD/2/1003_AD-2.LFLI.pdf | U151: 46.192 | V151: 6.2695 | W151: http://maps.google.com/maps?f=q&source=s_q&hl=nl&geocode=&q=46.192, 6.2695&C4710ie=UTF8&t=c&z=11
A152: 149 | B152: LF0721 | C152: Annonay | E152: 45 | F152: 12.57 | G152: 4 | H152: 40.17 | I152: 1148 | U152: 45.2095 | V152: 4.6695 | W152: http://maps.google.com/maps?f=q&source=s_q&hl=nl&geocode=&q=45.2095, 4.6695&C4710ie=UTF8&t=c&z=11
A153: 150 | B153: ETEB | C153: Ansbach | E153: 49 | F153: 18.5 | G153: 10 | H153: 38.3 | I153: 1532 | R153: 122.1 | S153: =$C$4714&"\"&B153&".jpg" -> c:\VCM2000\images\ETEB.jpg | U153: 49.30833 | V153: 10.63833 | W153: http://maps.google.com/maps?f=q&source=s_q&hl=nl&geocode=&q=49.30833, 10.63833&C4710ie=UTF8&t=c&z=11
A154: 151 | B154: ANS | C154: Ansbach NDB | E154: 49 | F154: 18.57 | G154: 10 | H154: 37.97 | U154: 49.3095 | V154: 10.63283 | W154: http://maps.google.com/maps?f=q&source=s_q&hl=nl&geocode=&q=49.3095, 10.63283&C4710ie=UTF8&t=c&z=11
A155: 152 | B155: EDQF | C155: Ansbach-Petersdorf | E155: 49 | F155: 21.6 | G155: 10 | H155: 40.27 | I155: 1370 | R155: 123.65 | U155: 49.36 | V155: 10.67117 | W155: http://maps.google.com/maps?f=q&source=s_q&hl=nl&geocode=&q=49.36, 10.67117&C4710ie=UTF8&t=c&z=11
A156: 153 | B156: EDFA | C156: Anspach-Taunus | E156: 50 | F156: 17.38 | G156: 8 | H156: 32.22 | I156: 1082 | R156: 121.025 | U156: 50.28967 | V156: 8.537 | W156: http://maps.google.com/maps?f=q&source=s_q&hl=nl&geocode=&q=50.28967, 8.537&C4710ie=UTF8&t=c&z=11
A157: 154 | B157: LE0302 | C157: Antequera (Malaga) | E157: 37 | F157: 3.92 | G157: -4 | H157: -37.17 | I157: 863 | U157: 37.06533 | V157: -4.6195 | W157: http://maps.google.com/maps?f=q&source=s_q&hl=nl&geocode=&q=37.06533, -4.6195&C4710ie=UTF8&t=c&z=11
A158: 155 | B158: LE0299 | C158: Antequera 2 (Mαlaga) | E158: 37 | F158: 6.2 | G158: -4 | H158: -33.8 | I158: 1410 | U158: 37.10333 | V158: -4.56333 | W158: http://maps.google.com/maps?f=q&source=s_q&hl=nl&geocode=&q=37.10333, -4.56333&C4710ie=UTF8&t=c&z=11
A159: 156 | B159: ED3030 | C159: Antersberg Lkr. Rosenheim | E159: 47 | F159: 57.83 | G159: 11 | H159: 59.82 | I159: 1604 | R159: 123.35 | U159: 47.96383 | V159: 11.997 | W159: http://maps.google.com/maps?f=q&source=s_q&hl=nl&geocode=&q=47.96383, 11.997&C4710ie=UTF8&t=c&z=11
A160: 157 | B160: EBAW | C160: Antwerp Deurne | E160: 51 | F160: 11.4 | G160: 4 | H160: 27.6 | I160: 39 | S160: =$C$4714&"\"&B160&".jpg" -> c:\VCM2000\images\EBAW.jpg | U160: 51.19 | V160: 4.46 | W160: http://maps.google.com/maps?f=q&source=s_q&hl=nl&geocode=&q=51.19, 4.46&C4710ie=UTF8&t=c&z=11
A161: 158 | B161: ANT | C161: Antwerp VOR | E161: 51 | F161: 11.43 | G161: 4 | H161: 28.35 | U161: 51.1905 | V161: 4.4725 | W161: http://maps.google.com/maps?f=q&source=s_q&hl=nl&geocode=&q=51.1905, 4.4725&C4710ie=UTF8&t=c&z=11
A162: 159 | B162: ONW | C162: Antwerpen NDB | E162: 51 | F162: 10.05 | G162: 4 | H162: 33.98 | U162: 51.1675 | V162: 4.56633 | W162: http://maps.google.com/maps?f=q&source=s_q&hl=nl&geocode=&q=51.1675, 4.56633&C4710ie=UTF8&t=c&z=11
A163: 160 | B163: LIMW | C163: Aosta | E163: 45 | F163: 44.32 | G163: 7 | H163: 21.75 | I163: 1788 | U163: 45.73867 | V163: 7.3625 | W163: http://maps.google.com/maps?f=q&source=s_q&hl=nl&geocode=&q=45.73867, 7.3625&C4710ie=UTF8&t=c&z=11
A164: 161 | B164: LFXI | C164: Apt St Christol | E164: 44 | F164: 3.2 | G164: 5 | H164: 29.7 | I164: 2736 | T164: =$C$4710&B164&".pdf" -> https://www.sia.aviation-civile.gouv.fr/aip/enligne/PDF_AIPparSSection/VAC/AD/2/1003_AD-2.LFXI.pdf | U164: 44.05333 | V164: 5.495 | W164: http://maps.google.com/maps?f=q&source=s_q&hl=nl&geocode=&q=44.05333, 5.495&C4710ie=UTF8&t=c&z=11
A165: 162 | B165: LIAP | C165: Aquila / Preturo | E165: 42 | F165: 22.03 | G165: 13 | H165: 17.98 | I165: 2201 | U165: 42.36717 | V165: 13.29967 | W165: http://maps.google.com/maps?f=q&source=s_q&hl=nl&geocode=&q=42.36717, 13.29967&C4710ie=UTF8&t=c&z=11
A166: 163 | B166: LIAQ | C166: Aquino / Ciocaria | E166: 41 | F166: 29.17 | G166: 13 | H166: 43.12 | I166: 361 | R166: 126.900 | U166: 41.48617 | V166: 13.71867 | W166: http://maps.google.com/maps?f=q&source=s_q&hl=nl&geocode=&q=41.48617, 13.71867&C4710ie=UTF8&t=c&z=11
A167: 164 | B167: LF3352 | C167: Arbis | E167: 44 | F167: 40.98 | G167: 0 | H167: -15.5 | I167: 130 | U167: 44.683 | V167: -0.25833 | W167: http://maps.google.com/maps?f=q&source=s_q&hl=nl&geocode=&q=44.683, -0.25833&C4710ie=UTF8&t=c&z=11
A168: 165 | B168: LFGD | C168: Arbois | E168: 46 | F168: 55.2 | G168: 5 | H168: 45.6 | I168: 876 | S168: =$C$4714&"\"&B168&".jpg" -> c:\VCM2000\images\LFGD.jpg | T168: =$C$4710&B168&".pdf" -> https://www.sia.aviation-civile.gouv.fr/aip/enligne/PDF_AIPparSSection/VAC/AD/2/1003_AD-2.LFGD.pdf | U168: 46.92 | V168: 5.76 | W168: http://maps.google.com/maps?f=q&source=s_q&hl=nl&geocode=&q=46.92, 5.76&C4710ie=UTF8&t=c&z=11
A169: 166 | B169: LFCH | C169: Arcachon la Teste de Buch | E169: 44 | F169: 35.92 | G169: -1 | H169: -6.88 | I169: 49 | S169: =$C$4714&"\"&B169&".jpg" -> c:\VCM2000\images\LFCH.jpg | T169: =$C$4710&B169&".pdf" -> https://www.sia.aviation-civile.gouv.fr/aip/enligne/PDF_AIPparSSection/VAC/AD/2/1003_AD-2.LFCH.pdf | U169: 44.59867 | V169: -1.11467 | W169: http://maps.google.com/maps?f=q&source=s_q&hl=nl&geocode=&q=44.59867, -1.11467&C4710ie=UTF8&t=c&z=11
A170: 167 | B170: LF1721 | C170: Archiac | E170: 45 | F170: 31 | G170: 0 | H170: -21 | U170: 45.51667 | V170: -0.35 | W170: http://maps.google.com/maps?f=q&source=s_q&hl=nl&geocode=&q=45.51667, -0.35&C4710ie=UTF8&t=c&z=11
A171: 168 | B171: LF8627 | C171: Archigny Chenevelles | E171: 46 | F171: 41.35 | G171: 0 | H171: 40.3 | I171: 446 | U171: 46.68917 | V171: 0.67167 | W171: http://maps.google.com/maps?f=q&source=s_q&hl=nl&geocode=&q=46.68917, 0.67167&C4710ie=UTF8&t=c&z=11
A172: 169 | B172: LI0006 | C172: Arcole | E172: 45 | F172: 21.6 | G172: 11 | H172: 17.67 | U172: 45.36 | V172: 11.2945 | W172: http://maps.google.com/maps?f=q&source=s_q&hl=nl&geocode=&q=45.36, 11.2945&C4710ie=UTF8&t=c&z=11
A173: 170 | B173: LE0100 | C173: Arcones (emergencia) | E173: 41 | F173: 7.27 | G173: -3 | H173: -44.8 | I173: 0 | U173: 41.12117 | V173: -3.74667 | W173: http://maps.google.com/maps?f=q&source=s_q&hl=nl&geocode=&q=41.12117, -3.74667&C4710ie=UTF8&t=c&z=11
A174: 171 | B174: LIQB | C174: Arezzo | E174: 43 | F174: 27.32 | G174: 11 | H174: 50.83 | I174: 814 | R174: 126900 | U174: 43.45533 | V174: 11.84717 | W174: http://maps.google.com/maps?f=q&source=s_q&hl=nl&geocode=&q=43.45533, 11.84717&C4710ie=UTF8&t=c&z=11
A175: 172 | B175: LE0237 | C175: Argamasilla de Calatrava | E175: 38 | F175: 47.64 | G175: -4 | H175: -5.18 | I175: 0 | U175: 38.794 | V175: -4.08633 | W175: http://maps.google.com/maps?f=q&source=s_q&hl=nl&geocode=&q=38.794, -4.08633&C4710ie=UTF8&t=c&z=11
A176: 173 | B176: LI0007 | C176: Argelato | E176: 44 | F176: 36.97 | G176: 11 | H176: 19.6 | I176: 100 | R176: 130.1 | U176: 44.61617 | V176: 11.32667 | W176: http://maps.google.com/maps?f=q&source=s_q&hl=nl&geocode=&q=44.61617, 11.32667&C4710ie=UTF8&t=c&z=11
A177: 174 | B177: LF1154 | C177: Argeliers | E177: 43 | F177: 18.32 | G177: 2 | H177: 53.38 | I177: 137 | R177: 123,5 | S177: =$C$4714&"\"&B177&".jpg" -> c:\VCM2000\images\LF1154.jpg | U177: 43.30533 | V177: 2.88967 | W177: http://maps.google.com/maps?f=q&source=s_q&hl=nl&geocode=&q=43.30533, 2.88967&C4710ie=UTF8&t=c&z=11
A178: 175 | B178: ED5001 | C178: Argenbühl-Eisenharz | E178: 47 | F178: 41.47 | G178: 9 | H178: 57.73 | I178: 0 | R178: 123.425 | U178: 47.69117 | V178: 9.96217 | W178: http://maps.google.com/maps?f=q&source=s_q&hl=nl&geocode=&q=47.69117, 9.96217&C4710ie=UTF8&t=c&z=11
A179: 176 | B179: LI0008 | C179: Argenta | E179: 44 | F179: 36.8 | G179: 11 | H179: 56.02 | R179: 0 | U179: 44.61333 | V179: 11.93367 | W179: http://maps.google.com/maps?f=q&source=s_q&hl=nl&geocode=&q=44.61333, 11.93367&C4710ie=UTF8&t=c&z=11
A180: 177 | B180: LFAJ | C180: Argentan | E180: 48 | F180: 42.63 | G180: 0 | H180: 0.23 | I180: 581 | R180: 123.500 | S180: =$C$4714&"\"&B180&".jpg" -> c:\VCM2000\images\LFAJ.jpg | T180: =$C$4710&B180&".pdf" -> https://www.sia.aviation-civile.gouv.fr/aip/enligne/PDF_AIPparSSection/VAC/AD/2/1003_AD-2.LFAJ.pdf | U180: 48.7105 | V180: 0.00383 | W180: http://maps.google.com/maps?f=q&source=s_q&hl=nl&geocode=&q=48.7105, 0.00383&C4710ie=UTF8&t=c&z=11
A181: 178 | B181: LFEG | C181: Argenton sur Creuse | E181: 46 | F181: 35.82 | G181: 1 | H181: 36.15 | I181: 663 | R181: 123.5 | S181: =$C$4714&"\"&B181&".jpg" -> c:\VCM2000\images\LFEG.jpg | T181: =$C$4710&B181&".pdf" -> https://www.sia.aviation-civile.gouv.fr/aip/enligne/PDF_AIPparSSection/VAC/AD/2/1003_AD-2.LFEG.pdf | U181: 46.597 | V181: 1.6025 | W181: http://maps.google.com/maps?f=q&source=s_q&hl=nl&geocode=&q=46.597, 1.6025&C4710ie=UTF8&t=c&z=11
A182: 179 | B182: EBAR | C182: Arlon | E182: 49 | F182: 39.77 | G182: 5 | H182: 53.22 | I182: 1140 | R182: 123,425 | S182: =$C$4714&"\"&B182&".jpg" -> c:\VCM2000\images\EBAR.jpg | T182: =$C$4712&"\"&B182&".nl.pdf" -> c:\VCM2000\VAC Belgie\EBAR.nl.pdf | U182: 49.66283 | V182: 5.887 | W182: http://maps.google.com/maps?f=q&source=s_q&hl=nl&geocode=&q=49.66283, 5.887&C4710ie=UTF8&t=c&z=11
A183: 180 | B183: LI0097 | C183: Arma | E183: 41 | F183: 27.13 | G183: 12 | H183: 46.08 | R183: 0 | U183: 41.45217 | V183: 12.768 | W183: http://maps.google.com/maps?f=q&source=s_q&hl=nl&geocode=&q=41.45217, 12.768&C4710ie=UTF8&t=c&z=11
A184: 181 | B184: LEGA | C184: Armilla (Granada) | E184: 37 | F184: 7.92 | G184: -3 | H184: -36.97 | I184: 2251 | U184: 37.132 | V184: -3.61617 | W184: http://maps.google.com/maps?f=q&source=s_q&hl=nl&geocode=&q=37.132, -3.61617&C4710ie=UTF8&t=c&z=11
A185: 182 | B185: EDNB | C185: Arnbruck | E185: 49 | F185: 7.52 | G185: 12 | H185: 59.1 | I185: 1716 | R185: 118.55 | U185: 49.12533 | V185: 12.985 | W185: http://maps.google.com/maps?f=q&source=s_q&hl=nl&geocode=&q=49.12533, 12.985&C4710ie=UTF8&t=c&z=11
A186: 183 | B186: EHDL | C186: Arnhem-Deelen | E186: 52 | F186: 3.58 | G186: 5 | H186: 52.3 | I186: 151 | T186: http://www.ais-netherlands.nl/aim/091231-100211/eAIP/html/index-en-GB.html | U186: 52.05967 | V186: 5.87167 | W186: http://maps.google.com/maps?f=q&source=s_q&hl=nl&geocode=&q=52.05967, 5.87167&C4710ie=UTF8&t=c&z=11
A187: 184 | B187: EDLA | C187: Arnsberg-Menden | E187: 51 | F187: 29 | G187: 7 | H187: 53.97 | I187: 794 | R187: 123.025 | U187: 51.48333 | V187: 7.8995 | W187: http://maps.google.com/maps?f=q&source=s_q&hl=nl&geocode=&q=51.48333, 7.8995&C4710ie=UTF8&t=c&z=11
A188: 185 | B188: ED3283 | C188: Arnsberg-Ruhrwiese | E188: 51 | F188: 23.83 | G188: 8 | H188: 4 | I188: 591 | R188: 123.4 | U188: 51.39717 | V188: 8.06667 | W188: http://maps.google.com/maps?f=q&source=s_q&hl=nl&geocode=&q=51.39717, 8.06667&C4710ie=UTF8&t=c&z=11
A189: 186 | B189: ED5029 | C189: Arnschwang | E189: 49 | F189: 16.38 | G189: 12 | H189: 46.83 | I189: 1355 | R189: 123.425 | U189: 49.273 | V189: 12.7805 | W189: http://maps.google.com/maps?f=q&source=s_q&hl=nl&geocode=&q=49.273, 12.7805&C4710ie=UTF8&t=c&z=11
A190: 187 | B190: LF5351 | C190: Aron-Les Ecottays (Mayenne) | E190: 48 | F190: 16.98 | G190: 0 | H190: -31.3 | I190: 426 | S190: =$C$4714&"\"&B190&".jpg" -> c:\VCM2000\images\LF5351.jpg | U190: 48.283 | V190: -0.52167 | W190: http://maps.google.com/maps?f=q&source=s_q&hl=nl&geocode=&q=48.283, -0.52167&C4710ie=UTF8&t=c&z=11
A191: 188 | B191: ARP | C191: Arpe VOR | E191: 51 | F191: 1 | G191: 8 | H191: 18.3 | U191: 51.01667 | V191: 8.305 | W191: http://maps.google.com/maps?f=q&source=s_q&hl=nl&geocode=&q=51.01667, 8.305&C4710ie=UTF8&t=c&z=11
A192: 189 | B192: LI0009 | C192: Arquà Polesine | E192: 45 | F192: 2.02 | G192: 11 | H192: 43.9 | U192: 45.03367 | V192: 11.73167 | W192: http://maps.google.com/maps?f=q&source=s_q&hl=nl&geocode=&q=45.03367, 11.73167&C4710ie=UTF8&t=c&z=11
A193: 190 | B193: LFQD | C193: Arras Roclincourt | E193: 50 | F193: 19.48 | G193: 2 | H193: 48.25 | I193: 338 | R193: 123.500 | T193: =$C$4710&B193&".pdf" -> https://www.sia.aviation-civile.gouv.fr/aip/enligne/PDF_AIPparSSection/VAC/AD/2/1003_AD-2.LFQD.pdf | U193: 50.32467 | V193: 2.80417 | W193: http://maps.google.com/maps?f=q&source=s_q&hl=nl&geocode=&q=50.32467, 2.80417&C4710ie=UTF8&t=c&z=11
A194: 191 | B194: LF0922 | C194: Artigat | E194: 43 | F194: 8.9 | G194: 1 | H194: 26.48 | S194: =$C$4714&"\"&B194&".jpg" -> c:\VCM2000\images\LF0922.jpg | U194: 43.14833 | V194: 1.44133 | W194: http://maps.google.com/maps?f=q&source=s_q&hl=nl&geocode=&q=43.14833, 1.44133&C4710ie=UTF8&t=c&z=11
A195: 192 | B195: LF0952 | C195: Artigat - Martin Gu'air | E195: 43 | F195: 8.8 | G195: 1 | H195: 26.41 | I195: 730 | S195: =$C$4714&"\"&B195&".jpg" -> c:\VCM2000\images\LF0952.jpg | U195: 43.14667 | V195: 1.44017 | W195: http://maps.google.com/maps?f=q&source=s_q&hl=nl&geocode=&q=43.14667, 1.44017&C4710ie=UTF8&t=c&z=11
A196: 193 | B196: LF6527 | C196: Artigues | E196: 43 | F196: 3.37 | G196: 0 | H196: 0.18 | I196: 2460 | R196: A/A 130.000 | S196: =$C$4714&"\"&B196&".jpg" -> c:\VCM2000\images\LF6527.jpg | U196: 43.05617 | V196: 0.003 | W196: http://maps.google.com/maps?f=q&source=s_q&hl=nl&geocode=&q=43.05617, 0.003&C4710ie=UTF8&t=c&z=11
A197: 194 | B197: LI0010 | C197: Artogne | E197: 45 | F197: 51.25 | G197: 10 | H197: 8.75 | I197: 695 | R197: A/A 130,000 | U197: 45.85417 | V197: 10.14583 | W197: http://maps.google.com/maps?f=q&source=s_q&hl=nl&geocode=&q=45.85417, 10.14583&C4710ie=UTF8&t=c&z=11
A198: 195 | B198: LI0011 | C198: Arzago d'Adda | E198: 45 | F198: 27.67 | G198: 9 | H198: 34.58 | R198: 0 | U198: =ROUND(E198+(F198/60),5) -> 45.46117 | V198: =ROUND(G198+(H198/60),5) -> 9.57633 | W198: http://maps.google.com/maps?f=q&source=s_q&hl=nl&geocode=&q=45.46117, 9.57633&C4710ie=UTF8&t=c&z=11
A199: 196 | B199: EDFC | C199: Aschaffenburg | E199: 49 | F199: 56.33 | G199: 9 | H199: 3.75 | I199: 410 | R199: 134.3 | S199: =$C$4714&"\"&B199&".jpg" -> c:\VCM2000\images\EDFC.jpg | U199: 49.93883 | V199: 9.0625 | W199: http://maps.google.com/maps?f=q&source=s_q&hl=nl&geocode=&q=49.93883, 9.0625&C4710ie=UTF8&t=c&z=11
A200: 197 | B200: EDCQ | C200: Aschersleben | E200: 51 | F200: 45.9 | G200: 11 | H200: 29.9 | I200: 525 | R200: 123.375 | S200: =$C$4714&"\"&B200&".jpg" -> c:\VCM2000\images\EDCQ.jpg | U200: 51.765 | V200: 11.49833 | W200: http://maps.google.com/maps?f=q&source=s_q&hl=nl&geocode=&q=51.765, 11.49833&C4710ie=UTF8&t=c&z=11
A201: 198 | B201: LIDA | C201: Asiago | E201: 45 | F201: 53.25 | G201: 11 | H201: 30.98 | I201: 3409 | R201: 122600 | S201: =$C$4714&"\"&B201&".jpg" -> c:\VCM2000\images\LIDA.jpg | U201: 45.8875 | V201: 11.51633 | W201: http://maps.google.com/maps?f=q&source=s_q&hl=nl&geocode=&q=45.8875, 11.51633&C4710ie=UTF8&t=c&z=11
A202: 199 | B202: LI0012 | C202: Asolo | E202: 45 | F202: 45.5 | G202: 11 | H202: 53.77 | R202: 0 | U202: 45.75833 | V202: 11.89617 | W202: http://maps.google.com/maps?f=q&source=s_q&hl=nl&geocode=&q=45.75833, 11.89617&C4710ie=UTF8&t=c&z=11
... 2046 more rows

Sheet SR-SS
A1: 2025-03-06 | B1: 06:16 | C1: 17:33
A2: 2025-03-07 | B2: 06:14 | C2: 17:34
A3: 2025-03-08 | B3: 06:12 | C3: 17:36
A4: 2025-03-09 | B4: 06:09 | C4: 17:38
A5: 2025-03-10 | B5: 06:07 | C5: 17:39
A6: 2025-03-11 | B6: 06:05 | C6: 17:41
A7: 2025-03-12 | B7: 06:03 | C7: 17:43
A8: 2025-03-13 | B8: 06:01 | C8: 17:44
A9: 2025-03-14 | B9: 05:58 | C9: 17:46
A10: 2025-03-15 | B10: 05:56 | C10: 17:48
A11: 2025-03-16 | B11: 05:54 | C11: 17:49
A12: 2025-03-17 | B12: 05:52 | C12: 17:51
A13: 2025-03-18 | B13: 05:49 | C13: 17:53
A14: 2025-03-19 | B14: 05:47 | C14: 17:54
A15: 2025-03-20 | B15: 05:45 | C15: 17:56
A16: 2025-03-21 | B16: 05:43 | C16: 17:57
A17: 2025-03-22 | B17: 05:41 | C17: 17:59
A18: 2025-03-23 | B18: 05:38 | C18: 18:01
A19: 2025-03-24 | B19: 05:36 | C19: 18:02
A20: 2025-03-25 | B20: 05:34 | C20: 18:04
A21: 2025-03-26 | B21: 05:32 | C21: 18:06
A22: 2025-03-27 | B22: 05:29 | C22: 18:07
A23: 2025-03-28 | B23: 05:27 | C23: 18:09
A24: 2025-03-29 | B24: 05:25 | C24: 18:11
A25: 2025-03-30 | B25: 05:23 | C25: 18:12
A26: 2025-03-31 | B26: 05:20 | C26: 18:14
A27: 2025-04-01 | B27: 05:18 | C27: 18:15
A28: 2025-04-02 | B28: 05:16 | C28: 18:17
A29: 2025-04-03 | B29: 05:14 | C29: 18:19
A30: 2025-04-04 | B30: 05:12 | C30: 18:20
A31: 2025-04-05 | B31: 05:09 | C31: 18:22
A32: 2025-04-06 | B32: 05:07 | C32: 18:24
A33: 2025-04-07 | B33: 05:05 | C33: 18:25
A34: 2025-04-08 | B34: 05:03 | C34: 18:27
A35: 2025-04-09 | B35: 05:01 | C35: 18:28
A36: 2025-04-10 | B36: 04:59 | C36: 18:30
A37: 2025-04-11 | B37: 04:56 | C37: 18:32
A38: 2025-04-12 | B38: 04:54 | C38: 18:33
A39: 2025-04-13 | B39: 04:52 | C39: 18:35
A40: 2025-04-14 | B40: 04:50 | C40: 18:37
A41: 2025-04-15 | B41: 04:48 | C41: 18:38
A42: 2025-04-16 | B42: 04:46 | C42: 18:40
A43: 2025-04-17 | B43: 04:44 | C43: 18:41
A44: 2025-04-18 | B44: 04:42 | C44: 18:43
A45: 2025-04-19 | B45: 04:40 | C45: 18:45
A46: 2025-04-20 | B46: 04:38 | C46: 18:46
A47: 2025-04-21 | B47: 04:36 | C47: 18:48
A48: 2025-04-22 | B48: 04:34 | C48: 18:49
A49: 2025-04-23 | B49: 04:32 | C49: 18:51
A50: 2025-04-24 | B50: 04:30 | C50: 18:53
A51: 2025-04-25 | B51: 04:28 | C51: 18:54
A52: 2025-04-26 | B52: 04:26 | C52: 18:56
A53: 2025-04-27 | B53: 04:24 | C53: 18:58
A54: 2025-04-28 | B54: 04:22 | C54: 18:59
A55: 2025-04-29 | B55: 04:20 | C55: 19:01
A56: 2025-04-30 | B56: 04:18 | C56: 19:02
A57: 2025-05-01 | B57: 04:16 | C57: 19:04
A58: 2025-05-02 | B58: 04:15 | C58: 19:06
A59: 2025-05-03 | B59: 04:13 | C59: 19:07
A60: 2025-05-04 | B60: 04:11 | C60: 19:09
A61: 2025-05-05 | B61: 04:09 | C61: 19:10
A62: 2025-05-06 | B62: 04:08 | C62: 19:12
A63: 2025-05-07 | B63: 04:06 | C63: 19:13
A64: 2025-05-08 | B64: 04:04 | C64: 19:15
A65: 2025-05-09 | B65: 04:03 | C65: 19:16
A66: 2025-05-10 | B66: 04:01 | C66: 19:18
A67: 2025-05-11 | B67: 03:59 | C67: 19:19
A68: 2025-05-12 | B68: 03:58 | C68: 19:21
A69: 2025-05-13 | B69: 03:56 | C69: 19:22
A70: 2025-05-14 | B70: 03:55 | C70: 19:24
A71: 2025-05-15 | B71: 03:53 | C71: 19:25
A72: 2025-05-16 | B72: 03:52 | C72: 19:27
A73: 2025-05-17 | B73: 03:51 | C73: 19:28
A74: 2025-05-18 | B74: 03:49 | C74: 19:30
A75: 2025-05-19 | B75: 03:48 | C75: 19:31
A76: 2025-05-20 | B76: 03:47 | C76: 19:32
A77: 2025-05-21 | B77: 03:45 | C77: 19:34
A78: 2025-05-22 | B78: 03:44 | C78: 19:35
A79: 2025-05-23 | B79: 03:43 | C79: 19:36
A80: 2025-05-24 | B80: 03:42 | C80: 19:38
A81: 2025-05-25 | B81: 03:41 | C81: 19:39
A82: 2025-05-26 | B82: 03:40 | C82: 19:40
A83: 2025-05-27 | B83: 03:39 | C83: 19:41
A84: 2025-05-28 | B84: 03:38 | C84: 19:43
A85: 2025-05-29 | B85: 03:37 | C85: 19:44
A86: 2025-05-30 | B86: 03:36 | C86: 19:45
A87: 2025-05-31 | B87: 03:35 | C87: 19:46
A88: 2025-06-01 | B88: 03:35 | C88: 19:47
A89: 2025-06-02 | B89: 03:34 | C89: 19:48
A90: 2025-06-03 | B90: 03:33 | C90: 19:49
A91: 2025-06-04 | B91: 03:32 | C91: 19:50
A92: 2025-06-05 | B92: 03:32 | C92: 19:51
A93: 2025-06-06 | B93: 03:31 | C93: 19:52
A94: 2025-06-07 | B94: 03:31 | C94: 19:53
A95: 2025-06-08 | B95: 03:30 | C95: 19:53
A96: 2025-06-09 | B96: 03:30 | C96: 19:54
A97: 2025-06-10 | B97: 03:30 | C97: 19:55
A98: 2025-06-11 | B98: 03:29 | C98: 19:56
A99: 2025-06-12 | B99: 03:29 | C99: 19:56
A100: 2025-06-13 | B100: 03:29 | C100: 19:57
A101: 2025-06-14 | B101: 03:29 | C101: 19:57
A102: 2025-06-15 | B102: 03:29 | C102: 19:58
A103: 2025-06-16 | B103: 03:29 | C103: 19:58
A104: 2025-06-17 | B104: 03:29 | C104: 19:59
A105: 2025-06-18 | B105: 03:29 | C105: 19:59
A106: 2025-06-19 | B106: 03:29 | C106: 19:59
A107: 2025-06-20 | B107: 03:29 | C107: 20:00
A108: 2025-06-21 | B108: 03:29 | C108: 20:00
A109: 2025-06-22 | B109: 03:29 | C109: 20:00
A110: 2025-06-23 | B110: 03:30 | C110: 20:00
A111: 2025-06-24 | B111: 03:30 | C111: 20:00
A112: 2025-06-25 | B112: 03:30 | C112: 20:00
A113: 2025-06-26 | B113: 03:31 | C113: 20:00
A114: 2025-06-27 | B114: 03:31 | C114: 20:00
A115: 2025-06-28 | B115: 03:32 | C115: 20:00
A116: 2025-06-29 | B116: 03:32 | C116: 20:00
A117: 2025-06-30 | B117: 03:33 | C117: 19:59
A118: 2025-07-01 | B118: 03:34 | C118: 19:59
A119: 2025-07-02 | B119: 03:34 | C119: 19:59
A120: 2025-07-03 | B120: 03:35 | C120: 19:58
A121: 2025-07-04 | B121: 03:36 | C121: 19:58
A122: 2025-07-05 | B122: 03:37 | C122: 19:57
A123: 2025-07-06 | B123: 03:37 | C123: 19:57
A124: 2025-07-07 | B124: 03:38 | C124: 19:56
A125: 2025-07-08 | B125: 03:39 | C125: 19:56
A126: 2025-07-09 | B126: 03:40 | C126: 19:55
A127: 2025-07-10 | B127: 03:41 | C127: 19:54
A128: 2025-07-11 | B128: 03:42 | C128: 19:53
A129: 2025-07-12 | B129: 03:43 | C129: 19:53
A130: 2025-07-13 | B130: 03:44 | C130: 19:52
A131: 2025-07-14 | B131: 03:45 | C131: 19:51
A132: 2025-07-15 | B132: 03:47 | C132: 19:50
A133: 2025-07-16 | B133: 03:48 | C133: 19:49
A134: 2025-07-17 | B134: 03:49 | C134: 19:48
A135: 2025-07-18 | B135: 03:50 | C135: 19:47
A136: 2025-07-19 | B136: 03:51 | C136: 19:46
A137: 2025-07-20 | B137: 03:53 | C137: 19:44
A138: 2025-07-21 | B138: 03:54 | C138: 19:43
A139: 2025-07-22 | B139: 03:55 | C139: 19:42
A140: 2025-07-23 | B140: 03:57 | C140: 19:41
A141: 2025-07-24 | B141: 03:58 | C141: 19:39
A142: 2025-07-25 | B142: 03:59 | C142: 19:38
A143: 2025-07-26 | B143: 04:01 | C143: 19:37
A144: 2025-07-27 | B144: 04:02 | C144: 19:35
A145: 2025-07-28 | B145: 04:04 | C145: 19:34
A146: 2025-07-29 | B146: 04:05 | C146: 19:32
A147: 2025-07-30 | B147: 04:06 | C147: 19:31
A148: 2025-07-31 | B148: 04:08 | C148: 19:29
A149: 2025-08-01 | B149: 04:09 | C149: 19:28
A150: 2025-08-02 | B150: 04:11 | C150: 19:26
A151: 2025-08-03 | B151: 04:12 | C151: 19:24
A152: 2025-08-04 | B152: 04:14 | C152: 19:23
A153: 2025-08-05 | B153: 04:15 | C153: 19:21
A154: 2025-08-06 | B154: 04:17 | C154: 19:19
A155: 2025-08-07 | B155: 04:18 | C155: 19:18
A156: 2025-08-08 | B156: 04:20 | C156: 19:16
A157: 2025-08-09 | B157: 04:21 | C157: 19:14
A158: 2025-08-10 | B158: 04:23 | C158: 19:12
A159: 2025-08-11 | B159: 04:24 | C159: 19:10
A160: 2025-08-12 | B160: 04:26 | C160: 19:08
A161: 2025-08-13 | B161: 04:27 | C161: 19:07
A162: 2025-08-14 | B162: 04:29 | C162: 19:05
A163: 2025-08-15 | B163: 04:30 | C163: 19:03
A164: 2025-08-16 | B164: 04:32 | C164: 19:01
A165: 2025-08-17 | B165: 04:33 | C165: 18:59
A166: 2025-08-18 | B166: 04:35 | C166: 18:57
A167: 2025-08-19 | B167: 04:36 | C167: 18:55
A168: 2025-08-20 | B168: 04:38 | C168: 18:53
A169: 2025-08-21 | B169: 04:40 | C169: 18:51
A170: 2025-08-22 | B170: 04:41 | C170: 18:49
A171: 2025-08-23 | B171: 04:43 | C171: 18:47
A172: 2025-08-24 | B172: 04:44 | C172: 18:45
A173: 2025-08-25 | B173: 04:46 | C173: 18:42
A174: 2025-08-26 | B174: 04:47 | C174: 18:40
A175: 2025-08-27 | B175: 04:49 | C175: 18:38
A176: 2025-08-28 | B176: 04:50 | C176: 18:36
A177: 2025-08-29 | B177: 04:52 | C177: 18:34
A178: 2025-08-30 | B178: 04:53 | C178: 18:32
A179: 2025-08-31 | B179: 04:55 | C179: 18:30
A180: 2025-09-01 | B180: 04:57 | C180: 18:27
A181: 2025-09-02 | B181: 04:58 | C181: 18:25
A182: 2025-09-03 | B182: 05:00 | C182: 18:23
A183: 2025-09-04 | B183: 05:01 | C183: 18:21
A184: 2025-09-05 | B184: 05:03 | C184: 18:19
A185: 2025-09-06 | B185: 05:04 | C185: 18:16
A186: 2025-09-07 | B186: 05:06 | C186: 18:14
A187: 2025-09-08 | B187: 05:07 | C187: 18:12
A188: 2025-09-09 | B188: 05:09 | C188: 18:10
A189: 2025-09-10 | B189: 05:10 | C189: 18:07
A190: 2025-09-11 | B190: 05:12 | C190: 18:05
A191: 2025-09-12 | B191: 05:14 | C191: 18:03
A192: 2025-09-13 | B192: 05:15 | C192: 18:01
A193: 2025-09-14 | B193: 05:17 | C193: 17:59
A194: 2025-09-15 | B194: 05:18 | C194: 17:56
A195: 2025-09-16 | B195: 05:20 | C195: 17:54
A196: 2025-09-17 | B196: 05:21 | C196: 17:52
A197: 2025-09-18 | B197: 05:23 | C197: 17:49
A198: 2025-09-19 | B198: 05:24 | C198: 17:47
A199: 2025-09-20 | B199: 05:26 | C199: 17:45
A200: 2025-09-21 | B200: 05:27 | C200: 17:43
... 101 more rows

Sheet Coord
C2: COORDINAATBEREKENING VANAF KAART
B4: Standaard | C4: NB | D4: 111 | E4: mm | F4: 15 | G4: Min | I4: =ROUND(D4/F4,2) -> 7.4 | J4: mm/Min
C5: OL | D5: 70 | E5: mm | F5: 15 | G5: Min | I5: =ROUND(D5/F5,2) -> 4.67 | J5: mm/Min
D7: Graden | E7: Min | G7: Afstand | J7: COORDINATEN KP
B9: Keerpunt | C9: NB | D9: 50 | E9: 30 | G9: 46 | H9: mm | J9: =D9 -> 50 | K9: =FLOOR(G9/I4,1)+ROUND((G9-((FLOOR(G9/I4,1)*I4)))/I4,2)+E9 -> 36.22 | L9: NB
C10: OL | D10: 2 | E10: 45 | G10: 20 | H10: mm | J10: =D10 -> 2 | K10: =FLOOR(G10/I5,1)+ROUND((G10-((FLOOR(G10/I5,1)*I5)))/I5,2)+E10 -> 49.28 | L10: OL

Sheet Navblanco
A1: =" Aircraft : " -> Aircraft : | E1: ="Vcr : " -> Vcr : | P1: Wind : | R1: REF | T1: 30 | V1: 40 | AB1: 8 | AG1: R_aarde | AH1: 6378137
A2: ="Pilot : " -> Pilot : | F2: Consumption : | O2: Variatie : | AB2: 12 | AG2: Eps | AH2: 1e-07
A3: ICAO | B3: DIST | C3: CM | D3: CMW | E3: EET | F3: EETW | G3: GS | H3: BV | I3: BR | J3: ETA | K3: AETA | L3: Remarks | O3: ATIS : | S3: =ROUND(S2*1.852,0) -> 0
O4: DEP | P4: Runway : | V4: Transition level | AG4: 111.1949267 | AH4: ja | AI4: =MIN(#REF!) -> 
P6: Wind | S6: Clouds | T6: Level 1 | Y6: 193 | Z6: =IF(AB6<>1,1,"") -> 1 | AA6: =IF(Z6<>"",VLOOKUP(LARGE($Z$6:$Z$15,1),$Z$6:$AB$15,3),1) -> 872 | AB6: 114 | AC6: =IF(AB6<>1,VLOOKUP(AB6,Bereik,5),"") -> 45 | AD6: =IF(AB6<>1,VLOOKUP(AB6,Bereik,6),"") -> 31.02 | AE6: =IF(AB6<>1,VLOOKUP(AB6,Bereik,7),"") -> 3 | AF6: =IF(AB6<>1,VLOOKUP(AB6,Bereik,8),"") -> 44.78 | AG6: =PI()/180 -> 0.01745329252 | AH6: neen | AI6: =MIN(N73:N75) -> 0 | BE6: =1*AC6+AD6/60 -> 45.517 | BG6: =1*AE6+AF6/60 -> 3.746333333 | BI6: =BE6/180*PI() -> 0.7944215156 | BJ6: =BG6/180*PI() -> 0.06538585154 | BK6: =BJ7-BJ6 -> -0.09361655219 | BL6: =PI()/2-BI6 -> 0.7763748112 | BM6: =ACOS(COS(BL6)*COS(BL7)+SIN(BL6)*SIN(BL7)*COS(BK6)) -> 0.141914408 | BN6: =IF(ABS(SIN(BM6))<$X$9,0,IF(ABS(ABS(BM6)-ABS(BK6))<$X$9,BL7*BK6/BM6,ASIN((SIN(BL7)/SIN(BM6))*SIN(BK6)))) -> -0.4104745856 | BO6: =BN6/PI()*180 -> -23.51846135 | BP6: =IF((BE7-BE6)<0,180-BO6,BO6) -> -23.51846135 | BQ6: =IF((BP6-P2<0),360+BP6-P2,BP6-P2) -> 336.4815386
T7: Level 2 | Y7: 192 | Z7: =IF(AB7<>1,2,"") -> 2 | AA7: =IF(Z7<>"",VLOOKUP(LARGE($Z$6:$Z$15,2),$Z$6:$AB$15,3),1) -> 320 | AB7: 1007 | AC7: 52 | AD7: 51.58 | AE7: -1 | AF7: -37.05 | AG7: =$AG$4/$AG$6*ACOS(COS((AC6+AD6/60)*$AG$6)*COS((AC7+AD7/60)*$AG$6)*COS(((AE7+AF7/60)-(AE6+AF6/60))*$AG$6)+SIN((AC6+AD6/60)*$AG$6)*SIN((AC7+AD7/60)*$AG$6)) -> 904.1366935 | AH7: Km | AI7: =BQ6 -> 336.4815386 | AJ7: =AR7 ->  | AK7: =AZ7 ->  | AP7: =ROUND(ASIN($S$3/$F$1*SIN(PI()/180*($R$2-AI7)))*180/PI(),1) ->  | AQ7: =AI7-$P$2 -> 336.4815386 | AR7: =IF(ROUND(AI7+AP7,0)<=0,360+AI7+AP7,AI7+AP7) ->  | AS7: =AR7-$P$2 ->  | AT7: =-1*ROUND($S$3*SIN(PI()/180*($R$2)),0) -> 0 | AU7: =-1*ROUND($S$3*COS(PI()/180*($R$2)),0) -> 0 | AV7: =1*ROUND($F$1*SIN(PI()/180*(AR7)),0) ->  | AW7: =1*ROUND($F$1*COS(PI()/180*(AR7)),0) ->  | AX7: =AT7+AV7 ->  | AY7: =AU7+AW7 ->  | AZ7: =ROUND((AX7^2 + AY7^2)^0.5,0) ->  | BE7: 52.85966667 | BG7: -1.6175 | BI7: 0.9225752248 | BJ7: -0.02823070065 | BK7: 0.2366724643 | BL7: 0.648221102 | BM7: 0.15772104 | BN7: 1.307815706 | BO7: 74.93232032 | BP7: 105.0676797 | BQ7: =IF((BP7-P2<0),360+BP7-P2,BP7-P2) -> 105.0676797
P8: temp/dewpoint : | T8: QNH : | V8: QFE : | Y8: 324 | Z8: =IF(AB8<>1,3,"") -> 3 | AA8: =IF(Z8<>"",VLOOKUP(LARGE($Z$6:$Z$15,3),$Z$6:$AB$15,3),1) -> 459 | AB8: 1431 | AC8: 49 | AD8: 41.7 | AE8: 11 | AF8: 56.57 | AG8: 1004.840746 | AH8: Km | AI8: 105.0676797 | AQ8: 105.0676797 | AT8: 0 | AU8: 0 | BE8: 49.695 | BG8: 11.94283333 | BI8: 0.8673413718 | BJ8: 0.2084417637 | BK8: -0.0760294511 | BL8: 0.703454955 | BM8: 0.05961167276 | BN8: -0.9108181914 | BO8: -52.18603827 | BP8: -52.18603827 | BQ8: =IF((BP8-P2<0),360+BP8-P2,BP8-P2) -> 307.8139617
Y9: 319 | Z9: =IF(AB9<>1,4,"") -> 4 | AA9: =IF(Z9<>"",VLOOKUP(LARGE($Z$6:$Z$15,4),$Z$6:$AB$15,3),1) -> 990 | AB9: 1060 | AC9: 51 | AD9: 42.6 | AE9: 7 | AF9: 35.2 | AG9: 379.7859674 | AH9: Km | AI9: 307.8139617 | AQ9: 307.8139617 | AT9: 0 | AU9: 0 | BE9: 51.71 | BG9: 7.586666667 | BI9: 0.9025097562 | BJ9: 0.1324123126 | BK9: -0.02298889513 | BL9: 0.6682865706 | BM9: 0.09747885428 | BN9: -0.1642369169 | BO9: -9.410082176 | BP9: 189.4100822 | BQ9: =IF((BP9-P2<0),360+BP9-P2,BP9-P2) -> 189.4100822
O10: SS/SR | P10: Fuel Management | Y10: 990 | Z10: =IF(AB10<>1,5,"") -> 5 | AA10: =IF(Z10<>"",VLOOKUP(LARGE($Z$6:$Z$15,5),$Z$6:$AB$15,3),1) -> 148 | AB10: 148 | AC10: 46 | AD10: 11.52 | AE10: 6 | AF10: 16.17 | AG10: 621.0377809 | AH10: Km | AI10: 189.4100822 | AQ10: 189.4100822 | AT10: 0 | AU10: 0 | BE10: 46.192 | BG10: 6.2695 | BI10: 0.8062024881 | BJ10: 0.1094234175 | BK10: -0.1066308907 | BL10: 0.7645938387 | BM10: 0.09049645372 | BN10: -0.8740978682 | BO10: -50.08211873 | BP10: -50.08211873 | BQ10: =IF((BP10-P2<0),360+BP10-P2,BP10-P2) -> 309.9178813
R11: Fuel Quantity : | T11: Minimum fuel quantity to take on board : | Y11: 148 | Z11: =IF(AB11<>1,6,"") -> 6 | AA11: =IF(Z11<>"",VLOOKUP(LARGE($Z$6:$Z$15,6),$Z$6:$AB$15,3),1) -> 1060 | AB11: 990 | AC11: 49 | AD11: 21.8 | AE11: 0 | AF11: 9.6 | AG11: 576.5529069 | AH11: Km | AI11: 309.9178813 | AQ11: 309.9178813 | AT11: 0 | AU11: 0 | BE11: 49.36333333 | BG11: 0.16 | BI11: 0.8615526964 | BJ11: 0.002792526803 | BK11: 0.1626268708 | BL11: 0.7092436304 | BM11: 0.1132375008 | BN11: 1.077150206 | BO11: 61.71616068 | BP11: 61.71616068 | BQ11: =IF((BP11-P2<0),360+BP11-P2,BP11-P2) -> 61.71616068
Y12: 42 | Z12: =IF(AB12<>1,7,"") -> 7 | AA12: =IF(Z12<>"",VLOOKUP(LARGE($Z$6:$Z$15,7),$Z$7:$AB$15,3),1) -> 1431 | AB12: 459 | AC12: 52 | AD12: 4.77 | AE12: 9 | AF12: 28.67 | AG12: 721.436118 | AH12: Km | AI12: 61.71616068 | AQ12: 61.71616068 | AT12: 0 | AU12: 0 | BE12: 52.0795 | BG12: 9.477833333 | BI12: 0.9089587478 | BJ12: 0.1654193976 | BK12: -0.05395103606 | BL12: 0.661837579 | BM12: 0.1456464775 | BN12: -0.27059998 | BO12: -15.50423679 | BP12: 195.5042368 | BQ12: =IF((BP12-P2<0),360+BP12-P2,BP12-P2) -> 195.5042368
R13: Fuel Quantity Needed : | V13: Reserve : | Y13: 896 | Z13: =IF(AB13<>1,8,"") -> 8 | AA13: =IF(Z13<>"",VLOOKUP(LARGE($Z$6:$Z$15,8),$Z$6:$AB$15,3),1) -> 1007 | AB13: 320 | AC13: 43 | AD13: 59.55 | AE13: 6 | AF13: 23.2 | AG13: 927.9137083 | AH13: Km | AI13: 195.5042368 | AQ13: 195.5042368 | AT13: 0 | AU13: 0 | BE13: 43.9925 | BG13: 6.386666667 | BI13: 0.7678139712 | BJ13: 0.1114683616 | BK13: -0.1170097819 | BL13: 0.8029823556 | BM13: 0.08790248064 | BN13: -1.19292 | BO13: -68.34928127 | BP13: -68.34928127 | BQ13: =IF((BP13-P2<0),360+BP13-P2,BP13-P2) -> 291.6507187
O14: ="(UTC)" -> (UTC) | P14: Fuel Quant EMERG : | S14: 00:30:00 | Y14: 1071 | Z14: =IF(AB14<>1,9,"") -> 9 | AA14: =IF(Z14<>"",VLOOKUP(LARGE($Z$6:$Z$15,9),$Z$6:$AB$15,3),1) -> 114 | AB14: 872 | AC14: 45 | AD14: 39.5 | AE14: 0 | AF14: -19.05 | AG14: 560.0267044 | AH14: Km | AI14: 291.6507187 | AQ14: 291.6507187 | AT14: 0 | AU14: 0 | BE14: 45.65833333 | BG14: -0.3175 | BI14: 0.7968882476 | BJ14: -0.005541420375 | BL14: 0.7739080792 | BQ14: =IF((BP14-P2<0),360+BP14-P2,BP14-P2) -> 
Q15: Fuel taxi / circuit : | S15: 00:15:00 | Y15: 1 | Z15: =IF(AB15<>1,10,"") ->  | AA15: =IF(Z15<>"",VLOOKUP(LARGE($Z$6:$Z$15,10),$Z$6:$AB$15,3),1) -> 1 | AB15: 1 | AH15: Km | AT15: 0 | AU15: 0 | BQ15: =IF((BP15-P2<0),360+BP15-P2,BP15-P2) -> 
AB16: 1 | AH16: Km | AT16: 0 | AU16: 0 | BQ16: =IF((BP16-P2<0),360+BP16-P2,BP16-P2) -> 
O17: WEIGHTS | Y17: 1071 | AB17: 1 | AH17: Km | AT17: 0 | AU17: 0 | BQ17: =IF((BP17-P2<0),360+BP17-P2,BP17-P2) -> 
O18: Empty | R18: =IF(P18<>"",P18*Q18,"") ->  | Y18: 896 | AB18: 1 | AH18: Km | AT18: 0 | AU18: 0 | BQ18: =IF((BP18-P2<0),360+BP18-P2,BP18-P2) -> 
O19: Pilot | R19: =IF(P19<>"",P19*Q19,"") ->  | Y19: 42 | AB19: 1 | AH19: Km | AT19: 0 | AU19: 0 | BQ19: =IF((BP19-P2<0),360+BP19-P2,BP19-P2) -> 
O20: Pass acht | R20: =IF(P20<>"",P20*Q20,"") ->  | Y20: 148 | AB20: 1 | AH20: Km | AT20: 0 | AU20: 0 | BQ20: =IF((BP20-P2<0),360+BP20-P2,BP20-P2) -> 
O21: Fuel | R21: =IF(P22<>"",P22*Q22,"") ->  | T21: Hour Counter | U21: Arrival | Y21: 990 | AB21: 1 | AQ21: 0 | AT21: 0 | AU21: 0
O22: LUGG | U22: Departure | Y22: 319 | AB22: 1 | AR22: 360 | AS22: 360 | AT22: 0 | AU22: 0 | AV22: 0 | AW22: 0 | AX22: 0 | AY22: 0 | AZ22: 0
B23: =IF(AB15>1,AG15,"") ->  | C23: =IF(AB15>1,BQ14,"") ->  | D23: =IF(AB15>1,AR15,"") ->  | E23: =IF(AB15>1,TIME(0,ROUND(B23/$F$1*60,0),0),"") ->  | F23: =IF(AB15>1,TIME(0,ROUND(B23*60/G23,0),0),"") ->  | G23: =IF(AB15>1,AZ15,"") ->  | H23: =IF(AB15>1,ROUND(ROUNDUP(B23*60/G23,0)*$I$2/60,0),"") ->  | I23: =IF(AB15>1,I21-H23,"") ->  | U23: Total : | Y23: 324 | AB23: 1
A24: =IF(Navinput!A24<>"",Navinput!A24,"") ->  | C24: =IF(AB15>1,VLOOKUP(AB15,Bereik,3,FALSE),"") ->  | O24: ATIS : | P24: Runway : | U24: Transition level | Y24: 192 | AB24: 1
O25: ARR | P25: Wind : | S25: Clouds | T25: Level 1 | Y25: 193
B26: TOTAL TRIP | D26: TOTAL EET | F26: TOTAAL EETW | H26: TOTAL FUEL | K26: FLTTME | T26: Level 2 | Y26: 1
P27: temp/dewpoint : | T27: QNH : | V27: QFE :

Sheet Blad1
